Posting date,Supplier number,Supplier name,Expense type,Department,Amount
19/05/2021,1249077,The Advocacy Project,Hired and Contracted Services,ASC Procurement and Business Intelligenc,51294
13/04/2021,1248618,Riverside Echg,Payments to Voluntary bodies,ASC Procurement and Business Intelligenc,31500
25/05/2021,1243887,Alan Berresford Limited,B*Payments to OLAs - Southampton City Co,Adult Social Care Finance and Resources,5025
04/06/2021,1243887,Alan Berresford Limited,B*Payments to OLAs - Southampton City Co,Adult Social Care Finance and Resources,2625
09/04/2021,D000000016,PERSONAL PAYMENTS,Hired and Contracted Services,Adult Social Care Finance and Resources,600
08/04/2021,1257745,Russell Scott Entertainment Ltd,Hired and Contracted Services,Adult Social Care Finance and Resources,16000
09/06/2021,1279853,Starfish Search Limited,Recruitment Expenses (excl. advertising),Adult Social Care Finance and Resources,8000
09/06/2021,1279853,Starfish Search Limited,Recruitment Expenses (excl. advertising),Adult Social Care Finance and Resources,10400
21/06/2021,1248886,Sherry Funeral Services Ltd T/a W,Other premises related costs,Adult Social Care Finance and Resources,5279
19/05/2021,1245648,Star Boarding Kennels,Other premises related costs,Adult Social Care Finance and Resources,968.92
30/06/2021,1245648,Star Boarding Kennels,Other premises related costs,Adult Social Care Finance and Resources,908.92
14/06/2021,1271748,ADASS,Professional Subscriptions,Adult Social Care Finance and Resources,1661
12/04/2021,1245228,Pohwer,Hired and Contracted Services,Adult Social Care Finance and Resources,1620
01/06/2021,1245228,Pohwer,Hired and Contracted Services,Adult Social Care Finance and Resources,4142.5
16/06/2021,1245228,Pohwer,Hired and Contracted Services,Adult Social Care Finance and Resources,3715.1
22/04/2021,1243869,Addison Lee,Grant Aid and Donations,Adult Social Care Operations,576.71
22/04/2021,1243869,Addison Lee,Grant Aid and Donations,Adult Social Care Operations,2490.85
26/05/2021,1245982,Anchor Trust,Grant Aid and Donations,Adult Social Care Operations,7833.8
26/05/2021,1245982,Anchor Trust,Grant Aid and Donations,Adult Social Care Operations,10007.85
21/05/2021,1244062,BT Global Services,Purchase of IT Equipment,Adult Social Care Operations,5462.55
26/05/2021,1245091,Care UK Community Partnerships Ltd,Grant Aid and Donations,Adult Social Care Operations,22130.49
26/05/2021,1245091,Care UK Community Partnerships Ltd,Grant Aid and Donations,Adult Social Care Operations,28272.16
26/05/2021,1276119,Feelcare Domiciliary Services Ltd,Grant Aid and Donations,Adult Social Care Operations,768.18
26/05/2021,1273817,GCH Alan Morkill House Ltd,Grant Aid and Donations,Adult Social Care Operations,21016.47
26/05/2021,1273817,GCH Alan Morkill House Ltd,Grant Aid and Donations,Adult Social Care Operations,16450.98
30/04/2021,1265222,Independent Clinical Services LTD,Grant Aid and Donations,Adult Social Care Operations,797.12
30/04/2021,1265222,Independent Clinical Services LTD,Grant Aid and Donations,Adult Social Care Operations,5025.06
30/04/2021,1265222,Independent Clinical Services LTD,Grant Aid and Donations,Adult Social Care Operations,797.12
30/04/2021,1265222,Independent Clinical Services LTD,Grant Aid and Donations,Adult Social Care Operations,797.12
30/04/2021,1265222,Independent Clinical Services LTD,Grant Aid and Donations,Adult Social Care Operations,797.12
30/04/2021,1265222,Independent Clinical Services LTD,Grant Aid and Donations,Adult Social Care Operations,797.12
30/04/2021,1265222,Independent Clinical Services LTD,Grant Aid and Donations,Adult Social Care Operations,3828.78
30/04/2021,1265222,Independent Clinical Services LTD,Grant Aid and Donations,Adult Social Care Operations,4096.93
30/04/2021,1265222,Independent Clinical Services LTD,Grant Aid and Donations,Adult Social Care Operations,894.46
30/04/2021,1265222,Independent Clinical Services LTD,Grant Aid and Donations,Adult Social Care Operations,849.78
30/04/2021,1265222,Independent Clinical Services LTD,Grant Aid and Donations,Adult Social Care Operations,797.12
30/04/2021,1265222,Independent Clinical Services LTD,Grant Aid and Donations,Adult Social Care Operations,797.12
30/04/2021,1265222,Independent Clinical Services LTD,Grant Aid and Donations,Adult Social Care Operations,4034.68
30/04/2021,1265222,Independent Clinical Services LTD,Grant Aid and Donations,Adult Social Care Operations,714.26
30/04/2021,1265222,Independent Clinical Services LTD,Grant Aid and Donations,Adult Social Care Operations,3770.11
30/04/2021,1265222,Independent Clinical Services LTD,Grant Aid and Donations,Adult Social Care Operations,887.63
30/04/2021,1265222,Independent Clinical Services LTD,Grant Aid and Donations,Adult Social Care Operations,922.83
30/04/2021,1265222,Independent Clinical Services LTD,Grant Aid and Donations,Adult Social Care Operations,887.63
30/04/2021,1265222,Independent Clinical Services LTD,Grant Aid and Donations,Adult Social Care Operations,1068.03
30/04/2021,1265222,Independent Clinical Services LTD,Grant Aid and Donations,Adult Social Care Operations,887.63
30/04/2021,1265222,Independent Clinical Services LTD,Grant Aid and Donations,Adult Social Care Operations,714.26
30/04/2021,1265222,Independent Clinical Services LTD,Grant Aid and Donations,Adult Social Care Operations,760.33
30/04/2021,1265222,Independent Clinical Services LTD,Grant Aid and Donations,Adult Social Care Operations,805.01
30/04/2021,1265222,Independent Clinical Services LTD,Grant Aid and Donations,Adult Social Care Operations,714.26
30/04/2021,1265222,Independent Clinical Services LTD,Grant Aid and Donations,Adult Social Care Operations,743.37
30/04/2021,1265222,Independent Clinical Services LTD,Grant Aid and Donations,Adult Social Care Operations,714.26
30/04/2021,1265222,Independent Clinical Services LTD,Grant Aid and Donations,Adult Social Care Operations,805.01
30/04/2021,1265222,Independent Clinical Services LTD,Grant Aid and Donations,Adult Social Care Operations,805.01
30/04/2021,1265222,Independent Clinical Services LTD,Grant Aid and Donations,Adult Social Care Operations,2469.82
30/04/2021,1265222,Independent Clinical Services LTD,Grant Aid and Donations,Adult Social Care Operations,778.57
30/04/2021,1265222,Independent Clinical Services LTD,Grant Aid and Donations,Adult Social Care Operations,3742.23
30/04/2021,1265222,Independent Clinical Services LTD,Grant Aid and Donations,Adult Social Care Operations,755.69
30/04/2021,1265222,Independent Clinical Services LTD,Grant Aid and Donations,Adult Social Care Operations,769.29
30/04/2021,1265222,Independent Clinical Services LTD,Grant Aid and Donations,Adult Social Care Operations,625.03
30/04/2021,1265222,Independent Clinical Services LTD,Grant Aid and Donations,Adult Social Care Operations,769.29
30/04/2021,1265222,Independent Clinical Services LTD,Grant Aid and Donations,Adult Social Care Operations,818.57
30/04/2021,1265222,Independent Clinical Services LTD,Grant Aid and Donations,Adult Social Care Operations,822.1
30/04/2021,1265222,Independent Clinical Services LTD,Grant Aid and Donations,Adult Social Care Operations,722.66
30/04/2021,1265222,Independent Clinical Services LTD,Grant Aid and Donations,Adult Social Care Operations,818.57
30/04/2021,1265222,Independent Clinical Services LTD,Grant Aid and Donations,Adult Social Care Operations,769.29
30/04/2021,1265222,Independent Clinical Services LTD,Grant Aid and Donations,Adult Social Care Operations,768.73
30/04/2021,1265222,Independent Clinical Services LTD,Grant Aid and Donations,Adult Social Care Operations,813.41
30/04/2021,1265222,Independent Clinical Services LTD,Grant Aid and Donations,Adult Social Care Operations,825.62
30/04/2021,1265222,Independent Clinical Services LTD,Grant Aid and Donations,Adult Social Care Operations,722.66
30/04/2021,1265222,Independent Clinical Services LTD,Grant Aid and Donations,Adult Social Care Operations,822.1
30/04/2021,1265222,Independent Clinical Services LTD,Grant Aid and Donations,Adult Social Care Operations,822.1
30/04/2021,1265222,Independent Clinical Services LTD,Grant Aid and Donations,Adult Social Care Operations,779.5
30/04/2021,1265222,Independent Clinical Services LTD,Grant Aid and Donations,Adult Social Care Operations,785.31
30/04/2021,1265222,Independent Clinical Services LTD,Grant Aid and Donations,Adult Social Care Operations,822.1
30/04/2021,1265222,Independent Clinical Services LTD,Grant Aid and Donations,Adult Social Care Operations,822.1
15/06/2021,1268327,Laila's Creole Cuisine,B*SLA - HTLC (teaching& leadership coll,Adult Social Care Operations,615
01/04/2021,1278336,Linknurse Agency Ltd,Grant Aid and Donations,Adult Social Care Operations,5360
26/05/2021,1247650,London Care Ltd,Grant Aid and Donations,Adult Social Care Operations,16473.12
26/05/2021,1247853,Look Ahead Housing & Care Ltd,Grant Aid and Donations,Adult Social Care Operations,4450
26/05/2021,1247905,Medequip Assistive Technology Ltd,Grant Aid and Donations,Adult Social Care Operations,3261.5
26/05/2021,1266168,Midshire Care LTD,Grant Aid and Donations,Adult Social Care Operations,2133.82
26/05/2021,1274153,Notting Hill Genesis,Grant Aid and Donations,Adult Social Care Operations,3755.53
26/05/2021,1244971,Octavia Housing (Main Account),Grant Aid and Donations,Adult Social Care Operations,1792.41
26/05/2021,1248618,Riverside Echg,Grant Aid and Donations,Adult Social Care Operations,1070
02/06/2021,1279054,Safeairquality Limited,Hired and Contracted Services,Adult Social Care Operations,16800
26/05/2021,1243532,Sanctuary Care Ltd,Grant Aid and Donations,Adult Social Care Operations,5754.51
26/05/2021,1243532,Sanctuary Care Ltd,Grant Aid and Donations,Adult Social Care Operations,10508.24
26/05/2021,1243532,Sanctuary Care Ltd,Grant Aid and Donations,Adult Social Care Operations,4504.44
26/05/2021,1243532,Sanctuary Care Ltd,Grant Aid and Donations,Adult Social Care Operations,10007.85
26/05/2021,1243532,Sanctuary Care Ltd,Grant Aid and Donations,Adult Social Care Operations,8225.49
26/05/2021,1243532,Sanctuary Care Ltd,Grant Aid and Donations,Adult Social Care Operations,7833.8
26/05/2021,1245584,Single Homeless Project,Grant Aid and Donations,Adult Social Care Operations,4050
26/05/2021,1243548,St Georges Nursing Home Ltd,Grant Aid and Donations,Adult Social Care Operations,8617.18
26/05/2021,1243548,St Georges Nursing Home Ltd,Grant Aid and Donations,Adult Social Care Operations,11008.63
26/05/2021,1245636,St Mungos Broadway (Grants &,Grant Aid and Donations,Adult Social Care Operations,2400
26/05/2021,1249232,Vincentian Care Plus,Grant Aid and Donations,Adult Social Care Operations,13656.47
26/05/2021,1249291,Westminster Society,Grant Aid and Donations,Adult Social Care Operations,1250.98
26/05/2021,1249291,Westminster Society,Grant Aid and Donations,Adult Social Care Operations,1000.78
26/05/2021,1249291,Westminster Society,Grant Aid and Donations,Adult Social Care Operations,979.23
26/05/2021,1249291,Westminster Society,Grant Aid and Donations,Adult Social Care Operations,1000.78
26/05/2021,1249291,Westminster Society,Grant Aid and Donations,Adult Social Care Operations,783.38
26/05/2021,1249291,Westminster Society,Grant Aid and Donations,Adult Social Care Operations,587.54
26/05/2021,1249291,Westminster Society,Grant Aid and Donations,Adult Social Care Operations,783.38
26/05/2021,1249291,Westminster Society,Grant Aid and Donations,Adult Social Care Operations,979.23
26/05/2021,1249291,Westminster Society,Grant Aid and Donations,Adult Social Care Operations,750.59
26/05/2021,1249291,Westminster Society,Grant Aid and Donations,Adult Social Care Operations,11437.29
26/05/2021,1249291,Westminster Society,Grant Aid and Donations,Adult Social Care Operations,1250.98
26/05/2021,1243566,Yarrow Housing Ltd,Grant Aid and Donations,Adult Social Care Operations,1501.18
26/05/2021,1243566,Yarrow Housing Ltd,Grant Aid and Donations,Adult Social Care Operations,1175.07
26/05/2021,1249317,Zocalo Ltd T/as Bluebird Care,Grant Aid and Donations,Adult Social Care Operations,7767.12
01/04/2021,1244309,Doro Care Ltd,###,Bi-Borough Director of Integrated Care,936
01/04/2021,1244309,Doro Care Ltd,###,Bi-Borough Director of Integrated Care,1050
19/04/2021,1244309,Doro Care Ltd,###,Bi-Borough Director of Integrated Care,988
17/05/2021,1244309,Doro Care Ltd,###,Bi-Borough Director of Integrated Care,9450
17/05/2021,1244309,Doro Care Ltd,###,Bi-Borough Director of Integrated Care,700
18/05/2021,1244309,Doro Care Ltd,###,Bi-Borough Director of Integrated Care,1116
17/06/2021,1244309,Doro Care Ltd,###,Bi-Borough Director of Integrated Care,1216
17/05/2021,1246138,Tunstall Healthcare (UK) Ltd (Use,###,Bi-Borough Director of Integrated Care,1105
15/04/2021,1256112,Worcestershire Telecare Ltd,Hired and Contracted Services,Bi-Borough Director of Integrated Care,5992.98
20/05/2021,1256112,Worcestershire Telecare Ltd,Hired and Contracted Services,Bi-Borough Director of Integrated Care,4880.04
25/05/2021,1273817,GCH Alan Morkill House Ltd,Hired and Contracted Services,Bi-Borough Director of Integrated Care,379464
25/05/2021,1273817,GCH Alan Morkill House Ltd,Hired and Contracted Services,Bi-Borough Director of Integrated Care,230389
25/05/2021,1273817,GCH Alan Morkill House Ltd,Hired and Contracted Services,Bi-Borough Director of Integrated Care,379464
28/06/2021,1273817,GCH Alan Morkill House Ltd,Hired and Contracted Services,Bi-Borough Director of Integrated Care,154000
26/05/2021,1263854,Maria Takaendisa Consultancy Ltd,Training related expenditure,Bi-Borough Director of Integrated Care,500
27/05/2021,1261718,WhiteHat Group Ltd,Training related expenditure,Bi-Borough Director of Integrated Care,1000
15/06/2021,1255843,A.I. Care Services Ltd,,Bi-Borough Director of Integrated Care,536.96
28/04/2021,1271174,ASPECTS 2 LIMITED,,Bi-Borough Director of Integrated Care,7352.14
26/05/2021,1271174,ASPECTS 2 LIMITED,,Bi-Borough Director of Integrated Care,8234.4
23/06/2021,1271174,ASPECTS 2 LIMITED,,Bi-Borough Director of Integrated Care,8234.4
28/04/2021,1243851,Accomplish Group Ltd,,Bi-Borough Director of Integrated Care,7926.25
28/04/2021,1243851,Accomplish Group Ltd,,Bi-Borough Director of Integrated Care,7926.25
28/04/2021,1243851,Accomplish Group Ltd,,Bi-Borough Director of Integrated Care,6025.71
26/05/2021,1243851,Accomplish Group Ltd,,Bi-Borough Director of Integrated Care,8877.4
26/05/2021,1243851,Accomplish Group Ltd,,Bi-Borough Director of Integrated Care,8877.4
26/05/2021,1243851,Accomplish Group Ltd,,Bi-Borough Director of Integrated Care,6748.8
23/06/2021,1243851,Accomplish Group Ltd,,Bi-Borough Director of Integrated Care,8877.4
23/06/2021,1243851,Accomplish Group Ltd,,Bi-Borough Director of Integrated Care,8877.4
23/06/2021,1243851,Accomplish Group Ltd,,Bi-Borough Director of Integrated Care,6748.8
28/04/2021,1243435,Acorn Village,,Bi-Borough Director of Integrated Care,4661.68
26/05/2021,1243435,Acorn Village,,Bi-Borough Director of Integrated Care,5221.08
23/06/2021,1243435,Acorn Village,,Bi-Borough Director of Integrated Care,5221.08
28/04/2021,1243942,Aspens Charities,,Bi-Borough Director of Integrated Care,4862.43
26/05/2021,1243942,Aspens Charities,,Bi-Borough Director of Integrated Care,5445.92
23/06/2021,1243942,Aspens Charities,,Bi-Borough Director of Integrated Care,5445.92
28/04/2021,1243961,Autism Anglia,,Bi-Borough Director of Integrated Care,9503.57
26/05/2021,1243961,Autism Anglia,,Bi-Borough Director of Integrated Care,10644
23/06/2021,1243961,Autism Anglia,,Bi-Borough Director of Integrated Care,10644
28/04/2021,1243962,Autism London,,Bi-Borough Director of Integrated Care,612.07
28/04/2021,1243962,Autism London,,Bi-Borough Director of Integrated Care,4296.43
26/05/2021,1243962,Autism London,,Bi-Borough Director of Integrated Care,4812
26/05/2021,1243962,Autism London,,Bi-Borough Director of Integrated Care,685.52
23/06/2021,1243962,Autism London,,Bi-Borough Director of Integrated Care,685.52
23/06/2021,1243962,Autism London,,Bi-Borough Director of Integrated Care,4812
28/04/2021,1243444,Broadham Care Ltd,,Bi-Borough Director of Integrated Care,5535.71
28/04/2021,1243444,Broadham Care Ltd,,Bi-Borough Director of Integrated Care,1250
26/05/2021,1243444,Broadham Care Ltd,,Bi-Borough Director of Integrated Care,1400
26/05/2021,1243444,Broadham Care Ltd,,Bi-Borough Director of Integrated Care,6200
23/06/2021,1243444,Broadham Care Ltd,,Bi-Borough Director of Integrated Care,6200
23/06/2021,1243444,Broadham Care Ltd,,Bi-Borough Director of Integrated Care,1400
28/04/2021,1243445,Broadstreet House Limited,,Bi-Borough Director of Integrated Care,3657.14
26/05/2021,1243445,Broadstreet House Limited,,Bi-Borough Director of Integrated Care,4096
23/06/2021,1243445,Broadstreet House Limited,,Bi-Borough Director of Integrated Care,4096
28/04/2021,1246286,Brunswick Supported Living,,Bi-Borough Director of Integrated Care,2347.57
26/05/2021,1246286,Brunswick Supported Living,,Bi-Borough Director of Integrated Care,2629.28
23/06/2021,1246286,Brunswick Supported Living,,Bi-Borough Director of Integrated Care,2629.28
28/04/2021,1273390,CHILTERN SUPPORT & HOUSING LTD,,Bi-Borough Director of Integrated Care,10205
26/05/2021,1273390,CHILTERN SUPPORT & HOUSING LTD,,Bi-Borough Director of Integrated Care,11429.6
23/06/2021,1273390,CHILTERN SUPPORT & HOUSING LTD,,Bi-Borough Director of Integrated Care,11429.6
28/04/2021,1244092,Cambrian Learning Disabilities Ltd,,Bi-Borough Director of Integrated Care,5080.36
26/05/2021,1244092,Cambrian Learning Disabilities Ltd,,Bi-Borough Director of Integrated Care,5690
23/06/2021,1244092,Cambrian Learning Disabilities Ltd,,Bi-Borough Director of Integrated Care,5690
14/04/2021,1243795,Cambs & Peterborough Mental,B*Voluntary-Spot-V Dep-Enhanced - do not u,Bi-Borough Director of Integrated Care,568.14
24/05/2021,1243795,Cambs & Peterborough Mental,B*Voluntary-Spot-V Dep-Enhanced - do not u,Bi-Borough Director of Integrated Care,568.14
09/06/2021,1243795,Cambs & Peterborough Mental,B*Voluntary-Spot-V Dep-Enhanced - do not u,Bi-Borough Director of Integrated Care,568.14
28/04/2021,1246321,Camphill Village Trust,,Bi-Borough Director of Integrated Care,3554.54
26/05/2021,1246321,Camphill Village Trust,,Bi-Borough Director of Integrated Care,3981.08
23/06/2021,1246321,Camphill Village Trust,,Bi-Borough Director of Integrated Care,3981.08
28/04/2021,1246324,Candour Care Services (Broadview),,Bi-Borough Director of Integrated Care,6638.32
26/05/2021,1246324,Candour Care Services (Broadview),,Bi-Borough Director of Integrated Care,7434.92
23/06/2021,1246324,Candour Care Services (Broadview),,Bi-Borough Director of Integrated Care,7434.92
28/04/2021,1246327,Canterbury Oast Trust Ltd,,Bi-Borough Director of Integrated Care,1125
26/05/2021,1246327,Canterbury Oast Trust Ltd,,Bi-Borough Director of Integrated Care,1260
23/06/2021,1246327,Canterbury Oast Trust Ltd,,Bi-Borough Director of Integrated Care,1260
28/04/2021,1259100,Care Assist Limited,,Bi-Borough Director of Integrated Care,6930
28/04/2021,1259100,Care Assist Limited,,Bi-Borough Director of Integrated Care,6930
26/05/2021,1259100,Care Assist Limited,,Bi-Borough Director of Integrated Care,7761.6
26/05/2021,1259100,Care Assist Limited,,Bi-Borough Director of Integrated Care,7761.6
23/06/2021,1259100,Care Assist Limited,,Bi-Borough Director of Integrated Care,7761.6
23/06/2021,1259100,Care Assist Limited,,Bi-Borough Director of Integrated Care,7761.6
23/06/2021,1245091,Care UK Community Partnerships Ltd,,Bi-Borough Director of Integrated Care,9003.42
23/06/2021,1245091,Care UK Community Partnerships Ltd,,Bi-Borough Director of Integrated Care,116518.37
28/04/2021,1246339,Caretech Community Services Ltd,,Bi-Borough Director of Integrated Care,4803.54
28/04/2021,1246339,Caretech Community Services Ltd,,Bi-Borough Director of Integrated Care,881.61
28/04/2021,1246339,Caretech Community Services Ltd,,Bi-Borough Director of Integrated Care,1183.04
28/04/2021,1246339,Caretech Community Services Ltd,,Bi-Borough Director of Integrated Care,4803.54
26/05/2021,1246339,Caretech Community Services Ltd,,Bi-Borough Director of Integrated Care,5379.96
26/05/2021,1246339,Caretech Community Services Ltd,,Bi-Borough Director of Integrated Care,987.4
26/05/2021,1246339,Caretech Community Services Ltd,,Bi-Borough Director of Integrated Care,1325
26/05/2021,1246339,Caretech Community Services Ltd,,Bi-Borough Director of Integrated Care,5379.96
23/06/2021,1246339,Caretech Community Services Ltd,,Bi-Borough Director of Integrated Care,5379.96
23/06/2021,1246339,Caretech Community Services Ltd,,Bi-Borough Director of Integrated Care,987.4
23/06/2021,1246339,Caretech Community Services Ltd,,Bi-Borough Director of Integrated Care,1325
23/06/2021,1246339,Caretech Community Services Ltd,,Bi-Borough Director of Integrated Care,5379.96
23/06/2021,1246339,Caretech Community Services Ltd,,Bi-Borough Director of Integrated Care,305712.6
23/06/2021,1246339,Caretech Community Services Ltd,,Bi-Borough Director of Integrated Care,309695.1
28/04/2021,1276470,Certitude (Support for Living),,Bi-Borough Director of Integrated Care,12017.57
28/04/2021,1276470,Certitude (Support for Living),,Bi-Borough Director of Integrated Care,4909.46
28/04/2021,1276470,Certitude (Support for Living),,Bi-Borough Director of Integrated Care,6125.96
28/04/2021,1276470,Certitude (Support for Living),,Bi-Borough Director of Integrated Care,13265.71
28/04/2021,1276470,Certitude (Support for Living),,Bi-Borough Director of Integrated Care,6125.96
28/04/2021,1276470,Certitude (Support for Living),,Bi-Borough Director of Integrated Care,13848.82
28/04/2021,1276470,Certitude (Support for Living),,Bi-Borough Director of Integrated Care,2356.79
28/04/2021,1276470,Certitude (Support for Living),,Bi-Borough Director of Integrated Care,5463.61
26/05/2021,1276470,Certitude (Support for Living),,Bi-Borough Director of Integrated Care,13459.68
26/05/2021,1276470,Certitude (Support for Living),,Bi-Borough Director of Integrated Care,5498.6
26/05/2021,1276470,Certitude (Support for Living),,Bi-Borough Director of Integrated Care,6861.08
26/05/2021,1276470,Certitude (Support for Living),,Bi-Borough Director of Integrated Care,14857.6
26/05/2021,1276470,Certitude (Support for Living),,Bi-Borough Director of Integrated Care,6861.08
26/05/2021,1276470,Certitude (Support for Living),,Bi-Borough Director of Integrated Care,15510.68
26/05/2021,1276470,Certitude (Support for Living),,Bi-Borough Director of Integrated Care,6119.24
26/05/2021,1276470,Certitude (Support for Living),,Bi-Borough Director of Integrated Care,2639.6
23/06/2021,1276470,Certitude (Support for Living),,Bi-Borough Director of Integrated Care,6861.08
23/06/2021,1276470,Certitude (Support for Living),,Bi-Borough Director of Integrated Care,14857.6
23/06/2021,1276470,Certitude (Support for Living),,Bi-Borough Director of Integrated Care,6861.08
23/06/2021,1276470,Certitude (Support for Living),,Bi-Borough Director of Integrated Care,15510.68
23/06/2021,1276470,Certitude (Support for Living),,Bi-Borough Director of Integrated Care,48886.72
23/06/2021,1276470,Certitude (Support for Living),,Bi-Borough Director of Integrated Care,2639.6
23/06/2021,1276470,Certitude (Support for Living),,Bi-Borough Director of Integrated Care,6119.24
23/06/2021,1276470,Certitude (Support for Living),,Bi-Borough Director of Integrated Care,13459.68
23/06/2021,1276470,Certitude (Support for Living),,Bi-Borough Director of Integrated Care,5498.6
28/04/2021,1244167,Choice Support,,Bi-Borough Director of Integrated Care,7978.57
26/05/2021,1244167,Choice Support,,Bi-Borough Director of Integrated Care,8936
23/06/2021,1244167,Choice Support,,Bi-Borough Director of Integrated Care,8936
28/04/2021,1243457,Cmg Homes Ltd - The Care House,,Bi-Borough Director of Integrated Care,5555.54
28/04/2021,1243457,Cmg Homes Ltd - The Care House,,Bi-Borough Director of Integrated Care,8296.96
26/05/2021,1243457,Cmg Homes Ltd - The Care House,,Bi-Borough Director of Integrated Care,6222.2
26/05/2021,1243457,Cmg Homes Ltd - The Care House,,Bi-Borough Director of Integrated Care,9292.6
23/06/2021,1243457,Cmg Homes Ltd - The Care House,,Bi-Borough Director of Integrated Care,6222.2
23/06/2021,1243457,Cmg Homes Ltd - The Care House,,Bi-Borough Director of Integrated Care,9292.6
28/04/2021,1243458,Cocklebury Farmhouse Homes Ltd,,Bi-Borough Director of Integrated Care,6275
28/04/2021,1243458,Cocklebury Farmhouse Homes Ltd,,Bi-Borough Director of Integrated Care,4421.43
28/04/2021,1243458,Cocklebury Farmhouse Homes Ltd,,Bi-Borough Director of Integrated Care,4942.86
28/04/2021,1243458,Cocklebury Farmhouse Homes Ltd,,Bi-Borough Director of Integrated Care,4971.43
28/04/2021,1243458,Cocklebury Farmhouse Homes Ltd,,Bi-Borough Director of Integrated Care,5721.43
26/05/2021,1243458,Cocklebury Farmhouse Homes Ltd,,Bi-Borough Director of Integrated Care,7028
26/05/2021,1243458,Cocklebury Farmhouse Homes Ltd,,Bi-Borough Director of Integrated Care,4952
26/05/2021,1243458,Cocklebury Farmhouse Homes Ltd,,Bi-Borough Director of Integrated Care,5536
26/05/2021,1243458,Cocklebury Farmhouse Homes Ltd,,Bi-Borough Director of Integrated Care,5568
26/05/2021,1243458,Cocklebury Farmhouse Homes Ltd,,Bi-Borough Director of Integrated Care,6408
23/06/2021,1243458,Cocklebury Farmhouse Homes Ltd,,Bi-Borough Director of Integrated Care,5536
23/06/2021,1243458,Cocklebury Farmhouse Homes Ltd,,Bi-Borough Director of Integrated Care,5568
23/06/2021,1243458,Cocklebury Farmhouse Homes Ltd,,Bi-Borough Director of Integrated Care,4952
23/06/2021,1243458,Cocklebury Farmhouse Homes Ltd,,Bi-Borough Director of Integrated Care,6408
23/06/2021,1243458,Cocklebury Farmhouse Homes Ltd,,Bi-Borough Director of Integrated Care,7028
28/04/2021,1244212,PERSONAL PAYMENTS,,Bi-Borough Director of Integrated Care,2964.29
28/04/2021,1244212,PERSONAL PAYMENTS,,Bi-Borough Director of Integrated Care,4303.57
26/05/2021,1244212,PERSONAL PAYMENTS,,Bi-Borough Director of Integrated Care,4820
26/05/2021,1244212,PERSONAL PAYMENTS,,Bi-Borough Director of Integrated Care,3320
23/06/2021,1244212,PERSONAL PAYMENTS,,Bi-Borough Director of Integrated Care,3320
23/06/2021,1244212,PERSONAL PAYMENTS,,Bi-Borough Director of Integrated Care,4820
28/04/2021,1243470,Downing (Chertsey Road) Ltd,,Bi-Borough Director of Integrated Care,5331.43
26/05/2021,1243470,Downing (Chertsey Road) Ltd,,Bi-Borough Director of Integrated Care,5971.2
23/06/2021,1243470,Downing (Chertsey Road) Ltd,,Bi-Borough Director of Integrated Care,5971.2
28/04/2021,1243473,Drs Care Homes Ltd,,Bi-Borough Director of Integrated Care,2842.36
26/05/2021,1243473,Drs Care Homes Ltd,,Bi-Borough Director of Integrated Care,3183.44
23/06/2021,1243473,Drs Care Homes Ltd,,Bi-Borough Director of Integrated Care,3069.74
28/04/2021,1243474,Duckyls Farm Centre,,Bi-Borough Director of Integrated Care,2642.07
26/05/2021,1243474,Duckyls Farm Centre,,Bi-Borough Director of Integrated Care,2959.12
23/06/2021,1243474,Duckyls Farm Centre,,Bi-Borough Director of Integrated Care,2959.12
28/04/2021,1245108,Elysium Healthcare No 2 Ltd,,Bi-Borough Director of Integrated Care,7787.68
26/05/2021,1245108,Elysium Healthcare No 2 Ltd,,Bi-Borough Director of Integrated Care,8722.2
23/06/2021,1245108,Elysium Healthcare No 2 Ltd,,Bi-Borough Director of Integrated Care,8722.2
07/04/2021,1246934,Equal People Mencap (Kensington &,B*Voluntary-Spot-V Dep-Enhanced - do not u,Bi-Borough Director of Integrated Care,2304
11/05/2021,1246934,Equal People Mencap (Kensington &,B*Voluntary-Spot-V Dep-Enhanced - do not u,Bi-Borough Director of Integrated Care,2880
28/04/2021,1245110,Eric Patrick Care Ltd,,Bi-Borough Director of Integrated Care,7025
26/05/2021,1245110,Eric Patrick Care Ltd,,Bi-Borough Director of Integrated Care,7868
23/06/2021,1245110,Eric Patrick Care Ltd,,Bi-Borough Director of Integrated Care,7868
20/04/2021,1252498,PERSONAL PAYMENTS,Legal Costs,Bi-Borough Director of Integrated Care,850
28/04/2021,1243483,Greenview Healthcare Ltd,,Bi-Borough Director of Integrated Care,4471
26/05/2021,1243483,Greenview Healthcare Ltd,,Bi-Borough Director of Integrated Care,4471
23/06/2021,1243483,Greenview Healthcare Ltd,,Bi-Borough Director of Integrated Care,4471
28/04/2021,1243485,Grove Care Partnership Ltd,,Bi-Borough Director of Integrated Care,7189.14
26/05/2021,1243485,Grove Care Partnership Ltd,,Bi-Borough Director of Integrated Care,8051.84
23/06/2021,1243485,Grove Care Partnership Ltd,,Bi-Borough Director of Integrated Care,8051.84
28/04/2021,1258503,Guyatt House Care Limited,,Bi-Borough Director of Integrated Care,7648.35
26/05/2021,1258503,Guyatt House Care Limited,,Bi-Borough Director of Integrated Care,8566.16
23/06/2021,1258503,Guyatt House Care Limited,,Bi-Borough Director of Integrated Care,8566.16
28/04/2021,1244549,HF Trust Ltd,,Bi-Borough Director of Integrated Care,10514.07
28/04/2021,1244549,HF Trust Ltd,,Bi-Borough Director of Integrated Care,3160.07
26/05/2021,1244549,HF Trust Ltd,,Bi-Borough Director of Integrated Care,11775.76
26/05/2021,1244549,HF Trust Ltd,,Bi-Borough Director of Integrated Care,3539.28
23/06/2021,1244549,HF Trust Ltd,,Bi-Borough Director of Integrated Care,3539.28
23/06/2021,1244549,HF Trust Ltd,,Bi-Borough Director of Integrated Care,11775.76
28/04/2021,1244515,Hampshire Autistic Society,,Bi-Borough Director of Integrated Care,4738.46
26/05/2021,1244515,Hampshire Autistic Society,,Bi-Borough Director of Integrated Care,5307.08
23/06/2021,1244515,Hampshire Autistic Society,,Bi-Borough Director of Integrated Care,5307.08
28/04/2021,1243490,Haydon Park Lodge Ltd,,Bi-Borough Director of Integrated Care,3571.43
26/05/2021,1243490,Haydon Park Lodge Ltd,,Bi-Borough Director of Integrated Care,4000
23/06/2021,1243490,Haydon Park Lodge Ltd,,Bi-Borough Director of Integrated Care,4000
28/04/2021,1260257,Hazel Homes for Autism Ltd,,Bi-Borough Director of Integrated Care,768.75
28/04/2021,1260257,Hazel Homes for Autism Ltd,,Bi-Borough Director of Integrated Care,13290.39
26/05/2021,1260257,Hazel Homes for Autism Ltd,,Bi-Borough Director of Integrated Care,861
26/05/2021,1260257,Hazel Homes for Autism Ltd,,Bi-Borough Director of Integrated Care,14885.24
23/06/2021,1260257,Hazel Homes for Autism Ltd,,Bi-Borough Director of Integrated Care,14885.24
23/06/2021,1260257,Hazel Homes for Autism Ltd,,Bi-Borough Director of Integrated Care,861
14/04/2021,1247257,Health Vision Uk,,Bi-Borough Director of Integrated Care,2023.14
14/04/2021,1247257,Health Vision Uk,,Bi-Borough Director of Integrated Care,2023.14
14/04/2021,1247257,Health Vision Uk,,Bi-Borough Director of Integrated Care,1208.47
04/05/2021,1247257,Health Vision Uk,,Bi-Borough Director of Integrated Care,534.64
04/05/2021,1247257,Health Vision Uk,,Bi-Borough Director of Integrated Care,510
06/05/2021,1247257,Health Vision Uk,,Bi-Borough Director of Integrated Care,2029.98
06/05/2021,1247257,Health Vision Uk,,Bi-Borough Director of Integrated Care,2029.98
06/05/2021,1247257,Health Vision Uk,,Bi-Borough Director of Integrated Care,1885.31
17/06/2021,1247257,Health Vision Uk,,Bi-Borough Director of Integrated Care,2061.69
17/06/2021,1247257,Health Vision Uk,,Bi-Borough Director of Integrated Care,2061.69
28/04/2021,1245125,Heathcotes (Southern) Ltd,,Bi-Borough Director of Integrated Care,7085
28/04/2021,1245125,Heathcotes (Southern) Ltd,,Bi-Borough Director of Integrated Care,13248.86
26/05/2021,1245125,Heathcotes (Southern) Ltd,,Bi-Borough Director of Integrated Care,7935.2
26/05/2021,1245125,Heathcotes (Southern) Ltd,,Bi-Borough Director of Integrated Care,14838.72
23/06/2021,1245125,Heathcotes (Southern) Ltd,,Bi-Borough Director of Integrated Care,14838.72
23/06/2021,1245125,Heathcotes (Southern) Ltd,,Bi-Borough Director of Integrated Care,7935.2
28/04/2021,1267460,Hunters Lodge Care Home,,Bi-Borough Director of Integrated Care,3509.5
26/05/2021,1267460,Hunters Lodge Care Home,,Bi-Borough Director of Integrated Care,3930.64
23/06/2021,1267460,Hunters Lodge Care Home,,Bi-Borough Director of Integrated Care,3930.64
09/04/2021,1247526,Integrity Care and Support Ltd,B*Voluntary-Spot-V Dep-Enhanced - do not u,Bi-Borough Director of Integrated Care,948
09/04/2021,1247526,Integrity Care and Support Ltd,B*Voluntary-Spot-V Dep-Enhanced - do not u,Bi-Borough Director of Integrated Care,790
09/04/2021,1247526,Integrity Care and Support Ltd,B*Voluntary-Spot-V Dep-Enhanced - do not u,Bi-Borough Director of Integrated Care,1106
09/04/2021,1247526,Integrity Care and Support Ltd,B*Voluntary-Spot-V Dep-Enhanced - do not u,Bi-Borough Director of Integrated Care,1027
09/04/2021,1247526,Integrity Care and Support Ltd,B*Voluntary-Spot-V Dep-Enhanced - do not u,Bi-Borough Director of Integrated Care,1580
09/04/2021,1247526,Integrity Care and Support Ltd,B*Voluntary-Spot-V Dep-Enhanced - do not u,Bi-Borough Director of Integrated Care,711
09/04/2021,1247526,Integrity Care and Support Ltd,B*Voluntary-Spot-V Dep-Enhanced - do not u,Bi-Borough Director of Integrated Care,1106
09/04/2021,1247526,Integrity Care and Support Ltd,B*Voluntary-Spot-V Dep-Enhanced - do not u,Bi-Borough Director of Integrated Care,948
09/04/2021,1247526,Integrity Care and Support Ltd,B*Voluntary-Spot-V Dep-Enhanced - do not u,Bi-Borough Director of Integrated Care,1896
09/04/2021,1247526,Integrity Care and Support Ltd,B*Voluntary-Spot-V Dep-Enhanced - do not u,Bi-Borough Director of Integrated Care,711
09/04/2021,1247526,Integrity Care and Support Ltd,B*Voluntary-Spot-V Dep-Enhanced - do not u,Bi-Borough Director of Integrated Care,1185
09/04/2021,1247526,Integrity Care and Support Ltd,B*Voluntary-Spot-V Dep-Enhanced - do not u,Bi-Borough Director of Integrated Care,2212
09/04/2021,1247526,Integrity Care and Support Ltd,B*Voluntary-Spot-V Dep-Enhanced - do not u,Bi-Borough Director of Integrated Care,948
09/04/2021,1247526,Integrity Care and Support Ltd,B*Voluntary-Spot-V Dep-Enhanced - do not u,Bi-Borough Director of Integrated Care,1382.5
09/04/2021,1247526,Integrity Care and Support Ltd,B*Voluntary-Spot-V Dep-Enhanced - do not u,Bi-Borough Director of Integrated Care,1264
22/04/2021,1247526,Integrity Care and Support Ltd,B*Voluntary-Spot-V Dep-Enhanced - do not u,Bi-Borough Director of Integrated Care,1106
22/04/2021,1247526,Integrity Care and Support Ltd,B*Voluntary-Spot-V Dep-Enhanced - do not u,Bi-Borough Director of Integrated Care,790
22/04/2021,1247526,Integrity Care and Support Ltd,B*Voluntary-Spot-V Dep-Enhanced - do not u,Bi-Borough Director of Integrated Care,1896
22/04/2021,1247526,Integrity Care and Support Ltd,B*Voluntary-Spot-V Dep-Enhanced - do not u,Bi-Borough Director of Integrated Care,711
22/04/2021,1247526,Integrity Care and Support Ltd,B*Voluntary-Spot-V Dep-Enhanced - do not u,Bi-Borough Director of Integrated Care,948
22/04/2021,1247526,Integrity Care and Support Ltd,B*Voluntary-Spot-V Dep-Enhanced - do not u,Bi-Borough Director of Integrated Care,711
22/04/2021,1247526,Integrity Care and Support Ltd,B*Voluntary-Spot-V Dep-Enhanced - do not u,Bi-Borough Director of Integrated Care,1382.5
22/04/2021,1247526,Integrity Care and Support Ltd,B*Voluntary-Spot-V Dep-Enhanced - do not u,Bi-Borough Director of Integrated Care,1145.5
22/04/2021,1247526,Integrity Care and Support Ltd,B*Voluntary-Spot-V Dep-Enhanced - do not u,Bi-Borough Director of Integrated Care,1264
22/04/2021,1247526,Integrity Care and Support Ltd,B*Voluntary-Spot-V Dep-Enhanced - do not u,Bi-Borough Director of Integrated Care,948
22/04/2021,1247526,Integrity Care and Support Ltd,B*Voluntary-Spot-V Dep-Enhanced - do not u,Bi-Borough Director of Integrated Care,2212
22/04/2021,1247526,Integrity Care and Support Ltd,B*Voluntary-Spot-V Dep-Enhanced - do not u,Bi-Borough Director of Integrated Care,948
22/04/2021,1247526,Integrity Care and Support Ltd,B*Voluntary-Spot-V Dep-Enhanced - do not u,Bi-Borough Director of Integrated Care,1185
22/04/2021,1247526,Integrity Care and Support Ltd,B*Voluntary-Spot-V Dep-Enhanced - do not u,Bi-Borough Director of Integrated Care,1125.75
22/04/2021,1247526,Integrity Care and Support Ltd,B*Voluntary-Spot-V Dep-Enhanced - do not u,Bi-Borough Director of Integrated Care,1027
04/06/2021,1247526,Integrity Care and Support Ltd,B*Voluntary-Spot-V Dep-Enhanced - do not u,Bi-Borough Director of Integrated Care,1106
04/06/2021,1247526,Integrity Care and Support Ltd,B*Voluntary-Spot-V Dep-Enhanced - do not u,Bi-Borough Director of Integrated Care,1659
04/06/2021,1247526,Integrity Care and Support Ltd,B*Voluntary-Spot-V Dep-Enhanced - do not u,Bi-Borough Director of Integrated Care,1027
04/06/2021,1247526,Integrity Care and Support Ltd,B*Voluntary-Spot-V Dep-Enhanced - do not u,Bi-Borough Director of Integrated Care,948
04/06/2021,1247526,Integrity Care and Support Ltd,B*Voluntary-Spot-V Dep-Enhanced - do not u,Bi-Borough Director of Integrated Care,1264
04/06/2021,1247526,Integrity Care and Support Ltd,B*Voluntary-Spot-V Dep-Enhanced - do not u,Bi-Borough Director of Integrated Care,948
04/06/2021,1247526,Integrity Care and Support Ltd,B*Voluntary-Spot-V Dep-Enhanced - do not u,Bi-Borough Director of Integrated Care,1659
04/06/2021,1247526,Integrity Care and Support Ltd,B*Voluntary-Spot-V Dep-Enhanced - do not u,Bi-Borough Director of Integrated Care,1896
04/06/2021,1247526,Integrity Care and Support Ltd,B*Voluntary-Spot-V Dep-Enhanced - do not u,Bi-Borough Director of Integrated Care,1382.5
04/06/2021,1247526,Integrity Care and Support Ltd,B*Voluntary-Spot-V Dep-Enhanced - do not u,Bi-Borough Director of Integrated Care,790
04/06/2021,1247526,Integrity Care and Support Ltd,B*Voluntary-Spot-V Dep-Enhanced - do not u,Bi-Borough Director of Integrated Care,948
04/06/2021,1247526,Integrity Care and Support Ltd,B*Voluntary-Spot-V Dep-Enhanced - do not u,Bi-Borough Director of Integrated Care,2212
04/06/2021,1247526,Integrity Care and Support Ltd,B*Voluntary-Spot-V Dep-Enhanced - do not u,Bi-Borough Director of Integrated Care,711
04/06/2021,1247526,Integrity Care and Support Ltd,B*Voluntary-Spot-V Dep-Enhanced - do not u,Bi-Borough Director of Integrated Care,711
28/04/2021,1247598,Kisimul Group Ltd,,Bi-Borough Director of Integrated Care,12460.11
26/05/2021,1247598,Kisimul Group Ltd,,Bi-Borough Director of Integrated Care,13955.32
23/06/2021,1247598,Kisimul Group Ltd,,Bi-Borough Director of Integrated Care,13955.32
28/04/2021,1243503,Life Opportunities Trust,,Bi-Borough Director of Integrated Care,5535
28/04/2021,1243503,Life Opportunities Trust,,Bi-Borough Director of Integrated Care,3034.82
28/04/2021,1243503,Life Opportunities Trust,,Bi-Borough Director of Integrated Care,3034.82
28/04/2021,1243503,Life Opportunities Trust,,Bi-Borough Director of Integrated Care,3035.54
28/04/2021,1243503,Life Opportunities Trust,,Bi-Borough Director of Integrated Care,4621.43
28/04/2021,1243503,Life Opportunities Trust,,Bi-Borough Director of Integrated Care,5442.5
28/04/2021,1243503,Life Opportunities Trust,,Bi-Borough Director of Integrated Care,4163.39
26/05/2021,1243503,Life Opportunities Trust,,Bi-Borough Director of Integrated Care,4663
26/05/2021,1243503,Life Opportunities Trust,,Bi-Borough Director of Integrated Care,3399.8
26/05/2021,1243503,Life Opportunities Trust,,Bi-Borough Director of Integrated Care,6199.2
26/05/2021,1243503,Life Opportunities Trust,,Bi-Borough Director of Integrated Care,3399
26/05/2021,1243503,Life Opportunities Trust,,Bi-Borough Director of Integrated Care,5176
26/05/2021,1243503,Life Opportunities Trust,,Bi-Borough Director of Integrated Care,3399
26/05/2021,1243503,Life Opportunities Trust,,Bi-Borough Director of Integrated Care,6095.6
23/06/2021,1243503,Life Opportunities Trust,,Bi-Borough Director of Integrated Care,6199.2
23/06/2021,1243503,Life Opportunities Trust,,Bi-Borough Director of Integrated Care,3399
23/06/2021,1243503,Life Opportunities Trust,,Bi-Borough Director of Integrated Care,3399.8
23/06/2021,1243503,Life Opportunities Trust,,Bi-Borough Director of Integrated Care,3399
23/06/2021,1243503,Life Opportunities Trust,,Bi-Borough Director of Integrated Care,5176
23/06/2021,1243503,Life Opportunities Trust,,Bi-Borough Director of Integrated Care,6095.6
23/06/2021,1243503,Life Opportunities Trust,,Bi-Borough Director of Integrated Care,4663
28/04/2021,1243506,Lifeways Community Care Ltd,,Bi-Borough Director of Integrated Care,10386.61
28/04/2021,1243506,Lifeways Community Care Ltd,,Bi-Borough Director of Integrated Care,6036.5
26/05/2021,1243506,Lifeways Community Care Ltd,,Bi-Borough Director of Integrated Care,6760.88
26/05/2021,1243506,Lifeways Community Care Ltd,,Bi-Borough Director of Integrated Care,11633
23/06/2021,1243506,Lifeways Community Care Ltd,,Bi-Borough Director of Integrated Care,11633
23/06/2021,1243506,Lifeways Community Care Ltd,,Bi-Borough Director of Integrated Care,6760.88
28/04/2021,1244762,Livability,,Bi-Borough Director of Integrated Care,5517.86
26/05/2021,1244762,Livability,,Bi-Borough Director of Integrated Care,6180
23/06/2021,1244762,Livability,,Bi-Borough Director of Integrated Care,6180
30/04/2021,1245706,London Borough Of Merton,B*Voluntary-Spot-V Dep-Enhanced - do not u,Bi-Borough Director of Integrated Care,2884.8
30/04/2021,1245706,London Borough Of Merton,B*Voluntary-Spot-V Dep-Enhanced - do not u,Bi-Borough Director of Integrated Care,2764.6
30/04/2021,1245706,London Borough Of Merton,B*Voluntary-Spot-V Dep-Enhanced - do not u,Bi-Borough Director of Integrated Care,2884.8
30/04/2021,1245706,London Borough Of Merton,B*Voluntary-Spot-V Dep-Enhanced - do not u,Bi-Borough Director of Integrated Care,3005
09/04/2021,1247650,London Care Ltd,,Bi-Borough Director of Integrated Care,957.13
16/04/2021,1247650,London Care Ltd,,Bi-Borough Director of Integrated Care,1286.54
16/04/2021,1247650,London Care Ltd,,Bi-Borough Director of Integrated Care,693.49
16/04/2021,1247650,London Care Ltd,,Bi-Borough Director of Integrated Care,1497.46
27/04/2021,1247650,London Care Ltd,,Bi-Borough Director of Integrated Care,976.51
27/05/2021,1247650,London Care Ltd,,Bi-Borough Director of Integrated Care,949.38
15/06/2021,1247650,London Care Ltd,,Bi-Borough Director of Integrated Care,949.38
17/06/2021,1247650,London Care Ltd,,Bi-Borough Director of Integrated Care,1235.5
17/06/2021,1247650,London Care Ltd,,Bi-Borough Director of Integrated Care,698.94
17/06/2021,1247650,London Care Ltd,,Bi-Borough Director of Integrated Care,1525.96
17/06/2021,1247650,London Care Ltd,,Bi-Borough Director of Integrated Care,1509.28
28/06/2021,1247650,London Care Ltd,,Bi-Borough Director of Integrated Care,1288.93
28/06/2021,1247650,London Care Ltd,,Bi-Borough Director of Integrated Care,734.07
28/06/2021,1247650,London Care Ltd,,Bi-Borough Director of Integrated Care,1553.08
28/06/2021,1247650,London Care Ltd,,Bi-Borough Director of Integrated Care,1542.58
28/04/2021,1247651,London Care Partnership Ltd,,Bi-Borough Director of Integrated Care,7454.07
26/05/2021,1247651,London Care Partnership Ltd,,Bi-Borough Director of Integrated Care,8348.56
23/06/2021,1247651,London Care Partnership Ltd,,Bi-Borough Director of Integrated Care,8348.56
28/04/2021,1247656,London Cyrenians Housing Ltd,,Bi-Borough Director of Integrated Care,12750
26/05/2021,1247656,London Cyrenians Housing Ltd,,Bi-Borough Director of Integrated Care,14280
23/06/2021,1247656,London Cyrenians Housing Ltd,,Bi-Borough Director of Integrated Care,14280
17/04/2021,1247846,London Vip Cars,Payments to Transport Operators,Bi-Borough Director of Integrated Care,4703
25/05/2021,1247846,London Vip Cars,Payments to Transport Operators,Bi-Borough Director of Integrated Care,4050
28/06/2021,1247846,London Vip Cars,Payments to Transport Operators,Bi-Borough Director of Integrated Care,3236
28/04/2021,1247854,Look Ahead Housing & Care Ltd,,Bi-Borough Director of Integrated Care,2692.39
06/04/2021,1259132,MMR Home Care LTD,,Bi-Borough Director of Integrated Care,1146.04
06/04/2021,1259132,MMR Home Care LTD,,Bi-Borough Director of Integrated Care,1145.76
23/04/2021,1259132,MMR Home Care LTD,,Bi-Borough Director of Integrated Care,1146.04
23/04/2021,1259132,MMR Home Care LTD,,Bi-Borough Director of Integrated Care,1145.76
27/04/2021,1259132,MMR Home Care LTD,,Bi-Borough Director of Integrated Care,1604.26
27/04/2021,1259132,MMR Home Care LTD,,Bi-Borough Director of Integrated Care,1604.26
29/04/2021,1259132,MMR Home Care LTD,,Bi-Borough Director of Integrated Care,3208.52
04/05/2021,1259132,MMR Home Care LTD,,Bi-Borough Director of Integrated Care,1145.76
04/05/2021,1259132,MMR Home Care LTD,,Bi-Borough Director of Integrated Care,1146.04
18/05/2021,1259132,MMR Home Care LTD,,Bi-Borough Director of Integrated Care,1174.6
18/05/2021,1259132,MMR Home Care LTD,,Bi-Borough Director of Integrated Care,1174.6
07/06/2021,1259132,MMR Home Care LTD,,Bi-Borough Director of Integrated Care,1174.6
07/06/2021,1259132,MMR Home Care LTD,,Bi-Borough Director of Integrated Care,1174.6
16/06/2021,1259132,MMR Home Care LTD,,Bi-Borough Director of Integrated Care,1174.6
16/06/2021,1259132,MMR Home Care LTD,,Bi-Borough Director of Integrated Care,1174.6
28/06/2021,1259132,MMR Home Care LTD,,Bi-Borough Director of Integrated Care,1174.6
28/06/2021,1259132,MMR Home Care LTD,,Bi-Borough Director of Integrated Care,1174.6
28/04/2021,1245144,Methodist Homes For The Aged,,Bi-Borough Director of Integrated Care,2759.32
26/05/2021,1245144,Methodist Homes For The Aged,,Bi-Borough Director of Integrated Care,3118.3
26/05/2021,1245144,Methodist Homes For The Aged,B*PCC Management Fee Contribution,Bi-Borough Director of Integrated Care,2077.26
23/06/2021,1245144,Methodist Homes For The Aged,,Bi-Borough Director of Integrated Care,3105.16
28/04/2021,1247933,Minster Pathways Ltd,,Bi-Borough Director of Integrated Care,1114.29
28/04/2021,1247933,Minster Pathways Ltd,,Bi-Borough Director of Integrated Care,3128.57
26/05/2021,1247933,Minster Pathways Ltd,,Bi-Borough Director of Integrated Care,1248
26/05/2021,1247933,Minster Pathways Ltd,,Bi-Borough Director of Integrated Care,3504
23/06/2021,1247933,Minster Pathways Ltd,,Bi-Borough Director of Integrated Care,1248
23/06/2021,1247933,Minster Pathways Ltd,,Bi-Borough Director of Integrated Care,3504
28/04/2021,1244905,Nas Services Ltd (Residential),,Bi-Borough Director of Integrated Care,3624
28/04/2021,1244905,Nas Services Ltd (Residential),,Bi-Borough Director of Integrated Care,6607.21
28/04/2021,1244905,Nas Services Ltd (Residential),,Bi-Borough Director of Integrated Care,3017.25
28/04/2021,1244905,Nas Services Ltd (Residential),,Bi-Borough Director of Integrated Care,5088
28/04/2021,1244905,Nas Services Ltd (Residential),,Bi-Borough Director of Integrated Care,6908.93
05/05/2021,1244905,Nas Services Ltd (Residential),B*Voluntary-Spot-V Dep-Enhanced - do not u,Bi-Borough Director of Integrated Care,1418.44
05/05/2021,1244905,Nas Services Ltd (Residential),B*Voluntary-Spot-V Dep-Enhanced - do not u,Bi-Borough Director of Integrated Care,1247.28
05/05/2021,1244905,Nas Services Ltd (Residential),B*Voluntary-Spot-V Dep-Enhanced - do not u,Bi-Borough Director of Integrated Care,935.46
20/05/2021,1244905,Nas Services Ltd (Residential),B*Voluntary-Spot-V Dep-Enhanced - do not u,Bi-Borough Director of Integrated Care,1418.44
20/05/2021,1244905,Nas Services Ltd (Residential),B*Voluntary-Spot-V Dep-Enhanced - do not u,Bi-Borough Director of Integrated Care,1247.28
26/05/2021,1244905,Nas Services Ltd (Residential),,Bi-Borough Director of Integrated Care,5698.56
26/05/2021,1244905,Nas Services Ltd (Residential),,Bi-Borough Director of Integrated Care,4058.88
26/05/2021,1244905,Nas Services Ltd (Residential),,Bi-Borough Director of Integrated Care,3379.32
26/05/2021,1244905,Nas Services Ltd (Residential),,Bi-Borough Director of Integrated Care,7400.08
26/05/2021,1244905,Nas Services Ltd (Residential),,Bi-Borough Director of Integrated Care,7738
23/06/2021,1244905,Nas Services Ltd (Residential),,Bi-Borough Director of Integrated Care,4058.88
23/06/2021,1244905,Nas Services Ltd (Residential),,Bi-Borough Director of Integrated Care,5698.56
23/06/2021,1244905,Nas Services Ltd (Residential),,Bi-Borough Director of Integrated Care,3379.32
23/06/2021,1244905,Nas Services Ltd (Residential),,Bi-Borough Director of Integrated Care,7400.08
23/06/2021,1244905,Nas Services Ltd (Residential),,Bi-Borough Director of Integrated Care,7738
12/04/2021,1244906,Nas Services Ltd (Use 3009018),B*Voluntary-Spot-V Dep-Enhanced - do not u,Bi-Borough Director of Integrated Care,1275.47
12/04/2021,1244906,Nas Services Ltd (Use 3009018),B*Voluntary-Spot-V Dep-Enhanced - do not u,Bi-Borough Director of Integrated Care,2134
12/04/2021,1244906,Nas Services Ltd (Use 3009018),B*Voluntary-Spot-V Dep-Enhanced - do not u,Bi-Borough Director of Integrated Care,924.48
12/04/2021,1244906,Nas Services Ltd (Use 3009018),B*Voluntary-Spot-V Dep-Enhanced - do not u,Bi-Borough Director of Integrated Care,562.48
12/04/2021,1244906,Nas Services Ltd (Use 3009018),B*Voluntary-Spot-V Dep-Enhanced - do not u,Bi-Borough Director of Integrated Care,1254.24
12/04/2021,1244906,Nas Services Ltd (Use 3009018),B*Voluntary-Spot-V Dep-Enhanced - do not u,Bi-Borough Director of Integrated Care,2097.52
12/04/2021,1244906,Nas Services Ltd (Use 3009018),B*Voluntary-Spot-V Dep-Enhanced - do not u,Bi-Borough Director of Integrated Care,738.35
12/04/2021,1244906,Nas Services Ltd (Use 3009018),B*Voluntary-Spot-V Dep-Enhanced - do not u,Bi-Borough Director of Integrated Care,1951.68
12/04/2021,1244906,Nas Services Ltd (Use 3009018),B*Voluntary-Spot-V Dep-Enhanced - do not u,Bi-Borough Director of Integrated Care,2027.52
05/05/2021,1244906,Nas Services Ltd (Use 3009018),B*Voluntary-Spot-V Dep-Enhanced - do not u,Bi-Borough Director of Integrated Care,3146.28
05/05/2021,1244906,Nas Services Ltd (Use 3009018),B*Voluntary-Spot-V Dep-Enhanced - do not u,Bi-Borough Director of Integrated Care,872.24
05/05/2021,1244906,Nas Services Ltd (Use 3009018),B*Voluntary-Spot-V Dep-Enhanced - do not u,Bi-Borough Director of Integrated Care,1308.36
05/05/2021,1244906,Nas Services Ltd (Use 3009018),B*Voluntary-Spot-V Dep-Enhanced - do not u,Bi-Borough Director of Integrated Care,1772.04
05/05/2021,1244906,Nas Services Ltd (Use 3009018),B*Voluntary-Spot-V Dep-Enhanced - do not u,Bi-Borough Director of Integrated Care,2970.72
05/05/2021,1244906,Nas Services Ltd (Use 3009018),B*Voluntary-Spot-V Dep-Enhanced - do not u,Bi-Borough Director of Integrated Care,1124.96
05/05/2021,1244906,Nas Services Ltd (Use 3009018),B*Voluntary-Spot-V Dep-Enhanced - do not u,Bi-Borough Director of Integrated Care,2927.52
05/05/2021,1244906,Nas Services Ltd (Use 3009018),B*Voluntary-Spot-V Dep-Enhanced - do not u,Bi-Borough Director of Integrated Care,886.02
05/05/2021,1244906,Nas Services Ltd (Use 3009018),B*Voluntary-Spot-V Dep-Enhanced - do not u,Bi-Borough Director of Integrated Care,924.48
05/05/2021,1244906,Nas Services Ltd (Use 3009018),B*Voluntary-Spot-V Dep-Enhanced - do not u,Bi-Borough Director of Integrated Care,4879.2
05/05/2021,1244906,Nas Services Ltd (Use 3009018),B*Voluntary-Spot-V Dep-Enhanced - do not u,Bi-Borough Director of Integrated Care,2915.36
05/05/2021,1244906,Nas Services Ltd (Use 3009018),B*Voluntary-Spot-V Dep-Enhanced - do not u,Bi-Borough Director of Integrated Care,1848.96
05/05/2021,1244906,Nas Services Ltd (Use 3009018),B*Voluntary-Spot-V Dep-Enhanced - do not u,Bi-Borough Director of Integrated Care,5335
05/05/2021,1244906,Nas Services Ltd (Use 3009018),B*Voluntary-Spot-V Dep-Enhanced - do not u,Bi-Borough Director of Integrated Care,2027.52
05/05/2021,1244906,Nas Services Ltd (Use 3009018),B*Voluntary-Spot-V Dep-Enhanced - do not u,Bi-Borough Director of Integrated Care,562.48
05/05/2021,1244906,Nas Services Ltd (Use 3009018),B*Voluntary-Spot-V Dep-Enhanced - do not u,Bi-Borough Director of Integrated Care,1744.52
05/05/2021,1244906,Nas Services Ltd (Use 3009018),B*Voluntary-Spot-V Dep-Enhanced - do not u,Bi-Borough Director of Integrated Care,3201
05/05/2021,1244906,Nas Services Ltd (Use 3009018),B*Voluntary-Spot-V Dep-Enhanced - do not u,Bi-Borough Director of Integrated Care,5243.8
05/05/2021,1244906,Nas Services Ltd (Use 3009018),B*Voluntary-Spot-V Dep-Enhanced - do not u,Bi-Borough Director of Integrated Care,1639.89
05/05/2021,1244906,Nas Services Ltd (Use 3009018),B*Voluntary-Spot-V Dep-Enhanced - do not u,Bi-Borough Director of Integrated Care,1716.48
20/05/2021,1244906,Nas Services Ltd (Use 3009018),B*Voluntary-Spot-V Dep-Enhanced - do not u,Bi-Borough Director of Integrated Care,1124.96
20/05/2021,1244906,Nas Services Ltd (Use 3009018),B*Voluntary-Spot-V Dep-Enhanced - do not u,Bi-Borough Director of Integrated Care,5335
20/05/2021,1244906,Nas Services Ltd (Use 3009018),B*Voluntary-Spot-V Dep-Enhanced - do not u,Bi-Borough Director of Integrated Care,2027.52
20/05/2021,1244906,Nas Services Ltd (Use 3009018),B*Voluntary-Spot-V Dep-Enhanced - do not u,Bi-Borough Director of Integrated Care,1744.52
20/05/2021,1244906,Nas Services Ltd (Use 3009018),B*Voluntary-Spot-V Dep-Enhanced - do not u,Bi-Borough Director of Integrated Care,4879.2
20/05/2021,1244906,Nas Services Ltd (Use 3009018),B*Voluntary-Spot-V Dep-Enhanced - do not u,Bi-Borough Director of Integrated Care,2915.36
20/05/2021,1244906,Nas Services Ltd (Use 3009018),B*Voluntary-Spot-V Dep-Enhanced - do not u,Bi-Borough Director of Integrated Care,1308.36
20/05/2021,1244906,Nas Services Ltd (Use 3009018),B*Voluntary-Spot-V Dep-Enhanced - do not u,Bi-Borough Director of Integrated Care,5243.8
20/05/2021,1244906,Nas Services Ltd (Use 3009018),B*Voluntary-Spot-V Dep-Enhanced - do not u,Bi-Borough Director of Integrated Care,1772.04
20/05/2021,1244906,Nas Services Ltd (Use 3009018),B*Voluntary-Spot-V Dep-Enhanced - do not u,Bi-Borough Director of Integrated Care,2970.72
28/04/2021,1247147,Norwood Schools Ltd,,Bi-Borough Director of Integrated Care,5355.79
28/04/2021,1247147,Norwood Schools Ltd,,Bi-Borough Director of Integrated Care,4690.64
28/04/2021,1247147,Norwood Schools Ltd,,Bi-Borough Director of Integrated Care,7820.29
28/04/2021,1247147,Norwood Schools Ltd,,Bi-Borough Director of Integrated Care,6031.32
26/05/2021,1247147,Norwood Schools Ltd,,Bi-Borough Director of Integrated Care,6755.08
26/05/2021,1247147,Norwood Schools Ltd,,Bi-Borough Director of Integrated Care,5998.48
26/05/2021,1247147,Norwood Schools Ltd,,Bi-Borough Director of Integrated Care,5253.52
26/05/2021,1247147,Norwood Schools Ltd,,Bi-Borough Director of Integrated Care,8758.72
23/06/2021,1247147,Norwood Schools Ltd,,Bi-Borough Director of Integrated Care,5998.48
23/06/2021,1247147,Norwood Schools Ltd,,Bi-Borough Director of Integrated Care,4254.68
23/06/2021,1247147,Norwood Schools Ltd,,Bi-Borough Director of Integrated Care,5253.52
23/06/2021,1247147,Norwood Schools Ltd,,Bi-Borough Director of Integrated Care,8758.72
23/06/2021,1247147,Norwood Schools Ltd,,Bi-Borough Director of Integrated Care,6755.08
28/04/2021,1273024,Oakland Support Ltd,,Bi-Borough Director of Integrated Care,3890.17
28/04/2021,1273024,Oakland Support Ltd,,Bi-Borough Director of Integrated Care,2857.53
26/05/2021,1273024,Oakland Support Ltd,,Bi-Borough Director of Integrated Care,2151.8
26/05/2021,1273024,Oakland Support Ltd,,Bi-Borough Director of Integrated Care,2323.3
23/06/2021,1273024,Oakland Support Ltd,,Bi-Borough Director of Integrated Care,2151.8
23/06/2021,1273024,Oakland Support Ltd,,Bi-Borough Director of Integrated Care,2151.8
28/04/2021,1243520,Oakview Care (Berkshire) Ltd,,Bi-Borough Director of Integrated Care,5982.11
26/05/2021,1243520,Oakview Care (Berkshire) Ltd,,Bi-Borough Director of Integrated Care,6699.96
23/06/2021,1243520,Oakview Care (Berkshire) Ltd,,Bi-Borough Director of Integrated Care,6699.96
20/04/2021,1248252,Origin Housing Ltd,B*Voluntary-Spot-V Dep-Enhanced - do not u,Bi-Borough Director of Integrated Care,640
28/04/2021,1243524,PERSONAL PAYMENTS,,Bi-Borough Director of Integrated Care,3017.64
28/04/2021,1243524,PERSONAL PAYMENTS,,Bi-Borough Director of Integrated Care,835.71
26/05/2021,1243524,PERSONAL PAYMENTS,,Bi-Borough Director of Integrated Care,936
26/05/2021,1243524,PERSONAL PAYMENTS,,Bi-Borough Director of Integrated Care,3379.76
23/06/2021,1243524,PERSONAL PAYMENTS,,Bi-Borough Director of Integrated Care,3379.76
23/06/2021,1243524,PERSONAL PAYMENTS,,Bi-Borough Director of Integrated Care,936
28/04/2021,1245005,PERSONAL PAYMENTS,,Bi-Borough Director of Integrated Care,1557.86
28/04/2021,1245005,PERSONAL PAYMENTS,,Bi-Borough Director of Integrated Care,1916.86
28/04/2021,1245005,PERSONAL PAYMENTS,,Bi-Borough Director of Integrated Care,2538.28
28/04/2021,1245005,PERSONAL PAYMENTS,,Bi-Borough Director of Integrated Care,1916.86
28/04/2021,1245005,PERSONAL PAYMENTS,,Bi-Borough Director of Integrated Care,1194.36
28/04/2021,1245005,PERSONAL PAYMENTS,,Bi-Borough Director of Integrated Care,10800.8
26/05/2021,1245005,PERSONAL PAYMENTS,,Bi-Borough Director of Integrated Care,1744.8
26/05/2021,1245005,PERSONAL PAYMENTS,,Bi-Borough Director of Integrated Care,2146.88
26/05/2021,1245005,PERSONAL PAYMENTS,,Bi-Borough Director of Integrated Care,2146.88
26/05/2021,1245005,PERSONAL PAYMENTS,,Bi-Borough Director of Integrated Care,1337.68
26/05/2021,1245005,PERSONAL PAYMENTS,,Bi-Borough Director of Integrated Care,2842.88
26/05/2021,1245005,PERSONAL PAYMENTS,,Bi-Borough Director of Integrated Care,2902.96
23/06/2021,1245005,PERSONAL PAYMENTS,,Bi-Borough Director of Integrated Care,2146.88
23/06/2021,1245005,PERSONAL PAYMENTS,,Bi-Borough Director of Integrated Care,1744.8
23/06/2021,1245005,PERSONAL PAYMENTS,,Bi-Borough Director of Integrated Care,2842.88
23/06/2021,1245005,PERSONAL PAYMENTS,,Bi-Borough Director of Integrated Care,2902.96
23/06/2021,1245005,PERSONAL PAYMENTS,,Bi-Borough Director of Integrated Care,1337.68
23/06/2021,1245005,PERSONAL PAYMENTS,,Bi-Borough Director of Integrated Care,2146.88
06/04/2021,1245825,Sweet Tree Home Care Services,Adult Social Care - Other Transfer Pay,Bi-Borough Director of Integrated Care,3826.8
08/04/2021,1246066,Barrie Bookkeeping & Payroll,Adult Social Care - Other Transfer Pay,Bi-Borough Director of Integrated Care,601.6
10/04/2021,1246066,Barrie Bookkeeping & Payroll,Adult Social Care - Other Transfer Pay,Bi-Borough Director of Integrated Care,1821.6
10/04/2021,1246066,Barrie Bookkeeping & Payroll,Adult Social Care - Other Transfer Pay,Bi-Borough Director of Integrated Care,924.24
10/04/2021,1248715,PERSONAL PAYMENTS,Social Care - Direct Payments,Bi-Borough Director of Integrated Care,992.64
10/04/2021,1254540,PERSONAL PAYMENTS,Adult Social Care - Other Transfer Pay,Bi-Borough Director of Integrated Care,811.8
10/04/2021,1248292,PERSONAL PAYMENTS,Adult Social Care - Other Transfer Pay,Bi-Borough Director of Integrated Care,8640
10/04/2021,1246066,Barrie Bookkeeping & Payroll,Adult Social Care - Other Transfer Pay,Bi-Borough Director of Integrated Care,1991
10/04/2021,1247452,PERSONAL PAYMENTS,Social Care - Direct Payments,Bi-Borough Director of Integrated Care,1289.24
10/04/2021,1248073,PERSONAL PAYMENTS,Adult Social Care - Other Transfer Pay,Bi-Borough Director of Integrated Care,1165.56
10/04/2021,1249796,PERSONAL PAYMENTS,Adult Social Care - Other Transfer Pay,Bi-Borough Director of Integrated Care,1010.57
10/04/2021,1266164,PERSONAL PAYMENTS,Adult Social Care - Other Transfer Pay,Bi-Borough Director of Integrated Care,576.17
10/04/2021,1250612,PERSONAL PAYMENTS,Social Care - Direct Payments,Bi-Borough Director of Integrated Care,540
10/04/2021,1250670,PERSONAL PAYMENTS,Adult Social Care - Other Transfer Pay,Bi-Borough Director of Integrated Care,1024
10/04/2021,1250012,PERSONAL PAYMENTS,Adult Social Care - Other Transfer Pay,Bi-Borough Director of Integrated Care,2015
10/04/2021,1247727,PERSONAL PAYMENTS,Social Care - Direct Payments,Bi-Borough Director of Integrated Care,2740.72
10/04/2021,1247804,PERSONAL PAYMENTS,Social Care - Direct Payments,Bi-Borough Director of Integrated Care,902.4
10/04/2021,1250037,PERSONAL PAYMENTS,Adult Social Care - Other Transfer Pay,Bi-Borough Director of Integrated Care,6118.75
10/04/2021,1250310,PERSONAL PAYMENTS,Adult Social Care - Other Transfer Pay,Bi-Borough Director of Integrated Care,1368
10/04/2021,1247355,PERSONAL PAYMENTS,Social Care - Direct Payments,Bi-Borough Director of Integrated Care,857.28
10/04/2021,1249942,PERSONAL PAYMENTS,Adult Social Care - Other Transfer Pay,Bi-Borough Director of Integrated Care,5975.56
10/04/2021,1246066,Barrie Bookkeeping & Payroll,Adult Social Care - Other Transfer Pay,Bi-Borough Director of Integrated Care,4603.4
10/04/2021,1268346,PERSONAL PAYMENTS,Adult Social Care - Other Transfer Pay,Bi-Borough Director of Integrated Care,1623.4
10/04/2021,1250139,PERSONAL PAYMENTS,Adult Social Care - Other Transfer Pay,Bi-Borough Director of Integrated Care,3412.31
10/04/2021,1248354,PERSONAL PAYMENTS,Adult Social Care - Other Transfer Pay,Bi-Borough Director of Integrated Care,3026
10/04/2021,1250368,PERSONAL PAYMENTS,Adult Social Care - Other Transfer Pay,Bi-Borough Director of Integrated Care,1794.08
10/04/2021,1248148,PERSONAL PAYMENTS,Adult Social Care - Other Transfer Pay,Bi-Borough Director of Integrated Care,1638.96
10/04/2021,1256952,PERSONAL PAYMENTS,Adult Social Care - Other Transfer Pay,Bi-Borough Director of Integrated Care,1920
10/04/2021,1247820,PERSONAL PAYMENTS,Adult Social Care - Other Transfer Pay,Bi-Borough Director of Integrated Care,19377.3
10/04/2021,1246066,Barrie Bookkeeping & Payroll,Adult Social Care - Other Transfer Pay,Bi-Borough Director of Integrated Care,5914.56
10/04/2021,1246066,Barrie Bookkeeping & Payroll,Adult Social Care - Other Transfer Pay,Bi-Borough Director of Integrated Care,1791.6
10/04/2021,1246066,Barrie Bookkeeping & Payroll,Adult Social Care - Other Transfer Pay,Bi-Borough Director of Integrated Care,2483.4
10/04/2021,1246066,Barrie Bookkeeping & Payroll,Adult Social Care - Other Transfer Pay,Bi-Borough Director of Integrated Care,2740.12
10/04/2021,1246066,Barrie Bookkeeping & Payroll,Adult Social Care - Other Transfer Pay,Bi-Borough Director of Integrated Care,773.2
10/04/2021,1246066,Barrie Bookkeeping & Payroll,Adult Social Care - Other Transfer Pay,Bi-Borough Director of Integrated Care,818
10/04/2021,1250627,PERSONAL PAYMENTS,Social Care - Direct Payments,Bi-Borough Director of Integrated Care,2253
10/04/2021,1250656,PERSONAL PAYMENTS,Social Care - Direct Payments,Bi-Borough Director of Integrated Care,1118.36
10/04/2021,1249009,PERSONAL PAYMENTS,Social Care - Direct Payments,Bi-Borough Director of Integrated Care,2301.12
10/04/2021,1248995,PERSONAL PAYMENTS,Adult Social Care - Other Transfer Pay,Bi-Borough Director of Integrated Care,540
10/04/2021,1250186,PERSONAL PAYMENTS,Adult Social Care - Other Transfer Pay,Bi-Borough Director of Integrated Care,3121.48
10/04/2021,1246066,Barrie Bookkeeping & Payroll,Adult Social Care - Other Transfer Pay,Bi-Borough Director of Integrated Care,1004.69
10/04/2021,1248292,PERSONAL PAYMENTS,Adult Social Care - Other Transfer Pay,Bi-Borough Director of Integrated Care,1208.96
10/04/2021,1246066,Barrie Bookkeeping & Payroll,Adult Social Care - Other Transfer Pay,Bi-Borough Director of Integrated Care,1633
10/04/2021,1250215,PERSONAL PAYMENTS,Adult Social Care - Other Transfer Pay,Bi-Borough Director of Integrated Care,837.88
10/04/2021,1246066,Barrie Bookkeeping & Payroll,Adult Social Care - Other Transfer Pay,Bi-Borough Director of Integrated Care,1680
10/04/2021,1246066,Barrie Bookkeeping & Payroll,Adult Social Care - Other Transfer Pay,Bi-Borough Director of Integrated Care,2058
10/04/2021,1250068,PERSONAL PAYMENTS,Social Care - Direct Payments,Bi-Borough Director of Integrated Care,740
10/04/2021,1248154,PERSONAL PAYMENTS,Adult Social Care - Other Transfer Pay,Bi-Borough Director of Integrated Care,1540
10/04/2021,1246066,Barrie Bookkeeping & Payroll,Adult Social Care - Other Transfer Pay,Bi-Borough Director of Integrated Care,7987.6
10/04/2021,1248010,PERSONAL PAYMENTS,Adult Social Care - Other Transfer Pay,Bi-Borough Director of Integrated Care,541.44
10/04/2021,1246066,Barrie Bookkeeping & Payroll,Adult Social Care - Other Transfer Pay,Bi-Borough Director of Integrated Care,2830
10/04/2021,1248059,PERSONAL PAYMENTS,Social Care - Direct Payments,Bi-Borough Director of Integrated Care,5808.52
10/04/2021,1246066,Barrie Bookkeeping & Payroll,Adult Social Care - Other Transfer Pay,Bi-Borough Director of Integrated Care,2585.32
10/04/2021,1250360,PERSONAL PAYMENTS,Adult Social Care - Other Transfer Pay,Bi-Borough Director of Integrated Care,3328
10/04/2021,1250674,PERSONAL PAYMENTS,Adult Social Care - Other Transfer Pay,Bi-Borough Director of Integrated Care,2759.34
10/04/2021,1246066,Barrie Bookkeeping & Payroll,Adult Social Care - Other Transfer Pay,Bi-Borough Director of Integrated Care,852.72
10/04/2021,1250074,PERSONAL PAYMENTS,Adult Social Care - Other Transfer Pay,Bi-Borough Director of Integrated Care,8290.76
10/04/2021,1250044,PERSONAL PAYMENTS,Adult Social Care - Other Transfer Pay,Bi-Borough Director of Integrated Care,648
10/04/2021,1256833,PERSONAL PAYMENTS,Adult Social Care - Other Transfer Pay,Bi-Borough Director of Integrated Care,572
08/05/2021,1254540,PERSONAL PAYMENTS,Adult Social Care - Other Transfer Pay,Bi-Borough Director of Integrated Care,811.8
08/05/2021,1246066,Barrie Bookkeeping & Payroll,Adult Social Care - Other Transfer Pay,Bi-Borough Director of Integrated Care,1991
08/05/2021,1278955,PERSONAL PAYMENTS,Social Care - Direct Payments,Bi-Borough Director of Integrated Care,1289.24
08/05/2021,1250074,PERSONAL PAYMENTS,Adult Social Care - Other Transfer Pay,Bi-Borough Director of Integrated Care,8290.76
08/05/2021,1250044,PERSONAL PAYMENTS,Adult Social Care - Other Transfer Pay,Bi-Borough Director of Integrated Care,648
08/05/2021,1256833,PERSONAL PAYMENTS,Adult Social Care - Other Transfer Pay,Bi-Borough Director of Integrated Care,572
08/05/2021,1249796,PERSONAL PAYMENTS,Adult Social Care - Other Transfer Pay,Bi-Borough Director of Integrated Care,999.16
08/05/2021,1250612,PERSONAL PAYMENTS,Social Care - Direct Payments,Bi-Borough Director of Integrated Care,540
08/05/2021,1250670,PERSONAL PAYMENTS,Adult Social Care - Other Transfer Pay,Bi-Borough Director of Integrated Care,1024
08/05/2021,1246066,Barrie Bookkeeping & Payroll,Adult Social Care - Other Transfer Pay,Bi-Borough Director of Integrated Care,1821.6
08/05/2021,1246066,Barrie Bookkeeping & Payroll,Adult Social Care - Other Transfer Pay,Bi-Borough Director of Integrated Care,1066.28
08/05/2021,1250012,PERSONAL PAYMENTS,Adult Social Care - Other Transfer Pay,Bi-Borough Director of Integrated Care,2015
08/05/2021,1248292,PERSONAL PAYMENTS,Adult Social Care - Other Transfer Pay,Bi-Borough Director of Integrated Care,8640
08/05/2021,1247727,PERSONAL PAYMENTS,Social Care - Direct Payments,Bi-Borough Director of Integrated Care,2740.72
08/05/2021,1250037,PERSONAL PAYMENTS,Adult Social Care - Other Transfer Pay,Bi-Borough Director of Integrated Care,2225
08/05/2021,1247804,PERSONAL PAYMENTS,Social Care - Direct Payments,Bi-Borough Director of Integrated Care,902.4
08/05/2021,1246066,Barrie Bookkeeping & Payroll,Adult Social Care - Other Transfer Pay,Bi-Borough Director of Integrated Care,9103.54
08/05/2021,1250310,PERSONAL PAYMENTS,Adult Social Care - Other Transfer Pay,Bi-Borough Director of Integrated Care,1368
08/05/2021,1247355,PERSONAL PAYMENTS,Social Care - Direct Payments,Bi-Borough Director of Integrated Care,857.28
08/05/2021,1249942,PERSONAL PAYMENTS,Adult Social Care - Other Transfer Pay,Bi-Borough Director of Integrated Care,5975.56
08/05/2021,1246066,Barrie Bookkeeping & Payroll,Adult Social Care - Other Transfer Pay,Bi-Borough Director of Integrated Care,4603.4
08/05/2021,1268346,PERSONAL PAYMENTS,Adult Social Care - Other Transfer Pay,Bi-Borough Director of Integrated Care,1623.4
08/05/2021,1250138,PERSONAL PAYMENTS,Adult Social Care - Other Transfer Pay,Bi-Borough Director of Integrated Care,1240.84
08/05/2021,1248354,PERSONAL PAYMENTS,Adult Social Care - Other Transfer Pay,Bi-Borough Director of Integrated Care,3026
08/05/2021,1250368,PERSONAL PAYMENTS,Adult Social Care - Other Transfer Pay,Bi-Borough Director of Integrated Care,1794.08
08/05/2021,1246066,Barrie Bookkeeping & Payroll,Adult Social Care - Other Transfer Pay,Bi-Borough Director of Integrated Care,818
08/05/2021,1248995,PERSONAL PAYMENTS,Adult Social Care - Other Transfer Pay,Bi-Borough Director of Integrated Care,540
08/05/2021,1250186,PERSONAL PAYMENTS,Adult Social Care - Other Transfer Pay,Bi-Borough Director of Integrated Care,3121.48
08/05/2021,1248148,PERSONAL PAYMENTS,Adult Social Care - Other Transfer Pay,Bi-Borough Director of Integrated Care,1638.96
08/05/2021,1247820,PERSONAL PAYMENTS,Adult Social Care - Other Transfer Pay,Bi-Borough Director of Integrated Care,8751.04
08/05/2021,1246066,Barrie Bookkeeping & Payroll,Adult Social Care - Other Transfer Pay,Bi-Borough Director of Integrated Care,28770.2
08/05/2021,1246066,Barrie Bookkeeping & Payroll,Adult Social Care - Other Transfer Pay,Bi-Borough Director of Integrated Care,5914.56
08/05/2021,1246066,Barrie Bookkeeping & Payroll,Adult Social Care - Other Transfer Pay,Bi-Borough Director of Integrated Care,1791.6
08/05/2021,1246066,Barrie Bookkeeping & Payroll,Adult Social Care - Other Transfer Pay,Bi-Borough Director of Integrated Care,2483.4
08/05/2021,1246066,Barrie Bookkeeping & Payroll,Adult Social Care - Other Transfer Pay,Bi-Borough Director of Integrated Care,876.08
08/05/2021,1246066,Barrie Bookkeeping & Payroll,Adult Social Care - Other Transfer Pay,Bi-Borough Director of Integrated Care,2740.12
08/05/2021,1246066,Barrie Bookkeeping & Payroll,Adult Social Care - Other Transfer Pay,Bi-Borough Director of Integrated Care,773.2
08/05/2021,1250627,PERSONAL PAYMENTS,Social Care - Direct Payments,Bi-Borough Director of Integrated Care,2253
08/05/2021,1248154,PERSONAL PAYMENTS,Adult Social Care - Other Transfer Pay,Bi-Borough Director of Integrated Care,1540
08/05/2021,1248010,PERSONAL PAYMENTS,Adult Social Care - Other Transfer Pay,Bi-Borough Director of Integrated Care,541.44
08/05/2021,1246066,Barrie Bookkeeping & Payroll,Adult Social Care - Other Transfer Pay,Bi-Borough Director of Integrated Care,2830
08/05/2021,1248059,PERSONAL PAYMENTS,Social Care - Direct Payments,Bi-Borough Director of Integrated Care,5808.52
08/05/2021,1246066,Barrie Bookkeeping & Payroll,Adult Social Care - Other Transfer Pay,Bi-Borough Director of Integrated Care,2585.32
08/05/2021,1250656,PERSONAL PAYMENTS,Social Care - Direct Payments,Bi-Borough Director of Integrated Care,1118.36
08/05/2021,1249009,PERSONAL PAYMENTS,Social Care - Direct Payments,Bi-Borough Director of Integrated Care,2301.12
08/05/2021,1250360,PERSONAL PAYMENTS,Adult Social Care - Other Transfer Pay,Bi-Borough Director of Integrated Care,3328
08/05/2021,1248292,PERSONAL PAYMENTS,Adult Social Care - Other Transfer Pay,Bi-Borough Director of Integrated Care,1208.96
08/05/2021,1246066,Barrie Bookkeeping & Payroll,Adult Social Care - Other Transfer Pay,Bi-Borough Director of Integrated Care,1633
08/05/2021,1250215,PERSONAL PAYMENTS,Adult Social Care - Other Transfer Pay,Bi-Borough Director of Integrated Care,837.88
08/05/2021,1246066,Barrie Bookkeeping & Payroll,Adult Social Care - Other Transfer Pay,Bi-Borough Director of Integrated Care,1680
08/05/2021,1246066,Barrie Bookkeeping & Payroll,Adult Social Care - Other Transfer Pay,Bi-Borough Director of Integrated Care,1100.7
08/05/2021,1246066,Barrie Bookkeeping & Payroll,Adult Social Care - Other Transfer Pay,Bi-Borough Director of Integrated Care,2058
08/05/2021,1250674,PERSONAL PAYMENTS,Adult Social Care - Other Transfer Pay,Bi-Borough Director of Integrated Care,2513.36
08/05/2021,1248715,PERSONAL PAYMENTS,Social Care - Direct Payments,Bi-Borough Director of Integrated Care,992.64
17/05/2021,1245825,Sweet Tree Home Care Services,Adult Social Care - Other Transfer Pay,Bi-Borough Director of Integrated Care,3744.36
04/06/2021,1246066,Barrie Bookkeeping & Payroll,Adult Social Care - Other Transfer Pay,Bi-Borough Director of Integrated Care,58805.28
04/06/2021,1250310,PERSONAL PAYMENTS,Adult Social Care - Other Transfer Pay,Bi-Borough Director of Integrated Care,1368
04/06/2021,1249942,PERSONAL PAYMENTS,Adult Social Care - Other Transfer Pay,Bi-Borough Director of Integrated Care,5975.56
04/06/2021,1246066,Barrie Bookkeeping & Payroll,Adult Social Care - Other Transfer Pay,Bi-Borough Director of Integrated Care,4603.4
04/06/2021,1248354,PERSONAL PAYMENTS,Adult Social Care - Other Transfer Pay,Bi-Borough Director of Integrated Care,3026
04/06/2021,1268346,PERSONAL PAYMENTS,Adult Social Care - Other Transfer Pay,Bi-Borough Director of Integrated Care,1623.4
04/06/2021,1250138,PERSONAL PAYMENTS,Adult Social Care - Other Transfer Pay,Bi-Borough Director of Integrated Care,1240.84
04/06/2021,1248148,PERSONAL PAYMENTS,Adult Social Care - Other Transfer Pay,Bi-Borough Director of Integrated Care,1638.96
04/06/2021,1247820,PERSONAL PAYMENTS,Adult Social Care - Other Transfer Pay,Bi-Borough Director of Integrated Care,8751.04
04/06/2021,1246066,Barrie Bookkeeping & Payroll,Adult Social Care - Other Transfer Pay,Bi-Borough Director of Integrated Care,5754.04
04/06/2021,1246066,Barrie Bookkeeping & Payroll,Adult Social Care - Other Transfer Pay,Bi-Borough Director of Integrated Care,5914.56
04/06/2021,1246066,Barrie Bookkeeping & Payroll,Adult Social Care - Other Transfer Pay,Bi-Borough Director of Integrated Care,2483.4
04/06/2021,1246066,Barrie Bookkeeping & Payroll,Adult Social Care - Other Transfer Pay,Bi-Borough Director of Integrated Care,1791.6
04/06/2021,1250627,PERSONAL PAYMENTS,Social Care - Direct Payments,Bi-Borough Director of Integrated Care,2253
04/06/2021,1246066,Barrie Bookkeeping & Payroll,Adult Social Care - Other Transfer Pay,Bi-Borough Director of Integrated Care,2740.12
04/06/2021,1246066,Barrie Bookkeeping & Payroll,Adult Social Care - Other Transfer Pay,Bi-Borough Director of Integrated Care,773.2
04/06/2021,1250656,PERSONAL PAYMENTS,Social Care - Direct Payments,Bi-Borough Director of Integrated Care,1118.36
04/06/2021,1249009,PERSONAL PAYMENTS,Social Care - Direct Payments,Bi-Borough Director of Integrated Care,2301.12
04/06/2021,1246066,Barrie Bookkeeping & Payroll,Adult Social Care - Other Transfer Pay,Bi-Borough Director of Integrated Care,818
04/06/2021,1248995,PERSONAL PAYMENTS,Adult Social Care - Other Transfer Pay,Bi-Borough Director of Integrated Care,540
04/06/2021,1250186,PERSONAL PAYMENTS,Adult Social Care - Other Transfer Pay,Bi-Borough Director of Integrated Care,3121.48
04/06/2021,1248292,PERSONAL PAYMENTS,Adult Social Care - Other Transfer Pay,Bi-Borough Director of Integrated Care,1208.96
04/06/2021,1246066,Barrie Bookkeeping & Payroll,Adult Social Care - Other Transfer Pay,Bi-Borough Director of Integrated Care,1633
04/06/2021,1250215,PERSONAL PAYMENTS,Adult Social Care - Other Transfer Pay,Bi-Borough Director of Integrated Care,837.88
04/06/2021,1246066,Barrie Bookkeeping & Payroll,Adult Social Care - Other Transfer Pay,Bi-Borough Director of Integrated Care,733.8
04/06/2021,1246066,Barrie Bookkeeping & Payroll,Adult Social Care - Other Transfer Pay,Bi-Borough Director of Integrated Care,2058
04/06/2021,1246066,Barrie Bookkeeping & Payroll,Adult Social Care - Other Transfer Pay,Bi-Borough Director of Integrated Care,876.08
04/06/2021,1248154,PERSONAL PAYMENTS,Adult Social Care - Other Transfer Pay,Bi-Borough Director of Integrated Care,1540
04/06/2021,1248010,PERSONAL PAYMENTS,Adult Social Care - Other Transfer Pay,Bi-Borough Director of Integrated Care,541.44
04/06/2021,1246066,Barrie Bookkeeping & Payroll,Adult Social Care - Other Transfer Pay,Bi-Borough Director of Integrated Care,2830
04/06/2021,1248059,PERSONAL PAYMENTS,Social Care - Direct Payments,Bi-Borough Director of Integrated Care,5808.52
04/06/2021,1246066,Barrie Bookkeeping & Payroll,Adult Social Care - Other Transfer Pay,Bi-Borough Director of Integrated Care,2585.32
04/06/2021,1250360,PERSONAL PAYMENTS,Adult Social Care - Other Transfer Pay,Bi-Borough Director of Integrated Care,3328
04/06/2021,1250074,PERSONAL PAYMENTS,Adult Social Care - Other Transfer Pay,Bi-Borough Director of Integrated Care,8290.76
04/06/2021,1250044,PERSONAL PAYMENTS,Adult Social Care - Other Transfer Pay,Bi-Borough Director of Integrated Care,648
04/06/2021,1246066,Barrie Bookkeeping & Payroll,Adult Social Care - Other Transfer Pay,Bi-Borough Director of Integrated Care,1991
04/06/2021,1254540,PERSONAL PAYMENTS,Adult Social Care - Other Transfer Pay,Bi-Borough Director of Integrated Care,811.8
04/06/2021,1250674,PERSONAL PAYMENTS,Adult Social Care - Other Transfer Pay,Bi-Borough Director of Integrated Care,2513.36
04/06/2021,1256833,PERSONAL PAYMENTS,Adult Social Care - Other Transfer Pay,Bi-Borough Director of Integrated Care,572
04/06/2021,1246066,Barrie Bookkeeping & Payroll,Adult Social Care - Other Transfer Pay,Bi-Borough Director of Integrated Care,1066.28
04/06/2021,1248715,PERSONAL PAYMENTS,Social Care - Direct Payments,Bi-Borough Director of Integrated Care,992.64
04/06/2021,1248292,PERSONAL PAYMENTS,Adult Social Care - Other Transfer Pay,Bi-Borough Director of Integrated Care,8640
04/06/2021,1278955,PERSONAL PAYMENTS,Social Care - Direct Payments,Bi-Borough Director of Integrated Care,1289.24
04/06/2021,1250670,PERSONAL PAYMENTS,Adult Social Care - Other Transfer Pay,Bi-Borough Director of Integrated Care,1024
04/06/2021,1250250,PERSONAL PAYMENTS,Adult Social Care - Other Transfer Pay,Bi-Borough Director of Integrated Care,1273.86
04/06/2021,1249796,PERSONAL PAYMENTS,Adult Social Care - Other Transfer Pay,Bi-Borough Director of Integrated Care,999.16
04/06/2021,1250612,PERSONAL PAYMENTS,Social Care - Direct Payments,Bi-Borough Director of Integrated Care,540
04/06/2021,1250012,PERSONAL PAYMENTS,Adult Social Care - Other Transfer Pay,Bi-Borough Director of Integrated Care,2015
04/06/2021,1247727,PERSONAL PAYMENTS,Social Care - Direct Payments,Bi-Borough Director of Integrated Care,2740.72
04/06/2021,1247355,PERSONAL PAYMENTS,Social Care - Direct Payments,Bi-Borough Director of Integrated Care,857.28
04/06/2021,1247804,PERSONAL PAYMENTS,Social Care - Direct Payments,Bi-Borough Director of Integrated Care,902.4
04/06/2021,1250037,PERSONAL PAYMENTS,Adult Social Care - Other Transfer Pay,Bi-Borough Director of Integrated Care,2225
08/06/2021,1245825,Sweet Tree Home Care Services,Adult Social Care - Other Transfer Pay,Bi-Borough Director of Integrated Care,2748.37
27/04/2021,1255663,PLAY ASSOCIATION HAMMERSMITH AND FU,B*Voluntary-Spot-V Dep-Enhanced - do not u,Bi-Borough Director of Integrated Care,1320
07/06/2021,1255663,PLAY ASSOCIATION HAMMERSMITH AND FU,B*Voluntary-Spot-V Dep-Enhanced - do not u,Bi-Borough Director of Integrated Care,990
28/04/2021,1258049,PSS (UK),,Bi-Borough Director of Integrated Care,2375.86
26/05/2021,1258049,PSS (UK),,Bi-Borough Director of Integrated Care,2660.96
23/06/2021,1258049,PSS (UK),,Bi-Borough Director of Integrated Care,2660.96
28/04/2021,1245021,Paradise Community,,Bi-Borough Director of Integrated Care,9298.82
26/05/2021,1245021,Paradise Community,,Bi-Borough Director of Integrated Care,10414.68
23/06/2021,1245021,Paradise Community,,Bi-Borough Director of Integrated Care,10414.68
28/04/2021,1250448,PERSONAL PAYMENTS,,Bi-Borough Director of Integrated Care,1267.18
26/05/2021,1250448,PERSONAL PAYMENTS,,Bi-Borough Director of Integrated Care,1419.24
23/06/2021,1250448,PERSONAL PAYMENTS,,Bi-Borough Director of Integrated Care,1419.24
28/04/2021,1245163,Poor Servants of the mother of,,Bi-Borough Director of Integrated Care,2570.43
26/05/2021,1245163,Poor Servants of the mother of,,Bi-Borough Director of Integrated Care,2878.88
23/06/2021,1245163,Poor Servants of the mother of,,Bi-Borough Director of Integrated Care,2878.88
28/04/2021,1245165,Precious Homes Ltd,,Bi-Borough Director of Integrated Care,4750
28/04/2021,1245165,Precious Homes Ltd,,Bi-Borough Director of Integrated Care,12478.71
26/05/2021,1245165,Precious Homes Ltd,,Bi-Borough Director of Integrated Care,5320
26/05/2021,1245165,Precious Homes Ltd,,Bi-Borough Director of Integrated Care,13976.16
23/06/2021,1245165,Precious Homes Ltd,,Bi-Borough Director of Integrated Care,5320
23/06/2021,1245165,Precious Homes Ltd,,Bi-Borough Director of Integrated Care,13976.16
23/04/2021,1248563,Pursuing Independent Paths,B*Voluntary-Spot-V Dep-Enhanced - do not u,Bi-Borough Director of Integrated Care,1020.88
23/04/2021,1248563,Pursuing Independent Paths,B*Voluntary-Spot-V Dep-Enhanced - do not u,Bi-Borough Director of Integrated Care,1276.1
23/04/2021,1248563,Pursuing Independent Paths,B*Voluntary-Spot-V Dep-Enhanced - do not u,Bi-Borough Director of Integrated Care,1531.32
23/04/2021,1248563,Pursuing Independent Paths,B*Voluntary-Spot-V Dep-Enhanced - do not u,Bi-Borough Director of Integrated Care,1786.54
23/04/2021,1248563,Pursuing Independent Paths,B*Voluntary-Spot-V Dep-Enhanced - do not u,Bi-Borough Director of Integrated Care,1289.32
23/04/2021,1248563,Pursuing Independent Paths,B*Voluntary-Spot-V Dep-Enhanced - do not u,Bi-Borough Director of Integrated Care,510.44
23/04/2021,1248563,Pursuing Independent Paths,B*Voluntary-Spot-V Dep-Enhanced - do not u,Bi-Borough Director of Integrated Care,1020.88
23/04/2021,1248563,Pursuing Independent Paths,B*Voluntary-Spot-V Dep-Enhanced - do not u,Bi-Borough Director of Integrated Care,1020.88
23/04/2021,1248563,Pursuing Independent Paths,B*Voluntary-Spot-V Dep-Enhanced - do not u,Bi-Borough Director of Integrated Care,2552.2
23/04/2021,1248563,Pursuing Independent Paths,B*Voluntary-Spot-V Dep-Enhanced - do not u,Bi-Borough Director of Integrated Care,1531.32
23/04/2021,1248563,Pursuing Independent Paths,B*Voluntary-Spot-V Dep-Enhanced - do not u,Bi-Borough Director of Integrated Care,1531.32
23/04/2021,1248563,Pursuing Independent Paths,B*Voluntary-Spot-V Dep-Enhanced - do not u,Bi-Borough Director of Integrated Care,1531.32
23/04/2021,1248563,Pursuing Independent Paths,B*Voluntary-Spot-V Dep-Enhanced - do not u,Bi-Borough Director of Integrated Care,546.9
23/04/2021,1248563,Pursuing Independent Paths,B*Voluntary-Spot-V Dep-Enhanced - do not u,Bi-Borough Director of Integrated Care,510.44
23/04/2021,1248563,Pursuing Independent Paths,B*Voluntary-Spot-V Dep-Enhanced - do not u,Bi-Borough Director of Integrated Care,1020.88
23/04/2021,1248563,Pursuing Independent Paths,B*Voluntary-Spot-V Dep-Enhanced - do not u,Bi-Borough Director of Integrated Care,510.44
23/04/2021,1248563,Pursuing Independent Paths,B*Voluntary-Spot-V Dep-Enhanced - do not u,Bi-Borough Director of Integrated Care,1531.32
23/04/2021,1248563,Pursuing Independent Paths,B*Voluntary-Spot-V Dep-Enhanced - do not u,Bi-Borough Director of Integrated Care,1276.1
23/04/2021,1248563,Pursuing Independent Paths,B*Voluntary-Spot-V Dep-Enhanced - do not u,Bi-Borough Director of Integrated Care,2552.2
23/04/2021,1248563,Pursuing Independent Paths,B*Voluntary-Spot-V Dep-Enhanced - do not u,Bi-Borough Director of Integrated Care,1531.32
23/04/2021,1248563,Pursuing Independent Paths,B*Voluntary-Spot-V Dep-Enhanced - do not u,Bi-Borough Director of Integrated Care,1531.32
23/04/2021,1248563,Pursuing Independent Paths,B*Voluntary-Spot-V Dep-Enhanced - do not u,Bi-Borough Director of Integrated Care,1531.32
23/04/2021,1248563,Pursuing Independent Paths,B*Voluntary-Spot-V Dep-Enhanced - do not u,Bi-Borough Director of Integrated Care,1531.32
23/04/2021,1248563,Pursuing Independent Paths,B*Voluntary-Spot-V Dep-Enhanced - do not u,Bi-Borough Director of Integrated Care,1020.88
23/04/2021,1248563,Pursuing Independent Paths,B*Voluntary-Spot-V Dep-Enhanced - do not u,Bi-Borough Director of Integrated Care,1276.1
23/04/2021,1248563,Pursuing Independent Paths,B*Voluntary-Spot-V Dep-Enhanced - do not u,Bi-Borough Director of Integrated Care,510.44
23/04/2021,1248563,Pursuing Independent Paths,B*Voluntary-Spot-V Dep-Enhanced - do not u,Bi-Borough Director of Integrated Care,1531.32
23/04/2021,1248563,Pursuing Independent Paths,B*Voluntary-Spot-V Dep-Enhanced - do not u,Bi-Borough Director of Integrated Care,1252.72
23/04/2021,1248563,Pursuing Independent Paths,B*Voluntary-Spot-V Dep-Enhanced - do not u,Bi-Borough Director of Integrated Care,510.44
23/04/2021,1248563,Pursuing Independent Paths,B*Voluntary-Spot-V Dep-Enhanced - do not u,Bi-Borough Director of Integrated Care,510.44
23/04/2021,1248563,Pursuing Independent Paths,B*Voluntary-Spot-V Dep-Enhanced - do not u,Bi-Borough Director of Integrated Care,1879.08
23/04/2021,1248563,Pursuing Independent Paths,B*Voluntary-Spot-V Dep-Enhanced - do not u,Bi-Borough Director of Integrated Care,510.44
23/04/2021,1248563,Pursuing Independent Paths,B*Voluntary-Spot-V Dep-Enhanced - do not u,Bi-Borough Director of Integrated Care,510.44
23/04/2021,1248563,Pursuing Independent Paths,B*Voluntary-Spot-V Dep-Enhanced - do not u,Bi-Borough Director of Integrated Care,583.36
23/04/2021,1248563,Pursuing Independent Paths,B*Voluntary-Spot-V Dep-Enhanced - do not u,Bi-Borough Director of Integrated Care,1531.32
23/04/2021,1248563,Pursuing Independent Paths,B*Voluntary-Spot-V Dep-Enhanced - do not u,Bi-Borough Director of Integrated Care,2041.76
23/04/2021,1248563,Pursuing Independent Paths,B*Voluntary-Spot-V Dep-Enhanced - do not u,Bi-Borough Director of Integrated Care,1276.1
23/04/2021,1248563,Pursuing Independent Paths,B*Voluntary-Spot-V Dep-Enhanced - do not u,Bi-Borough Director of Integrated Care,1531.32
23/04/2021,1248563,Pursuing Independent Paths,B*Voluntary-Spot-V Dep-Enhanced - do not u,Bi-Borough Director of Integrated Care,1531.32
26/05/2021,1248563,Pursuing Independent Paths,B*Voluntary-Spot-V Dep-Enhanced - do not u,Bi-Borough Director of Integrated Care,1276.1
26/05/2021,1248563,Pursuing Independent Paths,B*Voluntary-Spot-V Dep-Enhanced - do not u,Bi-Borough Director of Integrated Care,1531.32
26/05/2021,1248563,Pursuing Independent Paths,B*Voluntary-Spot-V Dep-Enhanced - do not u,Bi-Borough Director of Integrated Care,1531.32
26/05/2021,1248563,Pursuing Independent Paths,B*Voluntary-Spot-V Dep-Enhanced - do not u,Bi-Borough Director of Integrated Care,1020.88
26/05/2021,1248563,Pursuing Independent Paths,B*Voluntary-Spot-V Dep-Enhanced - do not u,Bi-Borough Director of Integrated Care,1276.1
26/05/2021,1248563,Pursuing Independent Paths,B*Voluntary-Spot-V Dep-Enhanced - do not u,Bi-Borough Director of Integrated Care,1531.32
26/05/2021,1248563,Pursuing Independent Paths,B*Voluntary-Spot-V Dep-Enhanced - do not u,Bi-Borough Director of Integrated Care,1786.54
26/05/2021,1248563,Pursuing Independent Paths,B*Voluntary-Spot-V Dep-Enhanced - do not u,Bi-Borough Director of Integrated Care,1289.32
26/05/2021,1248563,Pursuing Independent Paths,B*Voluntary-Spot-V Dep-Enhanced - do not u,Bi-Borough Director of Integrated Care,510.44
26/05/2021,1248563,Pursuing Independent Paths,B*Voluntary-Spot-V Dep-Enhanced - do not u,Bi-Borough Director of Integrated Care,1020.88
26/05/2021,1248563,Pursuing Independent Paths,B*Voluntary-Spot-V Dep-Enhanced - do not u,Bi-Borough Director of Integrated Care,1020.88
26/05/2021,1248563,Pursuing Independent Paths,B*Voluntary-Spot-V Dep-Enhanced - do not u,Bi-Borough Director of Integrated Care,2552.2
26/05/2021,1248563,Pursuing Independent Paths,B*Voluntary-Spot-V Dep-Enhanced - do not u,Bi-Borough Director of Integrated Care,1531.32
26/05/2021,1248563,Pursuing Independent Paths,B*Voluntary-Spot-V Dep-Enhanced - do not u,Bi-Borough Director of Integrated Care,1531.32
26/05/2021,1248563,Pursuing Independent Paths,B*Voluntary-Spot-V Dep-Enhanced - do not u,Bi-Borough Director of Integrated Care,1531.32
26/05/2021,1248563,Pursuing Independent Paths,B*Voluntary-Spot-V Dep-Enhanced - do not u,Bi-Borough Director of Integrated Care,546.9
26/05/2021,1248563,Pursuing Independent Paths,B*Voluntary-Spot-V Dep-Enhanced - do not u,Bi-Borough Director of Integrated Care,510.44
26/05/2021,1248563,Pursuing Independent Paths,B*Voluntary-Spot-V Dep-Enhanced - do not u,Bi-Borough Director of Integrated Care,1020.88
26/05/2021,1248563,Pursuing Independent Paths,B*Voluntary-Spot-V Dep-Enhanced - do not u,Bi-Borough Director of Integrated Care,510.44
26/05/2021,1248563,Pursuing Independent Paths,B*Voluntary-Spot-V Dep-Enhanced - do not u,Bi-Borough Director of Integrated Care,1531.32
26/05/2021,1248563,Pursuing Independent Paths,B*Voluntary-Spot-V Dep-Enhanced - do not u,Bi-Borough Director of Integrated Care,1276.1
26/05/2021,1248563,Pursuing Independent Paths,B*Voluntary-Spot-V Dep-Enhanced - do not u,Bi-Borough Director of Integrated Care,2552.2
26/05/2021,1248563,Pursuing Independent Paths,B*Voluntary-Spot-V Dep-Enhanced - do not u,Bi-Borough Director of Integrated Care,1531.32
26/05/2021,1248563,Pursuing Independent Paths,B*Voluntary-Spot-V Dep-Enhanced - do not u,Bi-Borough Director of Integrated Care,1531.32
26/05/2021,1248563,Pursuing Independent Paths,B*Voluntary-Spot-V Dep-Enhanced - do not u,Bi-Borough Director of Integrated Care,1531.32
26/05/2021,1248563,Pursuing Independent Paths,B*Voluntary-Spot-V Dep-Enhanced - do not u,Bi-Borough Director of Integrated Care,1531.32
26/05/2021,1248563,Pursuing Independent Paths,B*Voluntary-Spot-V Dep-Enhanced - do not u,Bi-Borough Director of Integrated Care,1020.88
26/05/2021,1248563,Pursuing Independent Paths,B*Voluntary-Spot-V Dep-Enhanced - do not u,Bi-Borough Director of Integrated Care,1276.1
26/05/2021,1248563,Pursuing Independent Paths,B*Voluntary-Spot-V Dep-Enhanced - do not u,Bi-Borough Director of Integrated Care,510.44
26/05/2021,1248563,Pursuing Independent Paths,B*Voluntary-Spot-V Dep-Enhanced - do not u,Bi-Borough Director of Integrated Care,1531.32
26/05/2021,1248563,Pursuing Independent Paths,B*Voluntary-Spot-V Dep-Enhanced - do not u,Bi-Borough Director of Integrated Care,1252.72
26/05/2021,1248563,Pursuing Independent Paths,B*Voluntary-Spot-V Dep-Enhanced - do not u,Bi-Borough Director of Integrated Care,510.44
26/05/2021,1248563,Pursuing Independent Paths,B*Voluntary-Spot-V Dep-Enhanced - do not u,Bi-Borough Director of Integrated Care,510.44
26/05/2021,1248563,Pursuing Independent Paths,B*Voluntary-Spot-V Dep-Enhanced - do not u,Bi-Borough Director of Integrated Care,1879.08
26/05/2021,1248563,Pursuing Independent Paths,B*Voluntary-Spot-V Dep-Enhanced - do not u,Bi-Borough Director of Integrated Care,510.44
26/05/2021,1248563,Pursuing Independent Paths,B*Voluntary-Spot-V Dep-Enhanced - do not u,Bi-Borough Director of Integrated Care,510.44
26/05/2021,1248563,Pursuing Independent Paths,B*Voluntary-Spot-V Dep-Enhanced - do not u,Bi-Borough Director of Integrated Care,583.36
26/05/2021,1248563,Pursuing Independent Paths,B*Voluntary-Spot-V Dep-Enhanced - do not u,Bi-Borough Director of Integrated Care,1531.32
26/05/2021,1248563,Pursuing Independent Paths,B*Voluntary-Spot-V Dep-Enhanced - do not u,Bi-Borough Director of Integrated Care,2041.76
23/06/2021,1248563,Pursuing Independent Paths,B*Voluntary-Spot-V Dep-Enhanced - do not u,Bi-Borough Director of Integrated Care,1020.88
23/06/2021,1248563,Pursuing Independent Paths,B*Voluntary-Spot-V Dep-Enhanced - do not u,Bi-Borough Director of Integrated Care,1276.1
23/06/2021,1248563,Pursuing Independent Paths,B*Voluntary-Spot-V Dep-Enhanced - do not u,Bi-Borough Director of Integrated Care,1531.32
23/06/2021,1248563,Pursuing Independent Paths,B*Voluntary-Spot-V Dep-Enhanced - do not u,Bi-Borough Director of Integrated Care,1786.54
23/06/2021,1248563,Pursuing Independent Paths,B*Voluntary-Spot-V Dep-Enhanced - do not u,Bi-Borough Director of Integrated Care,1289.32
23/06/2021,1248563,Pursuing Independent Paths,B*Voluntary-Spot-V Dep-Enhanced - do not u,Bi-Borough Director of Integrated Care,510.44
23/06/2021,1248563,Pursuing Independent Paths,B*Voluntary-Spot-V Dep-Enhanced - do not u,Bi-Borough Director of Integrated Care,1020.88
23/06/2021,1248563,Pursuing Independent Paths,B*Voluntary-Spot-V Dep-Enhanced - do not u,Bi-Borough Director of Integrated Care,1020.88
23/06/2021,1248563,Pursuing Independent Paths,B*Voluntary-Spot-V Dep-Enhanced - do not u,Bi-Borough Director of Integrated Care,2552.2
23/06/2021,1248563,Pursuing Independent Paths,B*Voluntary-Spot-V Dep-Enhanced - do not u,Bi-Borough Director of Integrated Care,1531.32
23/06/2021,1248563,Pursuing Independent Paths,B*Voluntary-Spot-V Dep-Enhanced - do not u,Bi-Borough Director of Integrated Care,1531.32
23/06/2021,1248563,Pursuing Independent Paths,B*Voluntary-Spot-V Dep-Enhanced - do not u,Bi-Borough Director of Integrated Care,1531.32
23/06/2021,1248563,Pursuing Independent Paths,B*Voluntary-Spot-V Dep-Enhanced - do not u,Bi-Borough Director of Integrated Care,546.9
23/06/2021,1248563,Pursuing Independent Paths,B*Voluntary-Spot-V Dep-Enhanced - do not u,Bi-Borough Director of Integrated Care,510.44
23/06/2021,1248563,Pursuing Independent Paths,B*Voluntary-Spot-V Dep-Enhanced - do not u,Bi-Borough Director of Integrated Care,1020.88
23/06/2021,1248563,Pursuing Independent Paths,B*Voluntary-Spot-V Dep-Enhanced - do not u,Bi-Borough Director of Integrated Care,510.44
23/06/2021,1248563,Pursuing Independent Paths,B*Voluntary-Spot-V Dep-Enhanced - do not u,Bi-Borough Director of Integrated Care,1531.32
23/06/2021,1248563,Pursuing Independent Paths,B*Voluntary-Spot-V Dep-Enhanced - do not u,Bi-Borough Director of Integrated Care,1276.1
23/06/2021,1248563,Pursuing Independent Paths,B*Voluntary-Spot-V Dep-Enhanced - do not u,Bi-Borough Director of Integrated Care,2552.2
23/06/2021,1248563,Pursuing Independent Paths,B*Voluntary-Spot-V Dep-Enhanced - do not u,Bi-Borough Director of Integrated Care,1531.32
23/06/2021,1248563,Pursuing Independent Paths,B*Voluntary-Spot-V Dep-Enhanced - do not u,Bi-Borough Director of Integrated Care,1531.32
23/06/2021,1248563,Pursuing Independent Paths,B*Voluntary-Spot-V Dep-Enhanced - do not u,Bi-Borough Director of Integrated Care,1531.32
23/06/2021,1248563,Pursuing Independent Paths,B*Voluntary-Spot-V Dep-Enhanced - do not u,Bi-Borough Director of Integrated Care,1531.32
23/06/2021,1248563,Pursuing Independent Paths,B*Voluntary-Spot-V Dep-Enhanced - do not u,Bi-Borough Director of Integrated Care,1020.88
23/06/2021,1248563,Pursuing Independent Paths,B*Voluntary-Spot-V Dep-Enhanced - do not u,Bi-Borough Director of Integrated Care,1276.1
23/06/2021,1248563,Pursuing Independent Paths,B*Voluntary-Spot-V Dep-Enhanced - do not u,Bi-Borough Director of Integrated Care,510.44
23/06/2021,1248563,Pursuing Independent Paths,B*Voluntary-Spot-V Dep-Enhanced - do not u,Bi-Borough Director of Integrated Care,1531.32
23/06/2021,1248563,Pursuing Independent Paths,B*Voluntary-Spot-V Dep-Enhanced - do not u,Bi-Borough Director of Integrated Care,1252.72
23/06/2021,1248563,Pursuing Independent Paths,B*Voluntary-Spot-V Dep-Enhanced - do not u,Bi-Borough Director of Integrated Care,510.44
23/06/2021,1248563,Pursuing Independent Paths,B*Voluntary-Spot-V Dep-Enhanced - do not u,Bi-Borough Director of Integrated Care,510.44
23/06/2021,1248563,Pursuing Independent Paths,B*Voluntary-Spot-V Dep-Enhanced - do not u,Bi-Borough Director of Integrated Care,1879.08
23/06/2021,1248563,Pursuing Independent Paths,B*Voluntary-Spot-V Dep-Enhanced - do not u,Bi-Borough Director of Integrated Care,510.44
23/06/2021,1248563,Pursuing Independent Paths,B*Voluntary-Spot-V Dep-Enhanced - do not u,Bi-Borough Director of Integrated Care,510.44
23/06/2021,1248563,Pursuing Independent Paths,B*Voluntary-Spot-V Dep-Enhanced - do not u,Bi-Borough Director of Integrated Care,583.36
23/06/2021,1248563,Pursuing Independent Paths,B*Voluntary-Spot-V Dep-Enhanced - do not u,Bi-Borough Director of Integrated Care,1531.32
23/06/2021,1248563,Pursuing Independent Paths,B*Voluntary-Spot-V Dep-Enhanced - do not u,Bi-Borough Director of Integrated Care,2041.76
23/06/2021,1248563,Pursuing Independent Paths,B*Voluntary-Spot-V Dep-Enhanced - do not u,Bi-Borough Director of Integrated Care,1276.1
23/06/2021,1248563,Pursuing Independent Paths,B*Voluntary-Spot-V Dep-Enhanced - do not u,Bi-Borough Director of Integrated Care,1531.32
23/06/2021,1248563,Pursuing Independent Paths,B*Voluntary-Spot-V Dep-Enhanced - do not u,Bi-Borough Director of Integrated Care,1531.32
26/05/2021,1278739,RESIDE HOUSING ASSOCIATION LTD,,Bi-Borough Director of Integrated Care,2982.54
23/06/2021,1278739,RESIDE HOUSING ASSOCIATION LTD,,Bi-Borough Director of Integrated Care,1094.68
28/04/2021,1245169,Rcp Residential Care Providers Ltd,,Bi-Borough Director of Integrated Care,831.21
28/04/2021,1245169,Rcp Residential Care Providers Ltd,,Bi-Borough Director of Integrated Care,5149.46
26/05/2021,1245169,Rcp Residential Care Providers Ltd,,Bi-Borough Director of Integrated Care,5767.4
26/05/2021,1245169,Rcp Residential Care Providers Ltd,,Bi-Borough Director of Integrated Care,930.96
23/06/2021,1245169,Rcp Residential Care Providers Ltd,,Bi-Borough Director of Integrated Care,930.96
23/06/2021,1245169,Rcp Residential Care Providers Ltd,,Bi-Borough Director of Integrated Care,5767.4
26/05/2021,1269718,Reliant Care Limited,,Bi-Borough Director of Integrated Care,34586.37
07/04/2021,1245316,Respect Care Services Ltd,,Bi-Borough Director of Integrated Care,1506.04
16/04/2021,1245316,Respect Care Services Ltd,,Bi-Borough Director of Integrated Care,1506.04
18/05/2021,1245316,Respect Care Services Ltd,,Bi-Borough Director of Integrated Care,1506.04
26/05/2021,1245316,Respect Care Services Ltd,,Bi-Borough Director of Integrated Care,1543.76
16/06/2021,1245316,Respect Care Services Ltd,,Bi-Borough Director of Integrated Care,1543.76
28/04/2021,1245172,Richmond Health Care Ltd,,Bi-Borough Director of Integrated Care,4028.57
26/05/2021,1245172,Richmond Health Care Ltd,,Bi-Borough Director of Integrated Care,4512
23/06/2021,1245172,Richmond Health Care Ltd,,Bi-Borough Director of Integrated Care,4512
28/04/2021,1248621,Rnib Redhill College,,Bi-Borough Director of Integrated Care,4803.93
26/05/2021,1248621,Rnib Redhill College,,Bi-Borough Director of Integrated Care,5380.4
23/06/2021,1248621,Rnib Redhill College,,Bi-Borough Director of Integrated Care,5380.4
22/04/2021,1248843,Sage Care Ltd,,Bi-Borough Director of Integrated Care,746
22/04/2021,1248843,Sage Care Ltd,,Bi-Borough Director of Integrated Care,722.53
22/04/2021,1248843,Sage Care Ltd,,Bi-Borough Director of Integrated Care,683.58
22/04/2021,1248843,Sage Care Ltd,,Bi-Borough Director of Integrated Care,612.35
22/04/2021,1248843,Sage Care Ltd,,Bi-Borough Director of Integrated Care,1635.32
22/04/2021,1248843,Sage Care Ltd,,Bi-Borough Director of Integrated Care,1488.98
10/06/2021,1248843,Sage Care Ltd,,Bi-Borough Director of Integrated Care,782.34
10/06/2021,1248843,Sage Care Ltd,,Bi-Borough Director of Integrated Care,551.64
10/06/2021,1248843,Sage Care Ltd,,Bi-Borough Director of Integrated Care,1667.33
10/06/2021,1248843,Sage Care Ltd,,Bi-Borough Director of Integrated Care,1556.52
10/06/2021,1248843,Sage Care Ltd,,Bi-Borough Director of Integrated Care,774.55
28/04/2021,1262057,Sense - The National Deafbllind,,Bi-Borough Director of Integrated Care,4062.5
28/04/2021,1262057,Sense - The National Deafbllind,,Bi-Borough Director of Integrated Care,4062.5
26/05/2021,1262057,Sense - The National Deafbllind,,Bi-Borough Director of Integrated Care,4550
26/05/2021,1262057,Sense - The National Deafbllind,,Bi-Borough Director of Integrated Care,4550
23/06/2021,1262057,Sense - The National Deafbllind,,Bi-Borough Director of Integrated Care,4550
23/06/2021,1262057,Sense - The National Deafbllind,,Bi-Borough Director of Integrated Care,4550
27/04/2021,1243535,Sequence Care Ltd,,Bi-Borough Director of Integrated Care,89116.05
27/04/2021,1243535,Sequence Care Ltd,,Bi-Borough Director of Integrated Care,89116.05
28/04/2021,1243535,Sequence Care Ltd,,Bi-Borough Director of Integrated Care,33183.91
28/04/2021,1243535,Sequence Care Ltd,,Bi-Borough Director of Integrated Care,9081.71
28/04/2021,1243535,Sequence Care Ltd,,Bi-Borough Director of Integrated Care,9081.71
28/04/2021,1243535,Sequence Care Ltd,,Bi-Borough Director of Integrated Care,15185.25
26/05/2021,1243535,Sequence Care Ltd,,Bi-Borough Director of Integrated Care,30007.7
26/05/2021,1243535,Sequence Care Ltd,,Bi-Borough Director of Integrated Care,10171.52
26/05/2021,1243535,Sequence Care Ltd,,Bi-Borough Director of Integrated Care,10171.52
26/05/2021,1243535,Sequence Care Ltd,,Bi-Borough Director of Integrated Care,17007.48
23/06/2021,1243535,Sequence Care Ltd,,Bi-Borough Director of Integrated Care,10171.52
23/06/2021,1243535,Sequence Care Ltd,,Bi-Borough Director of Integrated Care,10171.52
23/06/2021,1243535,Sequence Care Ltd,,Bi-Borough Director of Integrated Care,17007.48
23/06/2021,1243535,Sequence Care Ltd,,Bi-Borough Director of Integrated Care,9857.4
28/04/2021,1245566,Shaw Care Uk Ltd,,Bi-Borough Director of Integrated Care,2857.14
28/04/2021,1245566,Shaw Care Uk Ltd,,Bi-Borough Director of Integrated Care,2857.14
26/05/2021,1245566,Shaw Care Uk Ltd,,Bi-Borough Director of Integrated Care,3200
26/05/2021,1245566,Shaw Care Uk Ltd,,Bi-Borough Director of Integrated Care,3200
23/06/2021,1245566,Shaw Care Uk Ltd,,Bi-Borough Director of Integrated Care,3200
23/06/2021,1245566,Shaw Care Uk Ltd,,Bi-Borough Director of Integrated Care,3200
28/04/2021,1248935,Southside Partnership,,Bi-Borough Director of Integrated Care,3207.86
28/04/2021,1248935,Southside Partnership,,Bi-Borough Director of Integrated Care,714.29
28/04/2021,1248935,Southside Partnership,,Bi-Borough Director of Integrated Care,2273.82
28/04/2021,1248935,Southside Partnership,,Bi-Borough Director of Integrated Care,714.29
26/05/2021,1248935,Southside Partnership,,Bi-Borough Director of Integrated Care,3592.8
26/05/2021,1248935,Southside Partnership,,Bi-Borough Director of Integrated Care,800
26/05/2021,1248935,Southside Partnership,,Bi-Borough Director of Integrated Care,800
26/05/2021,1248935,Southside Partnership,,Bi-Borough Director of Integrated Care,2546.68
23/06/2021,1248935,Southside Partnership,,Bi-Borough Director of Integrated Care,800
23/06/2021,1248935,Southside Partnership,,Bi-Borough Director of Integrated Care,3592.8
23/06/2021,1248935,Southside Partnership,,Bi-Borough Director of Integrated Care,2546.68
23/06/2021,1248935,Southside Partnership,,Bi-Borough Director of Integrated Care,800
07/04/2021,1248940,Special People,B*Voluntary-Spot-V Dep-Enhanced - do not u,Bi-Borough Director of Integrated Care,753.84
07/04/2021,1248940,Special People,B*Voluntary-Spot-V Dep-Enhanced - do not u,Bi-Borough Director of Integrated Care,2078.94
18/05/2021,1248940,Special People,B*Voluntary-Spot-V Dep-Enhanced - do not u,Bi-Borough Director of Integrated Care,4083.3
04/06/2021,1248940,Special People,B*Voluntary-Spot-V Dep-Enhanced - do not u,Bi-Borough Director of Integrated Care,3733.14
04/06/2021,1248940,Special People,B*Voluntary-Spot-V Dep-Enhanced - do not u,Bi-Borough Director of Integrated Care,1595.52
28/04/2021,1245620,Spencer & Arlington,,Bi-Borough Director of Integrated Care,3325.5
28/04/2021,1245620,Spencer & Arlington,,Bi-Borough Director of Integrated Care,12835.2
28/04/2021,1245620,Spencer & Arlington,,Bi-Borough Director of Integrated Care,2300
28/04/2021,1245620,Spencer & Arlington,,Bi-Borough Director of Integrated Care,6627.6
26/05/2021,1245620,Spencer & Arlington,,Bi-Borough Director of Integrated Care,12835.2
26/05/2021,1245620,Spencer & Arlington,,Bi-Borough Director of Integrated Care,3724.56
26/05/2021,1245620,Spencer & Arlington,,Bi-Borough Director of Integrated Care,6627.6
26/05/2021,1245620,Spencer & Arlington,,Bi-Borough Director of Integrated Care,2576
23/06/2021,1245620,Spencer & Arlington,,Bi-Borough Director of Integrated Care,12835.2
23/06/2021,1245620,Spencer & Arlington,,Bi-Borough Director of Integrated Care,3724.56
23/06/2021,1245620,Spencer & Arlington,,Bi-Borough Director of Integrated Care,2576
23/06/2021,1245620,Spencer & Arlington,,Bi-Borough Director of Integrated Care,6627.6
28/04/2021,1243543,Springlake Care Home Ltd,,Bi-Borough Director of Integrated Care,6071.43
28/04/2021,1243543,Springlake Care Home Ltd,,Bi-Borough Director of Integrated Care,4821.43
28/04/2021,1243543,Springlake Care Home Ltd,,Bi-Borough Director of Integrated Care,5357.14
26/05/2021,1243543,Springlake Care Home Ltd,,Bi-Borough Director of Integrated Care,5400
26/05/2021,1243543,Springlake Care Home Ltd,,Bi-Borough Director of Integrated Care,6000
26/05/2021,1243543,Springlake Care Home Ltd,,Bi-Borough Director of Integrated Care,6800
23/06/2021,1243543,Springlake Care Home Ltd,,Bi-Borough Director of Integrated Care,5400
23/06/2021,1243543,Springlake Care Home Ltd,,Bi-Borough Director of Integrated Care,6000
23/06/2021,1243543,Springlake Care Home Ltd,,Bi-Borough Director of Integrated Care,6800
28/04/2021,1248948,St Davids Care In The Community,,Bi-Borough Director of Integrated Care,2796.93
28/04/2021,1248948,St Davids Care In The Community,,Bi-Borough Director of Integrated Care,3071.43
26/05/2021,1248948,St Davids Care In The Community,,Bi-Borough Director of Integrated Care,3132.56
26/05/2021,1248948,St Davids Care In The Community,,Bi-Borough Director of Integrated Care,3440
23/06/2021,1248948,St Davids Care In The Community,,Bi-Borough Director of Integrated Care,3132.56
23/06/2021,1248948,St Davids Care In The Community,,Bi-Borough Director of Integrated Care,3440
06/04/2021,1245825,Sweet Tree Home Care Services,,Bi-Borough Director of Integrated Care,7729.4
23/04/2021,1245825,Sweet Tree Home Care Services,,Bi-Borough Director of Integrated Care,8385.15
23/04/2021,1245825,Sweet Tree Home Care Services,,Bi-Borough Director of Integrated Care,6997.19
23/04/2021,1245825,Sweet Tree Home Care Services,,Bi-Borough Director of Integrated Care,8742.16
07/05/2021,1245825,Sweet Tree Home Care Services,,Bi-Borough Director of Integrated Care,7210.62
18/05/2021,1245825,Sweet Tree Home Care Services,,Bi-Borough Director of Integrated Care,5983.02
18/05/2021,1245825,Sweet Tree Home Care Services,,Bi-Borough Director of Integrated Care,4555.89
17/06/2021,1245825,Sweet Tree Home Care Services,,Bi-Borough Director of Integrated Care,4681.74
17/06/2021,1245825,Sweet Tree Home Care Services,,Bi-Borough Director of Integrated Care,4552.65
17/06/2021,1245825,Sweet Tree Home Care Services,,Bi-Borough Director of Integrated Care,8522.37
28/04/2021,1245900,The Grace Eyre Foundation,,Bi-Borough Director of Integrated Care,2937.64
28/04/2021,1245900,The Grace Eyre Foundation,,Bi-Borough Director of Integrated Care,3782.11
26/05/2021,1245900,The Grace Eyre Foundation,,Bi-Borough Director of Integrated Care,3290.16
26/05/2021,1245900,The Grace Eyre Foundation,,Bi-Borough Director of Integrated Care,4235.96
23/06/2021,1245900,The Grace Eyre Foundation,,Bi-Borough Director of Integrated Care,3290.16
23/06/2021,1245900,The Grace Eyre Foundation,,Bi-Borough Director of Integrated Care,4235.96
28/04/2021,1245929,The Regard Partnership Ltd,,Bi-Borough Director of Integrated Care,3511.39
26/05/2021,1245929,The Regard Partnership Ltd,,Bi-Borough Director of Integrated Care,3932.76
23/06/2021,1245929,The Regard Partnership Ltd,,Bi-Borough Director of Integrated Care,3932.76
28/04/2021,1249156,The Wirral Autistic Society,,Bi-Borough Director of Integrated Care,3813.57
26/05/2021,1249156,The Wirral Autistic Society,,Bi-Borough Director of Integrated Care,4271.2
23/06/2021,1249156,The Wirral Autistic Society,,Bi-Borough Director of Integrated Care,4271.2
28/04/2021,1246095,Theana Ltd T/a Enlighten Homes,,Bi-Borough Director of Integrated Care,5260.71
26/05/2021,1246095,Theana Ltd T/a Enlighten Homes,,Bi-Borough Director of Integrated Care,5892
23/06/2021,1246095,Theana Ltd T/a Enlighten Homes,,Bi-Borough Director of Integrated Care,5892
28/04/2021,1243552,Vision Homes Association,,Bi-Borough Director of Integrated Care,6928.57
26/05/2021,1243552,Vision Homes Association,,Bi-Borough Director of Integrated Care,7760
23/06/2021,1243552,Vision Homes Association,,Bi-Borough Director of Integrated Care,7760
28/04/2021,1243553,Voyage Care (Bridge House),,Bi-Borough Director of Integrated Care,4076.79
26/05/2021,1243553,Voyage Care (Bridge House),,Bi-Borough Director of Integrated Care,4566
23/06/2021,1243553,Voyage Care (Bridge House),,Bi-Borough Director of Integrated Care,4566
28/04/2021,1243554,Voyage Care (Kenton House),,Bi-Borough Director of Integrated Care,5187.46
26/05/2021,1243554,Voyage Care (Kenton House),,Bi-Borough Director of Integrated Care,5809.96
23/06/2021,1243554,Voyage Care (Kenton House),,Bi-Borough Director of Integrated Care,5809.96
27/04/2021,1249291,Westminster Society,B*Voluntary-Spot-V Dep-Enhanced - do not u,Bi-Borough Director of Integrated Care,2040
27/04/2021,1249291,Westminster Society,B*Voluntary-Spot-V Dep-Enhanced - do not u,Bi-Borough Director of Integrated Care,952
27/04/2021,1249291,Westminster Society,B*Voluntary-Spot-V Dep-Enhanced - do not u,Bi-Borough Director of Integrated Care,816
27/04/2021,1249291,Westminster Society,B*Voluntary-Spot-V Dep-Enhanced - do not u,Bi-Borough Director of Integrated Care,680
27/04/2021,1249291,Westminster Society,B*Voluntary-Spot-V Dep-Enhanced - do not u,Bi-Borough Director of Integrated Care,680
27/04/2021,1249291,Westminster Society,B*Voluntary-Spot-V Dep-Enhanced - do not u,Bi-Borough Director of Integrated Care,544
27/04/2021,1249291,Westminster Society,B*Voluntary-Spot-V Dep-Enhanced - do not u,Bi-Borough Director of Integrated Care,612
27/04/2021,1249291,Westminster Society,B*Voluntary-Spot-V Dep-Enhanced - do not u,Bi-Borough Director of Integrated Care,816
27/04/2021,1249291,Westminster Society,B*Voluntary-Spot-V Dep-Enhanced - do not u,Bi-Borough Director of Integrated Care,884
27/04/2021,1249291,Westminster Society,B*Voluntary-Spot-V Dep-Enhanced - do not u,Bi-Borough Director of Integrated Care,782
27/04/2021,1249291,Westminster Society,B*Voluntary-Spot-V Dep-Enhanced - do not u,Bi-Borough Director of Integrated Care,1632
27/04/2021,1249291,Westminster Society,B*Voluntary-Spot-V Dep-Enhanced - do not u,Bi-Borough Director of Integrated Care,748
27/04/2021,1249291,Westminster Society,B*Voluntary-Spot-V Dep-Enhanced - do not u,Bi-Borough Director of Integrated Care,612
27/04/2021,1249291,Westminster Society,B*Voluntary-Spot-V Dep-Enhanced - do not u,Bi-Borough Director of Integrated Care,544
27/04/2021,1249291,Westminster Society,B*Voluntary-Spot-V Dep-Enhanced - do not u,Bi-Borough Director of Integrated Care,2890
27/04/2021,1249291,Westminster Society,B*Voluntary-Spot-V Dep-Enhanced - do not u,Bi-Borough Director of Integrated Care,612
28/04/2021,1249291,Westminster Society,,Bi-Borough Director of Integrated Care,2964.5
28/04/2021,1249291,Westminster Society,,Bi-Borough Director of Integrated Care,3872
28/04/2021,1249291,Westminster Society,,Bi-Borough Director of Integrated Care,1255.39
28/04/2021,1249291,Westminster Society,,Bi-Borough Director of Integrated Care,637.18
28/04/2021,1249291,Westminster Society,,Bi-Borough Director of Integrated Care,3031.04
28/04/2021,1249291,Westminster Society,,Bi-Borough Director of Integrated Care,2722.5
28/04/2021,1249291,Westminster Society,,Bi-Borough Director of Integrated Care,2964.5
28/04/2021,1249291,Westminster Society,,Bi-Borough Director of Integrated Care,643.75
28/04/2021,1249291,Westminster Society,,Bi-Borough Director of Integrated Care,4375.96
28/04/2021,1249291,Westminster Society,,Bi-Borough Director of Integrated Care,2537.86
28/04/2021,1249291,Westminster Society,,Bi-Borough Director of Integrated Care,643.75
28/04/2021,1249291,Westminster Society,,Bi-Borough Director of Integrated Care,3463.64
28/04/2021,1249291,Westminster Society,,Bi-Borough Director of Integrated Care,762.46
28/04/2021,1249291,Westminster Society,,Bi-Borough Director of Integrated Care,1058.75
28/04/2021,1249291,Westminster Society,,Bi-Borough Director of Integrated Care,2904
28/04/2021,1249291,Westminster Society,,Bi-Borough Director of Integrated Care,1331
28/04/2021,1249291,Westminster Society,,Bi-Borough Director of Integrated Care,998.25
28/04/2021,1249291,Westminster Society,,Bi-Borough Director of Integrated Care,643.75
28/04/2021,1249291,Westminster Society,,Bi-Borough Director of Integrated Care,6993.79
28/04/2021,1249291,Westminster Society,,Bi-Borough Director of Integrated Care,762.46
28/04/2021,1249291,Westminster Society,,Bi-Borough Director of Integrated Care,953.07
28/04/2021,1249291,Westminster Society,,Bi-Borough Director of Integrated Care,5001.54
28/04/2021,1249291,Westminster Society,,Bi-Borough Director of Integrated Care,643.75
28/04/2021,1249291,Westminster Society,,Bi-Borough Director of Integrated Care,2964.5
28/04/2021,1249291,Westminster Society,,Bi-Borough Director of Integrated Care,1089
28/04/2021,1249291,Westminster Society,,Bi-Borough Director of Integrated Care,3025
28/04/2021,1249291,Westminster Society,,Bi-Borough Director of Integrated Care,3388
28/04/2021,1249291,Westminster Society,,Bi-Borough Director of Integrated Care,1703.68
28/04/2021,1249291,Westminster Society,,Bi-Borough Director of Integrated Care,637.18
28/04/2021,1249291,Westminster Society,,Bi-Borough Director of Integrated Care,4452.79
28/04/2021,1249291,Westminster Society,,Bi-Borough Director of Integrated Care,5566
28/04/2021,1249291,Westminster Society,,Bi-Borough Director of Integrated Care,637.18
28/04/2021,1249291,Westminster Society,,Bi-Borough Director of Integrated Care,762.46
28/04/2021,1249291,Westminster Society,,Bi-Borough Director of Integrated Care,3267
28/04/2021,1249291,Westminster Society,,Bi-Borough Director of Integrated Care,1815
28/04/2021,1249291,Westminster Society,,Bi-Borough Director of Integrated Care,3282.14
28/04/2021,1249291,Westminster Society,,Bi-Borough Director of Integrated Care,1694
28/04/2021,1249291,Westminster Society,,Bi-Borough Director of Integrated Care,1450.5
28/04/2021,1249291,Westminster Society,,Bi-Borough Director of Integrated Care,6594.5
28/04/2021,1249291,Westminster Society,,Bi-Borough Director of Integrated Care,2420
28/04/2021,1249291,Westminster Society,,Bi-Borough Director of Integrated Care,1996.5
28/04/2021,1249291,Westminster Society,,Bi-Borough Director of Integrated Care,877.25
28/04/2021,1249291,Westminster Society,,Bi-Borough Director of Integrated Care,1573
28/04/2021,1249291,Westminster Society,,Bi-Borough Director of Integrated Care,847
28/04/2021,1249291,Westminster Society,,Bi-Borough Director of Integrated Care,2081.21
28/04/2021,1249291,Westminster Society,,Bi-Borough Director of Integrated Care,3829.64
28/04/2021,1249291,Westminster Society,,Bi-Borough Director of Integrated Care,4900.5
28/04/2021,1249291,Westminster Society,,Bi-Borough Director of Integrated Care,953.07
28/04/2021,1249291,Westminster Society,,Bi-Borough Director of Integrated Care,643.75
28/04/2021,1249291,Westminster Society,,Bi-Borough Director of Integrated Care,5001.54
28/04/2021,1249291,Westminster Society,,Bi-Borough Director of Integrated Care,637.18
28/04/2021,1249291,Westminster Society,,Bi-Borough Director of Integrated Care,3073.39
28/04/2021,1249291,Westminster Society,,Bi-Borough Director of Integrated Care,4930.75
28/04/2021,1249291,Westminster Society,,Bi-Borough Director of Integrated Care,637.18
28/04/2021,1249291,Westminster Society,,Bi-Borough Director of Integrated Care,1996.5
28/04/2021,1249291,Westminster Society,,Bi-Borough Director of Integrated Care,2798.14
28/04/2021,1249291,Westminster Society,,Bi-Borough Director of Integrated Care,762.46
28/04/2021,1249291,Westminster Society,,Bi-Borough Director of Integrated Care,1694
28/04/2021,1249291,Westminster Society,,Bi-Borough Director of Integrated Care,637.18
28/04/2021,1249291,Westminster Society,,Bi-Borough Director of Integrated Care,1694
28/04/2021,1249291,Westminster Society,,Bi-Borough Director of Integrated Care,2359.5
28/04/2021,1249291,Westminster Society,,Bi-Borough Director of Integrated Care,3085.5
28/04/2021,1249291,Westminster Society,,Bi-Borough Director of Integrated Care,1633.5
28/04/2021,1249291,Westminster Society,,Bi-Borough Director of Integrated Care,2537.86
28/04/2021,1249291,Westminster Society,,Bi-Borough Director of Integrated Care,5856.39
28/04/2021,1249291,Westminster Society,,Bi-Borough Director of Integrated Care,1119.25
28/04/2021,1249291,Westminster Society,,Bi-Borough Director of Integrated Care,1104.14
28/04/2021,1249291,Westminster Society,,Bi-Borough Director of Integrated Care,2752.75
28/04/2021,1249291,Westminster Society,,Bi-Borough Director of Integrated Care,3085.5
28/04/2021,1249291,Westminster Society,,Bi-Borough Director of Integrated Care,3509
28/04/2021,1249291,Westminster Society,,Bi-Borough Director of Integrated Care,544.5
28/04/2021,1249291,Westminster Society,,Bi-Borough Director of Integrated Care,7623
28/04/2021,1249291,Westminster Society,,Bi-Borough Director of Integrated Care,762.46
28/04/2021,1249291,Westminster Society,,Bi-Borough Director of Integrated Care,643.75
28/04/2021,1249291,Westminster Society,,Bi-Borough Director of Integrated Care,643.75
28/04/2021,1249291,Westminster Society,,Bi-Borough Director of Integrated Care,3484.79
28/04/2021,1249291,Westminster Society,,Bi-Borough Director of Integrated Care,762.46
28/04/2021,1249291,Westminster Society,,Bi-Borough Director of Integrated Care,2238.5
28/04/2021,1249291,Westminster Society,,Bi-Borough Director of Integrated Care,4204.75
28/04/2021,1249291,Westminster Society,,Bi-Borough Director of Integrated Care,2299
28/04/2021,1249291,Westminster Society,,Bi-Borough Director of Integrated Care,1754.5
28/04/2021,1249291,Westminster Society,,Bi-Borough Director of Integrated Care,3221.64
28/04/2021,1249291,Westminster Society,,Bi-Borough Director of Integrated Care,762.46
28/04/2021,1249291,Westminster Society,,Bi-Borough Director of Integrated Care,2480.5
28/04/2021,1249291,Westminster Society,,Bi-Borough Director of Integrated Care,2057
28/04/2021,1249291,Westminster Society,,Bi-Borough Director of Integrated Care,2117.5
28/04/2021,1249291,Westminster Society,,Bi-Borough Director of Integrated Care,3031.04
28/04/2021,1249291,Westminster Society,,Bi-Borough Director of Integrated Care,637.18
28/04/2021,1249291,Westminster Society,,Bi-Borough Director of Integrated Care,508.2
28/04/2021,1249291,Westminster Society,,Bi-Borough Director of Integrated Care,762.46
28/04/2021,1249291,Westminster Society,,Bi-Borough Director of Integrated Care,643.75
28/04/2021,1249291,Westminster Society,,Bi-Borough Director of Integrated Care,3484.79
28/04/2021,1249291,Westminster Society,,Bi-Borough Director of Integrated Care,3666.29
28/04/2021,1249291,Westminster Society,,Bi-Borough Director of Integrated Care,643.75
28/04/2021,1249291,Westminster Society,,Bi-Borough Director of Integrated Care,762.46
28/04/2021,1249291,Westminster Society,,Bi-Borough Director of Integrated Care,643.75
28/04/2021,1249291,Westminster Society,,Bi-Borough Director of Integrated Care,953.07
28/04/2021,1249291,Westminster Society,,Bi-Borough Director of Integrated Care,5269.54
28/04/2021,1249291,Westminster Society,,Bi-Borough Director of Integrated Care,637.18
28/04/2021,1249291,Westminster Society,,Bi-Borough Director of Integrated Care,2389.75
28/04/2021,1249291,Westminster Society,,Bi-Borough Director of Integrated Care,605
28/04/2021,1249291,Westminster Society,,Bi-Borough Director of Integrated Care,1633.5
28/04/2021,1249291,Westminster Society,,Bi-Borough Director of Integrated Care,4658.5
28/04/2021,1249291,Westminster Society,,Bi-Borough Director of Integrated Care,7139
28/04/2021,1249291,Westminster Society,,Bi-Borough Director of Integrated Care,1450.5
28/04/2021,1249291,Westminster Society,,Bi-Borough Director of Integrated Care,4431.64
28/04/2021,1249291,Westminster Society,,Bi-Borough Director of Integrated Care,762.46
28/04/2021,1249291,Westminster Society,,Bi-Borough Director of Integrated Care,847
28/04/2021,1249291,Westminster Society,,Bi-Borough Director of Integrated Care,1089
28/04/2021,1249291,Westminster Society,,Bi-Borough Director of Integrated Care,1875.5
28/04/2021,1249291,Westminster Society,,Bi-Borough Director of Integrated Care,695.75
28/04/2021,1249291,Westminster Society,,Bi-Borough Director of Integrated Care,3448.5
28/04/2021,1249291,Westminster Society,,Bi-Borough Director of Integrated Care,762.46
28/04/2021,1249291,Westminster Society,,Bi-Borough Director of Integrated Care,5130.39
28/04/2021,1249291,Westminster Society,,Bi-Borough Director of Integrated Care,637.18
18/05/2021,1249291,Westminster Society,B*Voluntary-Spot-V Dep-Enhanced - do not u,Bi-Borough Director of Integrated Care,1853
18/05/2021,1249291,Westminster Society,B*Voluntary-Spot-V Dep-Enhanced - do not u,Bi-Borough Director of Integrated Care,510
24/05/2021,1249291,Westminster Society,B*Voluntary-Spot-V Dep-Enhanced - do not u,Bi-Borough Director of Integrated Care,510
24/05/2021,1249291,Westminster Society,B*Voluntary-Spot-V Dep-Enhanced - do not u,Bi-Borough Director of Integrated Care,765
24/05/2021,1249291,Westminster Society,B*Voluntary-Spot-V Dep-Enhanced - do not u,Bi-Borough Director of Integrated Care,510
24/05/2021,1249291,Westminster Society,B*Voluntary-Spot-V Dep-Enhanced - do not u,Bi-Borough Director of Integrated Care,510
24/05/2021,1249291,Westminster Society,B*Voluntary-Spot-V Dep-Enhanced - do not u,Bi-Borough Director of Integrated Care,510
24/05/2021,1249291,Westminster Society,B*Voluntary-Spot-V Dep-Enhanced - do not u,Bi-Borough Director of Integrated Care,510
24/05/2021,1249291,Westminster Society,B*Voluntary-Spot-V Dep-Enhanced - do not u,Bi-Borough Director of Integrated Care,510
24/05/2021,1249291,Westminster Society,B*Voluntary-Spot-V Dep-Enhanced - do not u,Bi-Borough Director of Integrated Care,510
24/05/2021,1249291,Westminster Society,B*Voluntary-Spot-V Dep-Enhanced - do not u,Bi-Borough Director of Integrated Care,510
24/05/2021,1249291,Westminster Society,B*Voluntary-Spot-V Dep-Enhanced - do not u,Bi-Borough Director of Integrated Care,510
24/05/2021,1249291,Westminster Society,B*Voluntary-Spot-V Dep-Enhanced - do not u,Bi-Borough Director of Integrated Care,510
24/05/2021,1249291,Westminster Society,B*Voluntary-Spot-V Dep-Enhanced - do not u,Bi-Borough Director of Integrated Care,510
24/05/2021,1249291,Westminster Society,B*Voluntary-Spot-V Dep-Enhanced - do not u,Bi-Borough Director of Integrated Care,765
24/05/2021,1249291,Westminster Society,B*Voluntary-Spot-V Dep-Enhanced - do not u,Bi-Borough Director of Integrated Care,510
24/05/2021,1249291,Westminster Society,B*Voluntary-Spot-V Dep-Enhanced - do not u,Bi-Borough Director of Integrated Care,510
24/05/2021,1249291,Westminster Society,B*Voluntary-Spot-V Dep-Enhanced - do not u,Bi-Borough Director of Integrated Care,510
24/05/2021,1249291,Westminster Society,B*Voluntary-Spot-V Dep-Enhanced - do not u,Bi-Borough Director of Integrated Care,1020
25/05/2021,1249291,Westminster Society,Rent,Bi-Borough Director of Integrated Care,9811.72
25/05/2021,1249291,Westminster Society,Rent,Bi-Borough Director of Integrated Care,8990.86
26/05/2021,1249291,Westminster Society,,Bi-Borough Director of Integrated Care,3455.76
26/05/2021,1249291,Westminster Society,,Bi-Borough Director of Integrated Care,1829.52
26/05/2021,1249291,Westminster Society,,Bi-Borough Director of Integrated Care,6559.16
26/05/2021,1249291,Westminster Society,,Bi-Borough Director of Integrated Care,2842.4
26/05/2021,1249291,Westminster Society,,Bi-Borough Director of Integrated Care,1253.56
26/05/2021,1249291,Westminster Society,,Bi-Borough Director of Integrated Care,1236.64
26/05/2021,1249291,Westminster Society,,Bi-Borough Director of Integrated Care,3083.08
26/05/2021,1249291,Westminster Society,,Bi-Borough Director of Integrated Care,3455.76
26/05/2021,1249291,Westminster Society,,Bi-Borough Director of Integrated Care,540.76
26/05/2021,1249291,Westminster Society,,Bi-Borough Director of Integrated Care,3930.08
26/05/2021,1249291,Westminster Society,,Bi-Borough Director of Integrated Care,609.84
26/05/2021,1249291,Westminster Society,,Bi-Borough Director of Integrated Care,8537.76
26/05/2021,1249291,Westminster Society,,Bi-Borough Director of Integrated Care,721
26/05/2021,1249291,Westminster Society,,Bi-Borough Director of Integrated Care,853.96
26/05/2021,1249291,Westminster Society,,Bi-Borough Director of Integrated Care,3902.96
26/05/2021,1249291,Westminster Society,,Bi-Borough Director of Integrated Care,721
26/05/2021,1249291,Westminster Society,,Bi-Borough Director of Integrated Care,853.96
26/05/2021,1249291,Westminster Society,,Bi-Borough Director of Integrated Care,2507.12
26/05/2021,1249291,Westminster Society,,Bi-Borough Director of Integrated Care,4709.32
26/05/2021,1249291,Westminster Society,,Bi-Borough Director of Integrated Care,540.76
26/05/2021,1249291,Westminster Society,,Bi-Borough Director of Integrated Care,2574.88
26/05/2021,1249291,Westminster Society,,Bi-Borough Director of Integrated Care,1965.04
26/05/2021,1249291,Westminster Society,,Bi-Borough Director of Integrated Care,3608.24
26/05/2021,1249291,Westminster Society,,Bi-Borough Director of Integrated Care,853.96
26/05/2021,1249291,Westminster Society,,Bi-Borough Director of Integrated Care,2778.16
26/05/2021,1249291,Westminster Society,,Bi-Borough Director of Integrated Care,2303.84
26/05/2021,1249291,Westminster Society,,Bi-Borough Director of Integrated Care,2371.6
26/05/2021,1249291,Westminster Society,,Bi-Borough Director of Integrated Care,3394.76
26/05/2021,1249291,Westminster Society,,Bi-Borough Director of Integrated Care,713.64
26/05/2021,1249291,Westminster Society,,Bi-Borough Director of Integrated Care,3902.96
26/05/2021,1249291,Westminster Society,,Bi-Borough Director of Integrated Care,721
26/05/2021,1249291,Westminster Society,,Bi-Borough Director of Integrated Care,853.96
26/05/2021,1249291,Westminster Society,,Bi-Borough Director of Integrated Care,4106.24
26/05/2021,1249291,Westminster Society,,Bi-Borough Director of Integrated Care,721
26/05/2021,1249291,Westminster Society,,Bi-Borough Director of Integrated Care,853.96
26/05/2021,1249291,Westminster Society,,Bi-Borough Director of Integrated Care,1067.44
26/05/2021,1249291,Westminster Society,,Bi-Borough Director of Integrated Care,5901.88
26/05/2021,1249291,Westminster Society,,Bi-Borough Director of Integrated Care,721
26/05/2021,1249291,Westminster Society,,Bi-Borough Director of Integrated Care,2676.52
26/05/2021,1249291,Westminster Society,,Bi-Borough Director of Integrated Care,713.64
26/05/2021,1249291,Westminster Society,,Bi-Borough Director of Integrated Care,677.6
26/05/2021,1249291,Westminster Society,,Bi-Borough Director of Integrated Care,1829.52
26/05/2021,1249291,Westminster Society,,Bi-Borough Director of Integrated Care,5217.52
26/05/2021,1249291,Westminster Society,,Bi-Borough Director of Integrated Care,540.76
26/05/2021,1249291,Westminster Society,,Bi-Borough Director of Integrated Care,1624.56
26/05/2021,1249291,Westminster Society,,Bi-Borough Director of Integrated Care,7995.68
26/05/2021,1249291,Westminster Society,,Bi-Borough Director of Integrated Care,540.76
26/05/2021,1249291,Westminster Society,,Bi-Borough Director of Integrated Care,853.96
26/05/2021,1249291,Westminster Society,,Bi-Borough Director of Integrated Care,4963.44
26/05/2021,1249291,Westminster Society,,Bi-Borough Director of Integrated Care,948.64
26/05/2021,1249291,Westminster Society,,Bi-Borough Director of Integrated Care,1219.68
26/05/2021,1249291,Westminster Society,,Bi-Borough Director of Integrated Care,542.08
26/05/2021,1249291,Westminster Society,,Bi-Borough Director of Integrated Care,2100.56
26/05/2021,1249291,Westminster Society,,Bi-Borough Director of Integrated Care,779.24
26/05/2021,1249291,Westminster Society,,Bi-Borough Director of Integrated Care,853.96
26/05/2021,1249291,Westminster Society,,Bi-Borough Director of Integrated Care,3862.32
26/05/2021,1249291,Westminster Society,,Bi-Borough Director of Integrated Care,5746.04
26/05/2021,1249291,Westminster Society,,Bi-Borough Director of Integrated Care,713.64
26/05/2021,1249291,Westminster Society,,Bi-Borough Director of Integrated Care,3320.24
26/05/2021,1249291,Westminster Society,,Bi-Borough Director of Integrated Care,4336.64
26/05/2021,1249291,Westminster Society,,Bi-Borough Director of Integrated Care,1406.04
26/05/2021,1249291,Westminster Society,,Bi-Borough Director of Integrated Care,3394.76
26/05/2021,1249291,Westminster Society,,Bi-Borough Director of Integrated Care,713.64
26/05/2021,1249291,Westminster Society,,Bi-Borough Director of Integrated Care,3049.2
26/05/2021,1249291,Westminster Society,,Bi-Borough Director of Integrated Care,3320.24
26/05/2021,1249291,Westminster Society,,Bi-Borough Director of Integrated Care,542.08
26/05/2021,1249291,Westminster Society,,Bi-Borough Director of Integrated Care,4901.08
26/05/2021,1249291,Westminster Society,,Bi-Borough Director of Integrated Care,721
26/05/2021,1249291,Westminster Society,,Bi-Borough Director of Integrated Care,2842.4
26/05/2021,1249291,Westminster Society,,Bi-Borough Director of Integrated Care,721
26/05/2021,1249291,Westminster Society,,Bi-Borough Director of Integrated Care,853.96
26/05/2021,1249291,Westminster Society,,Bi-Borough Director of Integrated Care,3879.28
26/05/2021,1249291,Westminster Society,,Bi-Borough Director of Integrated Care,1185.8
26/05/2021,1249291,Westminster Society,,Bi-Borough Director of Integrated Care,3252.48
26/05/2021,1249291,Westminster Society,,Bi-Borough Director of Integrated Care,1490.72
26/05/2021,1249291,Westminster Society,,Bi-Borough Director of Integrated Care,540.76
26/05/2021,1249291,Westminster Society,,Bi-Borough Director of Integrated Care,1118.04
26/05/2021,1249291,Westminster Society,,Bi-Borough Director of Integrated Care,721
26/05/2021,1249291,Westminster Society,,Bi-Borough Director of Integrated Care,853.96
26/05/2021,1249291,Westminster Society,,Bi-Borough Director of Integrated Care,7833.04
26/05/2021,1249291,Westminster Society,,Bi-Borough Director of Integrated Care,1067.44
26/05/2021,1249291,Westminster Society,,Bi-Borough Director of Integrated Care,721
26/05/2021,1249291,Westminster Society,,Bi-Borough Director of Integrated Care,5601.72
26/05/2021,1249291,Westminster Society,,Bi-Borough Director of Integrated Care,540.76
26/05/2021,1249291,Westminster Society,,Bi-Borough Director of Integrated Care,3320.24
26/05/2021,1249291,Westminster Society,,Bi-Borough Director of Integrated Care,540.76
26/05/2021,1249291,Westminster Society,,Bi-Borough Director of Integrated Care,1219.68
26/05/2021,1249291,Westminster Society,,Bi-Borough Director of Integrated Care,3388
26/05/2021,1249291,Westminster Society,,Bi-Borough Director of Integrated Care,3794.56
26/05/2021,1249291,Westminster Society,,Bi-Borough Director of Integrated Care,813.12
26/05/2021,1249291,Westminster Society,,Bi-Borough Director of Integrated Care,713.64
26/05/2021,1249291,Westminster Society,,Bi-Borough Director of Integrated Care,4987.12
26/05/2021,1249291,Westminster Society,,Bi-Borough Director of Integrated Care,6233.92
26/05/2021,1249291,Westminster Society,,Bi-Borough Director of Integrated Care,713.64
26/05/2021,1249291,Westminster Society,,Bi-Borough Director of Integrated Care,3659.04
26/05/2021,1249291,Westminster Society,,Bi-Borough Director of Integrated Care,853.96
26/05/2021,1249291,Westminster Society,,Bi-Borough Director of Integrated Care,2032.8
26/05/2021,1249291,Westminster Society,,Bi-Borough Director of Integrated Care,540.76
26/05/2021,1249291,Westminster Society,,Bi-Borough Director of Integrated Care,3676
26/05/2021,1249291,Westminster Society,,Bi-Borough Director of Integrated Care,1897.28
26/05/2021,1249291,Westminster Society,,Bi-Borough Director of Integrated Care,540.76
26/05/2021,1249291,Westminster Society,,Bi-Borough Director of Integrated Care,7385.84
26/05/2021,1249291,Westminster Society,,Bi-Borough Director of Integrated Care,1624.56
26/05/2021,1249291,Westminster Society,,Bi-Borough Director of Integrated Care,2710.4
26/05/2021,1249291,Westminster Society,,Bi-Borough Director of Integrated Care,2236.08
26/05/2021,1249291,Westminster Society,,Bi-Borough Director of Integrated Care,982.52
26/05/2021,1249291,Westminster Society,,Bi-Borough Director of Integrated Care,1761.76
26/05/2021,1249291,Westminster Society,,Bi-Borough Director of Integrated Care,948.64
26/05/2021,1249291,Westminster Society,,Bi-Borough Director of Integrated Care,2330.96
26/05/2021,1249291,Westminster Society,,Bi-Borough Director of Integrated Care,4289.2
26/05/2021,1249291,Westminster Society,,Bi-Borough Director of Integrated Care,5488.56
26/05/2021,1249291,Westminster Society,,Bi-Borough Director of Integrated Care,1067.44
26/05/2021,1249291,Westminster Society,,Bi-Borough Director of Integrated Care,721
26/05/2021,1249291,Westminster Society,,Bi-Borough Director of Integrated Care,5601.72
26/05/2021,1249291,Westminster Society,,Bi-Borough Director of Integrated Care,713.64
26/05/2021,1249291,Westminster Society,,Bi-Borough Director of Integrated Care,3442.2
26/05/2021,1249291,Westminster Society,,Bi-Borough Director of Integrated Care,713.64
26/05/2021,1249291,Westminster Society,,Bi-Borough Director of Integrated Care,5522.44
26/05/2021,1249291,Westminster Society,,Bi-Borough Director of Integrated Care,2236.08
26/05/2021,1249291,Westminster Society,,Bi-Borough Director of Integrated Care,3133.92
26/05/2021,1249291,Westminster Society,,Bi-Borough Director of Integrated Care,853.96
26/05/2021,1249291,Westminster Society,,Bi-Borough Director of Integrated Care,1897.28
26/05/2021,1249291,Westminster Society,,Bi-Borough Director of Integrated Care,1897.28
26/05/2021,1249291,Westminster Society,,Bi-Borough Director of Integrated Care,713.64
26/05/2021,1249291,Westminster Society,B*Voluntary-Spot-V Dep-Enhanced - do not u,Bi-Borough Director of Integrated Care,2550
26/05/2021,1249291,Westminster Society,,Bi-Borough Director of Integrated Care,2642.64
26/05/2021,1249291,Westminster Society,B*Voluntary-Spot-V Dep-Enhanced - do not u,Bi-Borough Director of Integrated Care,595
26/05/2021,1249291,Westminster Society,B*Voluntary-Spot-V Dep-Enhanced - do not u,Bi-Borough Director of Integrated Care,510
26/05/2021,1249291,Westminster Society,B*Voluntary-Spot-V Dep-Enhanced - do not u,Bi-Borough Director of Integrated Care,595
26/05/2021,1249291,Westminster Society,B*Voluntary-Spot-V Dep-Enhanced - do not u,Bi-Borough Director of Integrated Care,595
26/05/2021,1249291,Westminster Society,B*Voluntary-Spot-V Dep-Enhanced - do not u,Bi-Borough Director of Integrated Care,850
26/05/2021,1249291,Westminster Society,B*Voluntary-Spot-V Dep-Enhanced - do not u,Bi-Borough Director of Integrated Care,850
26/05/2021,1249291,Westminster Society,B*Voluntary-Spot-V Dep-Enhanced - do not u,Bi-Borough Director of Integrated Care,1020
26/05/2021,1249291,Westminster Society,B*Voluntary-Spot-V Dep-Enhanced - do not u,Bi-Borough Director of Integrated Care,977.5
26/05/2021,1249291,Westminster Society,B*Voluntary-Spot-V Dep-Enhanced - do not u,Bi-Borough Director of Integrated Care,2839
26/05/2021,1249291,Westminster Society,B*Voluntary-Spot-V Dep-Enhanced - do not u,Bi-Borough Director of Integrated Care,765
26/05/2021,1249291,Westminster Society,B*Voluntary-Spot-V Dep-Enhanced - do not u,Bi-Borough Director of Integrated Care,1190
26/05/2021,1249291,Westminster Society,B*Voluntary-Spot-V Dep-Enhanced - do not u,Bi-Borough Director of Integrated Care,680
26/05/2021,1249291,Westminster Society,B*Voluntary-Spot-V Dep-Enhanced - do not u,Bi-Borough Director of Integrated Care,765
26/05/2021,1249291,Westminster Society,B*Voluntary-Spot-V Dep-Enhanced - do not u,Bi-Borough Director of Integrated Care,1105
26/05/2021,1249291,Westminster Society,B*Voluntary-Spot-V Dep-Enhanced - do not u,Bi-Borough Director of Integrated Care,748
26/05/2021,1249291,Westminster Society,B*Voluntary-Spot-V Dep-Enhanced - do not u,Bi-Borough Director of Integrated Care,510
26/05/2021,1249291,Westminster Society,B*Voluntary-Spot-V Dep-Enhanced - do not u,Bi-Borough Director of Integrated Care,510
26/05/2021,1249291,Westminster Society,B*Voluntary-Spot-V Dep-Enhanced - do not u,Bi-Borough Director of Integrated Care,935
26/05/2021,1249291,Westminster Society,B*Voluntary-Spot-V Dep-Enhanced - do not u,Bi-Borough Director of Integrated Care,765
26/05/2021,1249291,Westminster Society,B*Voluntary-Spot-V Dep-Enhanced - do not u,Bi-Borough Director of Integrated Care,680
26/05/2021,1249291,Westminster Society,B*Voluntary-Spot-V Dep-Enhanced - do not u,Bi-Borough Director of Integrated Care,1020
04/06/2021,1249291,Westminster Society,B*Voluntary-Spot-V Dep-Enhanced - do not u,Bi-Borough Director of Integrated Care,2550
04/06/2021,1249291,Westminster Society,B*Voluntary-Spot-V Dep-Enhanced - do not u,Bi-Borough Director of Integrated Care,2040
23/06/2021,1249291,Westminster Society,,Bi-Borough Director of Integrated Care,3320.24
23/06/2021,1249291,Westminster Society,,Bi-Borough Director of Integrated Care,4336.64
23/06/2021,1249291,Westminster Society,,Bi-Borough Director of Integrated Care,1406.04
23/06/2021,1249291,Westminster Society,,Bi-Borough Director of Integrated Care,913.86
23/06/2021,1249291,Westminster Society,,Bi-Borough Director of Integrated Care,5793.48
23/06/2021,1249291,Westminster Society,,Bi-Borough Director of Integrated Care,3394.76
23/06/2021,1249291,Westminster Society,,Bi-Borough Director of Integrated Care,713.64
23/06/2021,1249291,Westminster Society,,Bi-Borough Director of Integrated Care,3049.2
23/06/2021,1249291,Westminster Society,,Bi-Borough Director of Integrated Care,3320.24
23/06/2021,1249291,Westminster Society,,Bi-Borough Director of Integrated Care,542.08
23/06/2021,1249291,Westminster Society,,Bi-Borough Director of Integrated Care,2842.4
23/06/2021,1249291,Westminster Society,,Bi-Borough Director of Integrated Care,721
23/06/2021,1249291,Westminster Society,,Bi-Borough Director of Integrated Care,4901.08
23/06/2021,1249291,Westminster Society,,Bi-Borough Director of Integrated Care,721
23/06/2021,1249291,Westminster Society,,Bi-Borough Director of Integrated Care,853.96
23/06/2021,1249291,Westminster Society,,Bi-Borough Director of Integrated Care,3879.28
23/06/2021,1249291,Westminster Society,,Bi-Borough Director of Integrated Care,1185.8
23/06/2021,1249291,Westminster Society,,Bi-Borough Director of Integrated Care,3252.48
23/06/2021,1249291,Westminster Society,,Bi-Borough Director of Integrated Care,1490.72
23/06/2021,1249291,Westminster Society,,Bi-Borough Director of Integrated Care,540.76
23/06/2021,1249291,Westminster Society,,Bi-Borough Director of Integrated Care,1118.04
23/06/2021,1249291,Westminster Society,,Bi-Borough Director of Integrated Care,853.96
23/06/2021,1249291,Westminster Society,,Bi-Borough Director of Integrated Care,721
23/06/2021,1249291,Westminster Society,,Bi-Borough Director of Integrated Care,7833.04
23/06/2021,1249291,Westminster Society,,Bi-Borough Director of Integrated Care,721
23/06/2021,1249291,Westminster Society,,Bi-Borough Director of Integrated Care,1067.44
23/06/2021,1249291,Westminster Society,,Bi-Borough Director of Integrated Care,5601.72
23/06/2021,1249291,Westminster Society,,Bi-Borough Director of Integrated Care,3320.24
23/06/2021,1249291,Westminster Society,,Bi-Borough Director of Integrated Care,540.76
23/06/2021,1249291,Westminster Society,,Bi-Borough Director of Integrated Care,1219.68
23/06/2021,1249291,Westminster Society,,Bi-Borough Director of Integrated Care,540.76
23/06/2021,1249291,Westminster Society,,Bi-Borough Director of Integrated Care,3388
23/06/2021,1249291,Westminster Society,,Bi-Borough Director of Integrated Care,3794.56
23/06/2021,1249291,Westminster Society,,Bi-Borough Director of Integrated Care,948.64
23/06/2021,1249291,Westminster Society,,Bi-Borough Director of Integrated Care,542.08
23/06/2021,1249291,Westminster Society,,Bi-Borough Director of Integrated Care,713.64
23/06/2021,1249291,Westminster Society,,Bi-Borough Director of Integrated Care,4987.12
23/06/2021,1249291,Westminster Society,,Bi-Borough Director of Integrated Care,7105.12
23/06/2021,1249291,Westminster Society,,Bi-Borough Director of Integrated Care,8539.44
23/06/2021,1249291,Westminster Society,,Bi-Borough Director of Integrated Care,853.96
23/06/2021,1249291,Westminster Society,,Bi-Borough Director of Integrated Care,3659.04
23/06/2021,1249291,Westminster Society,,Bi-Borough Director of Integrated Care,2032.8
23/06/2021,1249291,Westminster Society,,Bi-Borough Director of Integrated Care,540.76
23/06/2021,1249291,Westminster Society,,Bi-Borough Director of Integrated Care,3676
23/06/2021,1249291,Westminster Society,,Bi-Borough Director of Integrated Care,540.76
23/06/2021,1249291,Westminster Society,,Bi-Borough Director of Integrated Care,1897.28
23/06/2021,1249291,Westminster Society,,Bi-Borough Director of Integrated Care,1624.56
23/06/2021,1249291,Westminster Society,,Bi-Borough Director of Integrated Care,7385.84
23/06/2021,1249291,Westminster Society,,Bi-Borough Director of Integrated Care,2710.4
23/06/2021,1249291,Westminster Society,,Bi-Borough Director of Integrated Care,2236.08
23/06/2021,1249291,Westminster Society,,Bi-Borough Director of Integrated Care,982.52
23/06/2021,1249291,Westminster Society,,Bi-Borough Director of Integrated Care,1761.76
23/06/2021,1249291,Westminster Society,,Bi-Borough Director of Integrated Care,948.64
23/06/2021,1249291,Westminster Society,,Bi-Borough Director of Integrated Care,2330.96
23/06/2021,1249291,Westminster Society,,Bi-Borough Director of Integrated Care,4289.2
23/06/2021,1249291,Westminster Society,,Bi-Borough Director of Integrated Care,5488.56
23/06/2021,1249291,Westminster Society,,Bi-Borough Director of Integrated Care,5601.72
23/06/2021,1249291,Westminster Society,,Bi-Borough Director of Integrated Care,721
23/06/2021,1249291,Westminster Society,,Bi-Borough Director of Integrated Care,1067.44
23/06/2021,1249291,Westminster Society,,Bi-Borough Director of Integrated Care,3442.2
23/06/2021,1249291,Westminster Society,,Bi-Borough Director of Integrated Care,713.64
23/06/2021,1249291,Westminster Society,,Bi-Borough Director of Integrated Care,713.64
23/06/2021,1249291,Westminster Society,,Bi-Borough Director of Integrated Care,5522.44
23/06/2021,1249291,Westminster Society,,Bi-Borough Director of Integrated Care,2236.08
23/06/2021,1249291,Westminster Society,,Bi-Borough Director of Integrated Care,3133.92
23/06/2021,1249291,Westminster Society,,Bi-Borough Director of Integrated Care,853.96
23/06/2021,1249291,Westminster Society,,Bi-Borough Director of Integrated Care,1897.28
23/06/2021,1249291,Westminster Society,,Bi-Borough Director of Integrated Care,1897.28
23/06/2021,1249291,Westminster Society,,Bi-Borough Director of Integrated Care,713.64
23/06/2021,1249291,Westminster Society,,Bi-Borough Director of Integrated Care,2642.64
23/06/2021,1249291,Westminster Society,,Bi-Borough Director of Integrated Care,3455.76
23/06/2021,1249291,Westminster Society,,Bi-Borough Director of Integrated Care,1829.52
23/06/2021,1249291,Westminster Society,,Bi-Borough Director of Integrated Care,6559.16
23/06/2021,1249291,Westminster Society,,Bi-Borough Director of Integrated Care,2842.4
23/06/2021,1249291,Westminster Society,,Bi-Borough Director of Integrated Care,1253.56
23/06/2021,1249291,Westminster Society,,Bi-Borough Director of Integrated Care,1236.64
23/06/2021,1249291,Westminster Society,,Bi-Borough Director of Integrated Care,3083.08
23/06/2021,1249291,Westminster Society,,Bi-Borough Director of Integrated Care,3455.76
23/06/2021,1249291,Westminster Society,,Bi-Borough Director of Integrated Care,540.76
23/06/2021,1249291,Westminster Society,,Bi-Borough Director of Integrated Care,3930.08
23/06/2021,1249291,Westminster Society,,Bi-Borough Director of Integrated Care,609.84
23/06/2021,1249291,Westminster Society,,Bi-Borough Director of Integrated Care,853.96
23/06/2021,1249291,Westminster Society,,Bi-Borough Director of Integrated Care,721
23/06/2021,1249291,Westminster Society,,Bi-Borough Director of Integrated Care,8537.76
23/06/2021,1249291,Westminster Society,,Bi-Borough Director of Integrated Care,3902.96
23/06/2021,1249291,Westminster Society,,Bi-Borough Director of Integrated Care,721
23/06/2021,1249291,Westminster Society,,Bi-Borough Director of Integrated Care,853.96
23/06/2021,1249291,Westminster Society,,Bi-Borough Director of Integrated Care,2507.12
23/06/2021,1249291,Westminster Society,,Bi-Borough Director of Integrated Care,540.76
23/06/2021,1249291,Westminster Society,,Bi-Borough Director of Integrated Care,2574.88
23/06/2021,1249291,Westminster Society,,Bi-Borough Director of Integrated Care,1965.04
23/06/2021,1249291,Westminster Society,,Bi-Borough Director of Integrated Care,3608.24
23/06/2021,1249291,Westminster Society,,Bi-Borough Director of Integrated Care,853.96
23/06/2021,1249291,Westminster Society,,Bi-Borough Director of Integrated Care,2303.84
23/06/2021,1249291,Westminster Society,,Bi-Borough Director of Integrated Care,992.02
23/06/2021,1249291,Westminster Society,,Bi-Borough Director of Integrated Care,2303.84
23/06/2021,1249291,Westminster Society,,Bi-Borough Director of Integrated Care,2778.16
23/06/2021,1249291,Westminster Society,,Bi-Borough Director of Integrated Care,2303.84
23/06/2021,1249291,Westminster Society,,Bi-Borough Director of Integrated Care,2371.6
23/06/2021,1249291,Westminster Society,,Bi-Borough Director of Integrated Care,713.64
23/06/2021,1249291,Westminster Society,,Bi-Borough Director of Integrated Care,3394.76
23/06/2021,1249291,Westminster Society,,Bi-Borough Director of Integrated Care,5793.48
23/06/2021,1249291,Westminster Society,,Bi-Borough Director of Integrated Care,913.86
23/06/2021,1249291,Westminster Society,,Bi-Borough Director of Integrated Care,3902.96
23/06/2021,1249291,Westminster Society,,Bi-Borough Director of Integrated Care,853.96
23/06/2021,1249291,Westminster Society,,Bi-Borough Director of Integrated Care,721
23/06/2021,1249291,Westminster Society,,Bi-Borough Director of Integrated Care,853.96
23/06/2021,1249291,Westminster Society,,Bi-Borough Director of Integrated Care,721
23/06/2021,1249291,Westminster Society,,Bi-Borough Director of Integrated Care,4106.24
23/06/2021,1249291,Westminster Society,,Bi-Borough Director of Integrated Care,1067.44
23/06/2021,1249291,Westminster Society,,Bi-Borough Director of Integrated Care,721
23/06/2021,1249291,Westminster Society,,Bi-Borough Director of Integrated Care,5901.88
23/06/2021,1249291,Westminster Society,,Bi-Borough Director of Integrated Care,713.64
23/06/2021,1249291,Westminster Society,,Bi-Borough Director of Integrated Care,2676.52
23/06/2021,1249291,Westminster Society,,Bi-Borough Director of Integrated Care,677.6
23/06/2021,1249291,Westminster Society,,Bi-Borough Director of Integrated Care,1829.52
23/06/2021,1249291,Westminster Society,,Bi-Borough Director of Integrated Care,5217.52
23/06/2021,1249291,Westminster Society,,Bi-Borough Director of Integrated Care,540.76
23/06/2021,1249291,Westminster Society,,Bi-Borough Director of Integrated Care,1624.56
23/06/2021,1249291,Westminster Society,,Bi-Borough Director of Integrated Care,7995.68
23/06/2021,1249291,Westminster Society,,Bi-Borough Director of Integrated Care,540.76
23/06/2021,1249291,Westminster Society,,Bi-Borough Director of Integrated Care,853.96
23/06/2021,1249291,Westminster Society,,Bi-Borough Director of Integrated Care,4963.44
23/06/2021,1249291,Westminster Society,,Bi-Borough Director of Integrated Care,948.64
23/06/2021,1249291,Westminster Society,,Bi-Borough Director of Integrated Care,1219.68
23/06/2021,1249291,Westminster Society,,Bi-Borough Director of Integrated Care,542.08
23/06/2021,1249291,Westminster Society,,Bi-Borough Director of Integrated Care,2100.56
23/06/2021,1249291,Westminster Society,,Bi-Borough Director of Integrated Care,779.24
23/06/2021,1249291,Westminster Society,,Bi-Borough Director of Integrated Care,853.96
23/06/2021,1249291,Westminster Society,,Bi-Borough Director of Integrated Care,3862.32
23/06/2021,1249291,Westminster Society,,Bi-Borough Director of Integrated Care,713.64
23/06/2021,1249291,Westminster Society,,Bi-Borough Director of Integrated Care,5746.04
23/06/2021,1249291,Westminster Society,B*Voluntary-Spot-V Dep-Enhanced - do not u,Bi-Borough Director of Integrated Care,952
23/06/2021,1249291,Westminster Society,B*Voluntary-Spot-V Dep-Enhanced - do not u,Bi-Borough Director of Integrated Care,544
23/06/2021,1249291,Westminster Society,B*Voluntary-Spot-V Dep-Enhanced - do not u,Bi-Borough Director of Integrated Care,612
23/06/2021,1249291,Westminster Society,B*Voluntary-Spot-V Dep-Enhanced - do not u,Bi-Borough Director of Integrated Care,544
23/06/2021,1249291,Westminster Society,B*Voluntary-Spot-V Dep-Enhanced - do not u,Bi-Borough Director of Integrated Care,884
23/06/2021,1249291,Westminster Society,B*Voluntary-Spot-V Dep-Enhanced - do not u,Bi-Borough Director of Integrated Care,952
23/06/2021,1249291,Westminster Society,B*Voluntary-Spot-V Dep-Enhanced - do not u,Bi-Borough Director of Integrated Care,748
23/06/2021,1249291,Westminster Society,B*Voluntary-Spot-V Dep-Enhanced - do not u,Bi-Borough Director of Integrated Care,612
23/06/2021,1249291,Westminster Society,B*Voluntary-Spot-V Dep-Enhanced - do not u,Bi-Borough Director of Integrated Care,544
23/06/2021,1249291,Westminster Society,B*Voluntary-Spot-V Dep-Enhanced - do not u,Bi-Borough Director of Integrated Care,2040
23/06/2021,1249291,Westminster Society,B*Voluntary-Spot-V Dep-Enhanced - do not u,Bi-Borough Director of Integrated Care,680
23/06/2021,1249291,Westminster Society,B*Voluntary-Spot-V Dep-Enhanced - do not u,Bi-Borough Director of Integrated Care,680
23/06/2021,1249291,Westminster Society,B*Voluntary-Spot-V Dep-Enhanced - do not u,Bi-Borough Director of Integrated Care,816
23/06/2021,1249291,Westminster Society,B*Voluntary-Spot-V Dep-Enhanced - do not u,Bi-Borough Director of Integrated Care,816
23/06/2021,1249291,Westminster Society,B*Voluntary-Spot-V Dep-Enhanced - do not u,Bi-Borough Director of Integrated Care,782
23/06/2021,1249291,Westminster Society,B*Voluntary-Spot-V Dep-Enhanced - do not u,Bi-Borough Director of Integrated Care,1836
23/06/2021,1249291,Westminster Society,B*Voluntary-Spot-V Dep-Enhanced - do not u,Bi-Borough Director of Integrated Care,612
23/06/2021,1249291,Westminster Society,B*Voluntary-Spot-V Dep-Enhanced - do not u,Bi-Borough Director of Integrated Care,612
23/06/2021,1249291,Westminster Society,B*Voluntary-Spot-V Dep-Enhanced - do not u,Bi-Borough Director of Integrated Care,612
23/06/2021,1249291,Westminster Society,B*Voluntary-Spot-V Dep-Enhanced - do not u,Bi-Borough Director of Integrated Care,816
28/04/2021,1246224,Whitmore Vale Housing Association,,Bi-Borough Director of Integrated Care,3293.57
26/05/2021,1246224,Whitmore Vale Housing Association,,Bi-Borough Director of Integrated Care,3688.8
23/06/2021,1246224,Whitmore Vale Housing Association,,Bi-Borough Director of Integrated Care,3688.8
28/04/2021,1243566,Yarrow Housing Ltd,,Bi-Borough Director of Integrated Care,7412.43
28/04/2021,1243566,Yarrow Housing Ltd,,Bi-Borough Director of Integrated Care,7010
28/04/2021,1243566,Yarrow Housing Ltd,,Bi-Borough Director of Integrated Care,3243.64
28/04/2021,1243566,Yarrow Housing Ltd,,Bi-Borough Director of Integrated Care,1560
28/04/2021,1243566,Yarrow Housing Ltd,,Bi-Borough Director of Integrated Care,726.86
28/04/2021,1243566,Yarrow Housing Ltd,,Bi-Borough Director of Integrated Care,3260
28/04/2021,1243566,Yarrow Housing Ltd,,Bi-Borough Director of Integrated Care,3024.57
28/04/2021,1243566,Yarrow Housing Ltd,,Bi-Borough Director of Integrated Care,6825.22
28/04/2021,1243566,Yarrow Housing Ltd,,Bi-Borough Director of Integrated Care,6515.68
12/05/2021,1243566,Yarrow Housing Ltd,,Bi-Borough Director of Integrated Care,15845.97
26/05/2021,1243566,Yarrow Housing Ltd,,Bi-Borough Director of Integrated Care,7297.56
26/05/2021,1243566,Yarrow Housing Ltd,,Bi-Borough Director of Integrated Care,1747.2
26/05/2021,1243566,Yarrow Housing Ltd,,Bi-Borough Director of Integrated Care,8301.92
26/05/2021,1243566,Yarrow Housing Ltd,,Bi-Borough Director of Integrated Care,7851.2
26/05/2021,1243566,Yarrow Housing Ltd,,Bi-Borough Director of Integrated Care,3632.88
26/05/2021,1243566,Yarrow Housing Ltd,,Bi-Borough Director of Integrated Care,814.08
26/05/2021,1243566,Yarrow Housing Ltd,,Bi-Borough Director of Integrated Care,3651.2
26/05/2021,1243566,Yarrow Housing Ltd,,Bi-Borough Director of Integrated Care,3387.52
26/05/2021,1243566,Yarrow Housing Ltd,,Bi-Borough Director of Integrated Care,3889.16
23/06/2021,1243566,Yarrow Housing Ltd,,Bi-Borough Director of Integrated Care,7851.2
23/06/2021,1243566,Yarrow Housing Ltd,,Bi-Borough Director of Integrated Care,8301.92
23/06/2021,1243566,Yarrow Housing Ltd,,Bi-Borough Director of Integrated Care,1747.2
23/06/2021,1243566,Yarrow Housing Ltd,,Bi-Borough Director of Integrated Care,3632.88
23/06/2021,1243566,Yarrow Housing Ltd,,Bi-Borough Director of Integrated Care,814.08
23/06/2021,1243566,Yarrow Housing Ltd,,Bi-Borough Director of Integrated Care,3651.2
23/06/2021,1243566,Yarrow Housing Ltd,,Bi-Borough Director of Integrated Care,3889.16
23/06/2021,1243566,Yarrow Housing Ltd,,Bi-Borough Director of Integrated Care,3387.52
23/06/2021,1243566,Yarrow Housing Ltd,,Bi-Borough Director of Integrated Care,7297.56
20/04/2021,1249317,Zocalo Ltd T/as Bluebird Care,,Bi-Borough Director of Integrated Care,5481
20/04/2021,1249317,Zocalo Ltd T/as Bluebird Care,,Bi-Borough Director of Integrated Care,1880.71
24/06/2021,1249317,Zocalo Ltd T/as Bluebird Care,,Bi-Borough Director of Integrated Care,4311
24/06/2021,1249317,Zocalo Ltd T/as Bluebird Care,,Bi-Borough Director of Integrated Care,1842.01
28/06/2021,1249317,Zocalo Ltd T/as Bluebird Care,,Bi-Borough Director of Integrated Care,5139
28/06/2021,1249317,Zocalo Ltd T/as Bluebird Care,,Bi-Borough Director of Integrated Care,1842.01
28/06/2021,1249317,Zocalo Ltd T/as Bluebird Care,,Bi-Borough Director of Integrated Care,2718
28/06/2021,1249317,Zocalo Ltd T/as Bluebird Care,,Bi-Borough Director of Integrated Care,912.57
27/04/2021,1249318,Zodiac Arts Ltd,B*Voluntary-Spot-V Dep-Enhanced - do not u,Bi-Borough Director of Integrated Care,715.5
02/06/2021,1249318,Zodiac Arts Ltd,B*Voluntary-Spot-V Dep-Enhanced - do not u,Bi-Borough Director of Integrated Care,715.5
23/06/2021,1249318,Zodiac Arts Ltd,B*Voluntary-Spot-V Dep-Enhanced - do not u,Bi-Borough Director of Integrated Care,715.5
20/05/2021,1251199,Cornerstone Barristers,Legal Costs,Bi-Borough Director of Integrated Care,4750
10/06/2021,1251199,Cornerstone Barristers,Legal Costs,Bi-Borough Director of Integrated Care,1750
28/04/2021,1248618,Riverside Echg,,Bi-Borough Director of Integrated Care,1103.5
26/05/2021,1248618,Riverside Echg,,Bi-Borough Director of Integrated Care,1239.84
23/06/2021,1248618,Riverside Echg,,Bi-Borough Director of Integrated Care,1238.16
10/06/2021,1243797,Central & North West London Nhs,Payments to Health Authorities,Bi-Borough Director of Integrated Care,7235
28/04/2021,1259100,Care Assist Limited,,Bi-Borough Director of Integrated Care,3329.43
26/05/2021,1259100,Care Assist Limited,,Bi-Borough Director of Integrated Care,3728.96
23/06/2021,1259100,Care Assist Limited,,Bi-Borough Director of Integrated Care,3728.96
28/04/2021,1246561,Church Army Marylebone Project,,Bi-Borough Director of Integrated Care,884.04
26/05/2021,1246561,Church Army Marylebone Project,,Bi-Borough Director of Integrated Care,990.12
23/06/2021,1246561,Church Army Marylebone Project,,Bi-Borough Director of Integrated Care,990.12
08/06/2021,D000000016,PERSONAL PAYMENTS,,Bi-Borough Director of Integrated Care,5000
28/04/2021,1247852,Look Ahead Care and Support Ltd,,Bi-Borough Director of Integrated Care,1131.75
28/04/2021,1247852,Look Ahead Care and Support Ltd,,Bi-Borough Director of Integrated Care,1195.61
28/04/2021,1247852,Look Ahead Care and Support Ltd,,Bi-Borough Director of Integrated Care,1195.61
28/04/2021,1247852,Look Ahead Care and Support Ltd,,Bi-Borough Director of Integrated Care,819.46
28/04/2021,1247852,Look Ahead Care and Support Ltd,,Bi-Borough Director of Integrated Care,819.46
28/04/2021,1247852,Look Ahead Care and Support Ltd,,Bi-Borough Director of Integrated Care,1366.36
28/04/2021,1247852,Look Ahead Care and Support Ltd,,Bi-Borough Director of Integrated Care,886.25
28/04/2021,1247852,Look Ahead Care and Support Ltd,,Bi-Borough Director of Integrated Care,886.25
28/04/2021,1247852,Look Ahead Care and Support Ltd,,Bi-Borough Director of Integrated Care,795.18
28/04/2021,1247852,Look Ahead Care and Support Ltd,,Bi-Borough Director of Integrated Care,1065.89
26/05/2021,1247852,Look Ahead Care and Support Ltd,,Bi-Borough Director of Integrated Care,1299.06
26/05/2021,1247852,Look Ahead Care and Support Ltd,,Bi-Borough Director of Integrated Care,1571.36
26/05/2021,1247852,Look Ahead Care and Support Ltd,,Bi-Borough Director of Integrated Care,1353.66
26/05/2021,1247852,Look Ahead Care and Support Ltd,,Bi-Borough Director of Integrated Care,1473.99
26/05/2021,1247852,Look Ahead Care and Support Ltd,,Bi-Borough Director of Integrated Care,2199.12
26/05/2021,1247852,Look Ahead Care and Support Ltd,,Bi-Borough Director of Integrated Care,1133
26/05/2021,1247852,Look Ahead Care and Support Ltd,,Bi-Borough Director of Integrated Care,1571.36
26/05/2021,1247852,Look Ahead Care and Support Ltd,,Bi-Borough Director of Integrated Care,1672.23
26/05/2021,1247852,Look Ahead Care and Support Ltd,,Bi-Borough Director of Integrated Care,927.78
26/05/2021,1247852,Look Ahead Care and Support Ltd,,Bi-Borough Director of Integrated Care,2199.12
23/06/2021,1247852,Look Ahead Care and Support Ltd,,Bi-Borough Director of Integrated Care,842.28
23/06/2021,1247852,Look Ahead Care and Support Ltd,,Bi-Borough Director of Integrated Care,842.28
23/06/2021,1247852,Look Ahead Care and Support Ltd,,Bi-Borough Director of Integrated Care,897.92
23/06/2021,1247852,Look Ahead Care and Support Ltd,,Bi-Borough Director of Integrated Care,1303.28
23/06/2021,1247852,Look Ahead Care and Support Ltd,,Bi-Borough Director of Integrated Care,1256.64
23/06/2021,1247852,Look Ahead Care and Support Ltd,,Bi-Borough Director of Integrated Care,897.92
23/06/2021,1247852,Look Ahead Care and Support Ltd,,Bi-Borough Director of Integrated Care,955.56
23/06/2021,1247852,Look Ahead Care and Support Ltd,,Bi-Borough Director of Integrated Care,955.56
23/06/2021,1247852,Look Ahead Care and Support Ltd,,Bi-Borough Director of Integrated Care,1256.64
23/06/2021,1247852,Look Ahead Care and Support Ltd,,Bi-Borough Director of Integrated Care,1285.56
28/04/2021,1244970,Octavia Housing & Care (Rent,,Bi-Borough Director of Integrated Care,606.39
26/05/2021,1244970,Octavia Housing & Care (Rent,,Bi-Borough Director of Integrated Care,723.33
23/06/2021,1244970,Octavia Housing & Care (Rent,,Bi-Borough Director of Integrated Care,666.54
28/04/2021,1248618,Riverside Echg,,Bi-Borough Director of Integrated Care,1028.75
28/04/2021,1248618,Riverside Echg,,Bi-Borough Director of Integrated Care,974
28/04/2021,1248618,Riverside Echg,,Bi-Borough Director of Integrated Care,861.25
28/04/2021,1248618,Riverside Echg,,Bi-Borough Director of Integrated Care,633.08
28/04/2021,1248618,Riverside Echg,,Bi-Borough Director of Integrated Care,866.75
28/04/2021,1248618,Riverside Echg,,Bi-Borough Director of Integrated Care,615.98
28/04/2021,1248618,Riverside Echg,,Bi-Borough Director of Integrated Care,1096.75
28/04/2021,1248618,Riverside Echg,,Bi-Borough Director of Integrated Care,862.96
28/04/2021,1248618,Riverside Echg,,Bi-Borough Director of Integrated Care,1096.75
26/05/2021,1248618,Riverside Echg,,Bi-Borough Director of Integrated Care,1152.2
26/05/2021,1248618,Riverside Echg,,Bi-Borough Director of Integrated Care,706.72
26/05/2021,1248618,Riverside Echg,,Bi-Borough Director of Integrated Care,1348.62
26/05/2021,1248618,Riverside Echg,,Bi-Borough Director of Integrated Care,1500.38
26/05/2021,1248618,Riverside Echg,,Bi-Borough Director of Integrated Care,858.99
26/05/2021,1248618,Riverside Echg,,Bi-Borough Director of Integrated Care,688.24
26/05/2021,1248618,Riverside Echg,,Bi-Borough Director of Integrated Care,1204.98
26/05/2021,1248618,Riverside Echg,,Bi-Borough Director of Integrated Care,2126.25
23/06/2021,1248618,Riverside Echg,,Bi-Borough Director of Integrated Care,857.36
23/06/2021,1248618,Riverside Echg,,Bi-Borough Director of Integrated Care,706.72
23/06/2021,1248618,Riverside Echg,,Bi-Borough Director of Integrated Care,3183.18
23/06/2021,1248618,Riverside Echg,,Bi-Borough Director of Integrated Care,688.24
23/06/2021,1248618,Riverside Echg,,Bi-Borough Director of Integrated Care,1215
23/06/2021,1248618,Riverside Echg,,Bi-Borough Director of Integrated Care,1215
23/06/2021,1248618,Riverside Echg,,Bi-Borough Director of Integrated Care,1998.63
23/06/2021,1248618,Riverside Echg,,Bi-Borough Director of Integrated Care,1238.16
28/04/2021,1245584,Single Homeless Project,,Bi-Borough Director of Integrated Care,1334
28/04/2021,1245584,Single Homeless Project,,Bi-Borough Director of Integrated Care,1334
28/04/2021,1245584,Single Homeless Project,,Bi-Borough Director of Integrated Care,916.82
26/05/2021,1245584,Single Homeless Project,,Bi-Borough Director of Integrated Care,1114.48
26/05/2021,1245584,Single Homeless Project,,Bi-Borough Director of Integrated Care,2679.95
23/06/2021,1245584,Single Homeless Project,,Bi-Borough Director of Integrated Care,1076.92
23/06/2021,1245584,Single Homeless Project,,Bi-Borough Director of Integrated Care,1531.4
28/04/2021,1245636,St Mungos Broadway (Grants &,,Bi-Borough Director of Integrated Care,1369.56
28/04/2021,1245636,St Mungos Broadway (Grants &,,Bi-Borough Director of Integrated Care,944.15
28/04/2021,1245636,St Mungos Broadway (Grants &,,Bi-Borough Director of Integrated Care,1274.29
28/04/2021,1245636,St Mungos Broadway (Grants &,,Bi-Borough Director of Integrated Care,1274.29
28/04/2021,1245636,St Mungos Broadway (Grants &,,Bi-Borough Director of Integrated Care,1369.56
28/04/2021,1245636,St Mungos Broadway (Grants &,,Bi-Borough Director of Integrated Care,1274.29
28/04/2021,1245636,St Mungos Broadway (Grants &,,Bi-Borough Director of Integrated Care,778.26
28/04/2021,1245636,St Mungos Broadway (Grants &,,Bi-Borough Director of Integrated Care,1274.29
26/05/2021,1245636,St Mungos Broadway (Grants &,,Bi-Borough Director of Integrated Care,1511.44
26/05/2021,1245636,St Mungos Broadway (Grants &,,Bi-Borough Director of Integrated Care,1768.73
26/05/2021,1245636,St Mungos Broadway (Grants &,,Bi-Borough Director of Integrated Care,1037.68
26/05/2021,1245636,St Mungos Broadway (Grants &,,Bi-Borough Director of Integrated Care,1768.73
26/05/2021,1245636,St Mungos Broadway (Grants &,,Bi-Borough Director of Integrated Care,1768.73
26/05/2021,1245636,St Mungos Broadway (Grants &,,Bi-Borough Director of Integrated Care,1511.44
26/05/2021,1245636,St Mungos Broadway (Grants &,,Bi-Borough Director of Integrated Care,1768.73
23/06/2021,1245636,St Mungos Broadway (Grants &,,Bi-Borough Director of Integrated Care,1037.68
23/06/2021,1245636,St Mungos Broadway (Grants &,,Bi-Borough Director of Integrated Care,1622.36
23/06/2021,1245636,St Mungos Broadway (Grants &,,Bi-Borough Director of Integrated Care,1622.36
23/06/2021,1245636,St Mungos Broadway (Grants &,,Bi-Borough Director of Integrated Care,1511.44
23/06/2021,1245636,St Mungos Broadway (Grants &,,Bi-Borough Director of Integrated Care,1622.36
23/06/2021,1245636,St Mungos Broadway (Grants &,,Bi-Borough Director of Integrated Care,1622.36
23/06/2021,1245636,St Mungos Broadway (Grants &,,Bi-Borough Director of Integrated Care,1511.44
18/05/2021,1245800,Action On Hearing Loss,B*Voluntary-Spot-V Dep-Enhanced - do not u,Bi-Borough Director of Integrated Care,1848
04/06/2021,1245800,Action On Hearing Loss,B*Voluntary-Spot-V Dep-Enhanced - do not u,Bi-Borough Director of Integrated Care,1484
17/06/2021,1245800,Action On Hearing Loss,B*Voluntary-Spot-V Dep-Enhanced - do not u,Bi-Borough Director of Integrated Care,1484
07/04/2021,1243931,Ashbourne Healthcare Services,,Bi-Borough Director of Integrated Care,1145.9
20/04/2021,1243931,Ashbourne Healthcare Services,,Bi-Borough Director of Integrated Care,1145.9
05/05/2021,1243931,Ashbourne Healthcare Services,,Bi-Borough Director of Integrated Care,1145.9
20/05/2021,1243931,Ashbourne Healthcare Services,,Bi-Borough Director of Integrated Care,1174.6
04/06/2021,1243931,Ashbourne Healthcare Services,,Bi-Borough Director of Integrated Care,1174.6
28/06/2021,1243931,Ashbourne Healthcare Services,,Bi-Borough Director of Integrated Care,1292.06
28/06/2021,1243931,Ashbourne Healthcare Services,,Bi-Borough Director of Integrated Care,1174.6
20/04/2021,1245073,Astoria Healthcare Ltd,,Bi-Borough Director of Integrated Care,1462.5
28/04/2021,1271022,BONZA CARE LTD,,Bi-Borough Director of Integrated Care,1503.57
28/04/2021,1271022,BONZA CARE LTD,,Bi-Borough Director of Integrated Care,3392.86
26/05/2021,1271022,BONZA CARE LTD,,Bi-Borough Director of Integrated Care,1684
26/05/2021,1271022,BONZA CARE LTD,,Bi-Borough Director of Integrated Care,3800
23/06/2021,1271022,BONZA CARE LTD,,Bi-Borough Director of Integrated Care,1684
23/06/2021,1271022,BONZA CARE LTD,,Bi-Borough Director of Integrated Care,3800
12/04/2021,1246247,Blitz Home Environmental Cleaning,,Bi-Borough Director of Integrated Care,600
14/04/2021,1246247,Blitz Home Environmental Cleaning,,Bi-Borough Director of Integrated Care,775
14/04/2021,1246247,Blitz Home Environmental Cleaning,,Bi-Borough Director of Integrated Care,1200
14/04/2021,1246247,Blitz Home Environmental Cleaning,,Bi-Borough Director of Integrated Care,800
14/04/2021,1246247,Blitz Home Environmental Cleaning,,Bi-Borough Director of Integrated Care,580
14/04/2021,1246247,Blitz Home Environmental Cleaning,,Bi-Borough Director of Integrated Care,600
27/04/2021,1246247,Blitz Home Environmental Cleaning,,Bi-Borough Director of Integrated Care,650
02/06/2021,1246247,Blitz Home Environmental Cleaning,,Bi-Borough Director of Integrated Care,550
02/06/2021,1246247,Blitz Home Environmental Cleaning,,Bi-Borough Director of Integrated Care,630
02/06/2021,1246247,Blitz Home Environmental Cleaning,,Bi-Borough Director of Integrated Care,600
15/06/2021,1246247,Blitz Home Environmental Cleaning,,Bi-Borough Director of Integrated Care,650
14/04/2021,1246262,Brent Wandsworth & Westminster,B*Voluntary-Spot-V Dep-Enhanced - do not u,Bi-Borough Director of Integrated Care,540
14/04/2021,1246262,Brent Wandsworth & Westminster,B*Voluntary-Spot-V Dep-Enhanced - do not u,Bi-Borough Director of Integrated Care,780
14/04/2021,1246262,Brent Wandsworth & Westminster,B*Voluntary-Spot-V Dep-Enhanced - do not u,Bi-Borough Director of Integrated Care,540
14/04/2021,1246262,Brent Wandsworth & Westminster,B*Voluntary-Spot-V Dep-Enhanced - do not u,Bi-Borough Director of Integrated Care,540
20/04/2021,1246261,Brent Wandsworth & Westminster,,Bi-Borough Director of Integrated Care,646.2
11/05/2021,1246262,Brent Wandsworth & Westminster,B*Voluntary-Spot-V Dep-Enhanced - do not u,Bi-Borough Director of Integrated Care,540
11/05/2021,1246262,Brent Wandsworth & Westminster,B*Voluntary-Spot-V Dep-Enhanced - do not u,Bi-Borough Director of Integrated Care,780
11/05/2021,1246262,Brent Wandsworth & Westminster,B*Voluntary-Spot-V Dep-Enhanced - do not u,Bi-Borough Director of Integrated Care,510
10/06/2021,1246261,Brent Wandsworth & Westminster,,Bi-Borough Director of Integrated Care,646.2
11/06/2021,1246261,Brent Wandsworth & Westminster,,Bi-Borough Director of Integrated Care,538.5
17/06/2021,1246262,Brent Wandsworth & Westminster,B*Voluntary-Spot-V Dep-Enhanced - do not u,Bi-Borough Director of Integrated Care,720
28/04/2021,1247482,PERSONAL PAYMENTS,,Bi-Borough Director of Integrated Care,744
26/05/2021,1247482,PERSONAL PAYMENTS,,Bi-Borough Director of Integrated Care,833.28
23/06/2021,1247482,PERSONAL PAYMENTS,,Bi-Borough Director of Integrated Care,833.28
28/04/2021,1246321,Camphill Village Trust,,Bi-Borough Director of Integrated Care,990.71
26/05/2021,1246321,Camphill Village Trust,,Bi-Borough Director of Integrated Care,1109.6
23/06/2021,1246321,Camphill Village Trust,,Bi-Borough Director of Integrated Care,1109.6
18/05/2021,1246581,Clearup Solutions Limited,,Bi-Borough Director of Integrated Care,600
07/04/2021,1244190,Clouds End Services Ltd,,Bi-Borough Director of Integrated Care,1200
06/05/2021,1244190,Clouds End Services Ltd,,Bi-Borough Director of Integrated Care,1200
07/06/2021,1244190,Clouds End Services Ltd,,Bi-Borough Director of Integrated Care,1200
28/04/2021,1246602,Community Housing Therapy,,Bi-Borough Director of Integrated Care,1732.14
26/05/2021,1246602,Community Housing Therapy,,Bi-Borough Director of Integrated Care,1940
23/06/2021,1246602,Community Housing Therapy,,Bi-Borough Director of Integrated Care,1940
06/05/2021,1259597,Ethica Services LTD,,Bi-Borough Director of Integrated Care,1080.42
06/05/2021,1259597,Ethica Services LTD,,Bi-Borough Director of Integrated Care,785.76
04/06/2021,1259597,Ethica Services LTD,,Bi-Borough Director of Integrated Care,671.2
14/04/2021,1247257,Health Vision Uk,,Bi-Borough Director of Integrated Care,1126.51
14/04/2021,1247257,Health Vision Uk,,Bi-Borough Director of Integrated Care,726.8
14/04/2021,1247257,Health Vision Uk,,Bi-Borough Director of Integrated Care,618.93
14/04/2021,1247257,Health Vision Uk,,Bi-Borough Director of Integrated Care,929.84
04/05/2021,1247257,Health Vision Uk,,Bi-Borough Director of Integrated Care,761.76
04/05/2021,1247257,Health Vision Uk,,Bi-Borough Director of Integrated Care,763.28
04/05/2021,1247257,Health Vision Uk,,Bi-Borough Director of Integrated Care,768.28
06/05/2021,1247257,Health Vision Uk,,Bi-Borough Director of Integrated Care,502.97
06/05/2021,1247257,Health Vision Uk,,Bi-Borough Director of Integrated Care,1120.53
06/05/2021,1247257,Health Vision Uk,,Bi-Borough Director of Integrated Care,726.8
06/05/2021,1247257,Health Vision Uk,,Bi-Borough Director of Integrated Care,641.95
06/05/2021,1247257,Health Vision Uk,,Bi-Borough Director of Integrated Care,934.67
17/06/2021,1247257,Health Vision Uk,,Bi-Borough Director of Integrated Care,938.81
17/06/2021,1247257,Health Vision Uk,,Bi-Borough Director of Integrated Care,1328.93
17/06/2021,1247257,Health Vision Uk,,Bi-Borough Director of Integrated Care,769.49
17/06/2021,1247257,Health Vision Uk,,Bi-Borough Director of Integrated Care,606.63
17/06/2021,1247257,Health Vision Uk,,Bi-Borough Director of Integrated Care,945.85
17/06/2021,1247257,Health Vision Uk,,Bi-Borough Director of Integrated Care,511.15
20/04/2021,1256893,Kapital Care WCC,,Bi-Borough Director of Integrated Care,945.37
18/05/2021,1256893,Kapital Care WCC,,Bi-Borough Director of Integrated Care,954.36
30/06/2021,1256893,Kapital Care WCC,,Bi-Borough Director of Integrated Care,939.68
09/04/2021,1247650,London Care Ltd,,Bi-Borough Director of Integrated Care,914.5
16/04/2021,1247650,London Care Ltd,,Bi-Borough Director of Integrated Care,679.26
16/04/2021,1247650,London Care Ltd,,Bi-Borough Director of Integrated Care,927.57
16/04/2021,1247650,London Care Ltd,,Bi-Borough Director of Integrated Care,826.94
27/04/2021,1247650,London Care Ltd,,Bi-Borough Director of Integrated Care,713
18/05/2021,1247650,London Care Ltd,,Bi-Borough Director of Integrated Care,649.28
17/06/2021,1247650,London Care Ltd,,Bi-Borough Director of Integrated Care,688.64
17/06/2021,1247650,London Care Ltd,,Bi-Borough Director of Integrated Care,938.48
17/06/2021,1247650,London Care Ltd,,Bi-Borough Director of Integrated Care,500.76
17/06/2021,1247650,London Care Ltd,,Bi-Borough Director of Integrated Care,743.74
17/06/2021,1247650,London Care Ltd,,Bi-Borough Director of Integrated Care,743.73
28/06/2021,1247650,London Care Ltd,,Bi-Borough Director of Integrated Care,696.73
28/06/2021,1247650,London Care Ltd,,Bi-Borough Director of Integrated Care,1007.72
28/06/2021,1247650,London Care Ltd,,Bi-Borough Director of Integrated Care,517.6
28/06/2021,1247650,London Care Ltd,,Bi-Borough Director of Integrated Care,775.3
28/06/2021,1247650,London Care Ltd,,Bi-Borough Director of Integrated Care,778.4
28/04/2021,1262948,Lotus House,,Bi-Borough Director of Integrated Care,2614.29
26/05/2021,1262948,Lotus House,,Bi-Borough Director of Integrated Care,2928
23/06/2021,1262948,Lotus House,,Bi-Borough Director of Integrated Care,2928
28/04/2021,1244866,Micado Community Living Services,,Bi-Borough Director of Integrated Care,2571.43
26/05/2021,1244866,Micado Community Living Services,,Bi-Borough Director of Integrated Care,2880
23/06/2021,1244866,Micado Community Living Services,,Bi-Borough Director of Integrated Care,2880
05/05/2021,1244905,Nas Services Ltd (Residential),B*Voluntary-Spot-V Dep-Enhanced - do not u,Bi-Borough Director of Integrated Care,665.7
05/05/2021,1244905,Nas Services Ltd (Residential),B*Voluntary-Spot-V Dep-Enhanced - do not u,Bi-Borough Director of Integrated Care,1065.12
20/05/2021,1244905,Nas Services Ltd (Residential),B*Voluntary-Spot-V Dep-Enhanced - do not u,Bi-Borough Director of Integrated Care,1065.12
28/04/2021,1270326,New Directions Flexible Social Care,,Bi-Borough Director of Integrated Care,1250
26/05/2021,1270326,New Directions Flexible Social Care,,Bi-Borough Director of Integrated Care,1400
23/06/2021,1270326,New Directions Flexible Social Care,,Bi-Borough Director of Integrated Care,1400
10/04/2021,1266895,PERSONAL PAYMENTS,Social Care - Direct Payments,Bi-Borough Director of Integrated Care,728
10/04/2021,1247479,PERSONAL PAYMENTS,Social Care - Direct Payments,Bi-Borough Director of Integrated Care,1639.08
10/04/2021,1259940,PERSONAL PAYMENTS,Adult Social Care - Other Transfer Pay,Bi-Borough Director of Integrated Care,1913.76
10/04/2021,1254334,PERSONAL PAYMENTS,Adult Social Care - Other Transfer Pay,Bi-Borough Director of Integrated Care,1500
08/05/2021,1266895,PERSONAL PAYMENTS,Social Care - Direct Payments,Bi-Borough Director of Integrated Care,728
08/05/2021,1247479,PERSONAL PAYMENTS,Social Care - Direct Payments,Bi-Borough Director of Integrated Care,1639.08
08/05/2021,1259940,PERSONAL PAYMENTS,Adult Social Care - Other Transfer Pay,Bi-Borough Director of Integrated Care,1913.76
08/05/2021,1254334,PERSONAL PAYMENTS,Adult Social Care - Other Transfer Pay,Bi-Borough Director of Integrated Care,1500
04/06/2021,1254334,PERSONAL PAYMENTS,Adult Social Care - Other Transfer Pay,Bi-Borough Director of Integrated Care,1500
04/06/2021,1266895,PERSONAL PAYMENTS,Social Care - Direct Payments,Bi-Borough Director of Integrated Care,728
04/06/2021,1247479,PERSONAL PAYMENTS,Social Care - Direct Payments,Bi-Borough Director of Integrated Care,1639.08
04/06/2021,1259940,PERSONAL PAYMENTS,Adult Social Care - Other Transfer Pay,Bi-Borough Director of Integrated Care,1913.76
14/04/2021,1248541,Priory Nursing Agency & Home Care,,Bi-Borough Director of Integrated Care,753.02
04/05/2021,1248541,Priory Nursing Agency & Home Care,,Bi-Borough Director of Integrated Care,753.02
10/06/2021,1248541,Priory Nursing Agency & Home Care,,Bi-Borough Director of Integrated Care,771.88
24/06/2021,1248541,Priory Nursing Agency & Home Care,,Bi-Borough Director of Integrated Care,771.88
07/04/2021,1245316,Respect Care Services Ltd,,Bi-Borough Director of Integrated Care,589.32
07/04/2021,1245316,Respect Care Services Ltd,,Bi-Borough Director of Integrated Care,605.76
16/04/2021,1245316,Respect Care Services Ltd,,Bi-Borough Director of Integrated Care,589.32
16/04/2021,1245316,Respect Care Services Ltd,,Bi-Borough Director of Integrated Care,605.76
18/05/2021,1245316,Respect Care Services Ltd,,Bi-Borough Director of Integrated Care,589.32
18/05/2021,1245316,Respect Care Services Ltd,,Bi-Borough Director of Integrated Care,605.76
26/05/2021,1245316,Respect Care Services Ltd,,Bi-Borough Director of Integrated Care,604.08
26/05/2021,1245316,Respect Care Services Ltd,,Bi-Borough Director of Integrated Care,620.86
16/06/2021,1245316,Respect Care Services Ltd,,Bi-Borough Director of Integrated Care,604.08
16/06/2021,1245316,Respect Care Services Ltd,,Bi-Borough Director of Integrated Care,620.86
28/04/2021,1272438,ST GEORGES SUPPORTED LIVING LTD,,Bi-Borough Director of Integrated Care,1517.86
26/05/2021,1272438,ST GEORGES SUPPORTED LIVING LTD,,Bi-Borough Director of Integrated Care,1700
23/06/2021,1272438,ST GEORGES SUPPORTED LIVING LTD,,Bi-Borough Director of Integrated Care,1700
22/04/2021,1248843,Sage Care Ltd,,Bi-Borough Director of Integrated Care,529.93
22/04/2021,1248843,Sage Care Ltd,,Bi-Borough Director of Integrated Care,529.94
22/04/2021,1248843,Sage Care Ltd,,Bi-Borough Director of Integrated Care,1780.8
22/04/2021,1248843,Sage Care Ltd,,Bi-Borough Director of Integrated Care,654.12
22/04/2021,1248843,Sage Care Ltd,,Bi-Borough Director of Integrated Care,1002.4
22/04/2021,1248843,Sage Care Ltd,,Bi-Borough Director of Integrated Care,1168.88
10/06/2021,1248843,Sage Care Ltd,,Bi-Borough Director of Integrated Care,1815.94
10/06/2021,1248843,Sage Care Ltd,,Bi-Borough Director of Integrated Care,914.08
10/06/2021,1248843,Sage Care Ltd,,Bi-Borough Director of Integrated Care,1769.19
18/05/2021,1245182,Supporting Care Ltd,,Bi-Borough Director of Integrated Care,3044.82
10/06/2021,1245182,Supporting Care Ltd,,Bi-Borough Director of Integrated Care,3044.82
10/06/2021,1245182,Supporting Care Ltd,,Bi-Borough Director of Integrated Care,1522.41
24/06/2021,1245182,Supporting Care Ltd,,Bi-Borough Director of Integrated Care,3044.82
28/04/2021,1270462,TRIVENI CARE LTD,,Bi-Borough Director of Integrated Care,2035.71
26/05/2021,1270462,TRIVENI CARE LTD,,Bi-Borough Director of Integrated Care,2280
23/06/2021,1270462,TRIVENI CARE LTD,,Bi-Borough Director of Integrated Care,2280
28/04/2021,1246095,Theana Ltd T/a Enlighten Homes,,Bi-Borough Director of Integrated Care,3517.86
26/05/2021,1246095,Theana Ltd T/a Enlighten Homes,,Bi-Borough Director of Integrated Care,3940
23/06/2021,1246095,Theana Ltd T/a Enlighten Homes,,Bi-Borough Director of Integrated Care,3940
14/04/2021,1249232,Vincentian Care Plus,,Bi-Borough Director of Integrated Care,2316.68
14/04/2021,1249232,Vincentian Care Plus,,Bi-Borough Director of Integrated Care,508.76
14/04/2021,1249232,Vincentian Care Plus,,Bi-Borough Director of Integrated Care,1526.24
14/04/2021,1249232,Vincentian Care Plus,,Bi-Borough Director of Integrated Care,1090.2
14/04/2021,1249232,Vincentian Care Plus,,Bi-Borough Director of Integrated Care,1717.97
14/04/2021,1249232,Vincentian Care Plus,,Bi-Borough Director of Integrated Care,633.01
14/04/2021,1249232,Vincentian Care Plus,,Bi-Borough Director of Integrated Care,654.12
14/04/2021,1249232,Vincentian Care Plus,,Bi-Borough Director of Integrated Care,581.44
14/04/2021,1249232,Vincentian Care Plus,,Bi-Borough Director of Integrated Care,517.85
14/04/2021,1249232,Vincentian Care Plus,,Bi-Borough Director of Integrated Care,1271.9
14/04/2021,1249232,Vincentian Care Plus,,Bi-Borough Director of Integrated Care,1524.04
14/04/2021,1249232,Vincentian Care Plus,,Bi-Borough Director of Integrated Care,2543.8
14/04/2021,1249232,Vincentian Care Plus,,Bi-Borough Director of Integrated Care,1998.7
14/04/2021,1249232,Vincentian Care Plus,,Bi-Borough Director of Integrated Care,799.46
14/04/2021,1249232,Vincentian Care Plus,,Bi-Borough Director of Integrated Care,1017.52
15/04/2021,1249232,Vincentian Care Plus,,Bi-Borough Director of Integrated Care,1621.78
27/04/2021,1249232,Vincentian Care Plus,,Bi-Borough Director of Integrated Care,1653.56
13/05/2021,1249232,Vincentian Care Plus,,Bi-Borough Director of Integrated Care,1526.29
13/05/2021,1249232,Vincentian Care Plus,,Bi-Borough Director of Integrated Care,1097.85
13/05/2021,1249232,Vincentian Care Plus,,Bi-Borough Director of Integrated Care,1678.76
13/05/2021,1249232,Vincentian Care Plus,,Bi-Borough Director of Integrated Care,618.56
13/05/2021,1249232,Vincentian Care Plus,,Bi-Borough Director of Integrated Care,652.68
13/05/2021,1249232,Vincentian Care Plus,,Bi-Borough Director of Integrated Care,581.44
13/05/2021,1249232,Vincentian Care Plus,,Bi-Borough Director of Integrated Care,517.85
13/05/2021,1249232,Vincentian Care Plus,,Bi-Borough Director of Integrated Care,1271.91
13/05/2021,1249232,Vincentian Care Plus,,Bi-Borough Director of Integrated Care,1533.2
13/05/2021,1249232,Vincentian Care Plus,,Bi-Borough Director of Integrated Care,2543.8
13/05/2021,1249232,Vincentian Care Plus,,Bi-Borough Director of Integrated Care,1998.7
13/05/2021,1249232,Vincentian Care Plus,,Bi-Borough Director of Integrated Care,881.4
13/05/2021,1249232,Vincentian Care Plus,,Bi-Borough Director of Integrated Care,1017.52
13/05/2021,1249232,Vincentian Care Plus,,Bi-Borough Director of Integrated Care,2289.42
13/05/2021,1249232,Vincentian Care Plus,,Bi-Borough Director of Integrated Care,508.04
27/05/2021,1249232,Vincentian Care Plus,,Bi-Borough Director of Integrated Care,1686.32
11/06/2021,1249232,Vincentian Care Plus,,Bi-Borough Director of Integrated Care,2334.78
11/06/2021,1249232,Vincentian Care Plus,,Bi-Borough Director of Integrated Care,518.84
11/06/2021,1249232,Vincentian Care Plus,,Bi-Borough Director of Integrated Care,541.8
11/06/2021,1249232,Vincentian Care Plus,,Bi-Borough Director of Integrated Care,1599.14
11/06/2021,1249232,Vincentian Care Plus,,Bi-Borough Director of Integrated Care,1111.8
11/06/2021,1249232,Vincentian Care Plus,,Bi-Borough Director of Integrated Care,813.81
11/06/2021,1249232,Vincentian Care Plus,,Bi-Borough Director of Integrated Care,667.08
11/06/2021,1249232,Vincentian Care Plus,,Bi-Borough Director of Integrated Care,592.96
11/06/2021,1249232,Vincentian Care Plus,,Bi-Borough Director of Integrated Care,528.1
11/06/2021,1249232,Vincentian Care Plus,,Bi-Borough Director of Integrated Care,1280.48
11/06/2021,1249232,Vincentian Care Plus,,Bi-Borough Director of Integrated Care,1562.72
11/06/2021,1249232,Vincentian Care Plus,,Bi-Borough Director of Integrated Care,2594.2
11/06/2021,1249232,Vincentian Care Plus,,Bi-Borough Director of Integrated Care,2038.3
11/06/2021,1249232,Vincentian Care Plus,,Bi-Borough Director of Integrated Care,815.3
11/06/2021,1249232,Vincentian Care Plus,,Bi-Borough Director of Integrated Care,1037.68
18/05/2021,1249291,Westminster Society,,Bi-Borough Director of Integrated Care,1088
18/05/2021,1249291,Westminster Society,,Bi-Borough Director of Integrated Care,1088
28/04/2021,1243566,Yarrow Housing Ltd,,Bi-Borough Director of Integrated Care,1257.75
26/05/2021,1243566,Yarrow Housing Ltd,,Bi-Borough Director of Integrated Care,1408.68
23/06/2021,1243566,Yarrow Housing Ltd,,Bi-Borough Director of Integrated Care,1408.68
28/04/2021,1243431,Abba Residential Home,,Bi-Borough Director of Integrated Care,2130.04
28/04/2021,1243431,Abba Residential Home,,Bi-Borough Director of Integrated Care,1412.89
28/04/2021,1243431,Abba Residential Home,,Bi-Borough Director of Integrated Care,1412.89
28/04/2021,1243431,Abba Residential Home,,Bi-Borough Director of Integrated Care,2142.86
28/04/2021,1243431,Abba Residential Home,,Bi-Borough Director of Integrated Care,2142.86
26/05/2021,1243431,Abba Residential Home,,Bi-Borough Director of Integrated Care,2385.64
26/05/2021,1243431,Abba Residential Home,,Bi-Borough Director of Integrated Care,1582.44
26/05/2021,1243431,Abba Residential Home,,Bi-Borough Director of Integrated Care,1582.44
26/05/2021,1243431,Abba Residential Home,,Bi-Borough Director of Integrated Care,2400
26/05/2021,1243431,Abba Residential Home,,Bi-Borough Director of Integrated Care,2400
23/06/2021,1243431,Abba Residential Home,,Bi-Borough Director of Integrated Care,2385.64
23/06/2021,1243431,Abba Residential Home,,Bi-Borough Director of Integrated Care,1582.44
23/06/2021,1243431,Abba Residential Home,,Bi-Borough Director of Integrated Care,1582.44
23/06/2021,1243431,Abba Residential Home,,Bi-Borough Director of Integrated Care,2400
23/06/2021,1243431,Abba Residential Home,,Bi-Borough Director of Integrated Care,2400
28/04/2021,1243841,About Me Care & Support Ltd,,Bi-Borough Director of Integrated Care,2470
28/04/2021,1243841,About Me Care & Support Ltd,,Bi-Borough Director of Integrated Care,2470
28/04/2021,1243851,Accomplish Group Ltd,,Bi-Borough Director of Integrated Care,3330.36
28/04/2021,1243851,Accomplish Group Ltd,,Bi-Borough Director of Integrated Care,3330.36
26/05/2021,1243851,Accomplish Group Ltd,,Bi-Borough Director of Integrated Care,3730
26/05/2021,1243851,Accomplish Group Ltd,,Bi-Borough Director of Integrated Care,3730
23/06/2021,1243851,Accomplish Group Ltd,,Bi-Borough Director of Integrated Care,3730
23/06/2021,1243851,Accomplish Group Ltd,,Bi-Borough Director of Integrated Care,3730
12/05/2021,1245982,Anchor Trust,,Bi-Borough Director of Integrated Care,1707.87
28/04/2021,1245067,Andover Care Ltd T/A Andover,,Bi-Borough Director of Integrated Care,5806.29
26/05/2021,1245067,Andover Care Ltd T/A Andover,B*PCC Management Fee Contribution,Bi-Borough Director of Integrated Care,2077.26
26/05/2021,1245067,Andover Care Ltd T/A Andover,,Bi-Borough Director of Integrated Care,6530.9
23/06/2021,1245067,Andover Care Ltd T/A Andover,,Bi-Borough Director of Integrated Care,6517.76
28/04/2021,1267747,Apex Care Homes Ltd,,Bi-Borough Director of Integrated Care,1526.79
28/04/2021,1267747,Apex Care Homes Ltd,,Bi-Borough Director of Integrated Care,1526.79
26/05/2021,1267747,Apex Care Homes Ltd,,Bi-Borough Director of Integrated Care,1710
26/05/2021,1267747,Apex Care Homes Ltd,,Bi-Borough Director of Integrated Care,1710
23/06/2021,1267747,Apex Care Homes Ltd,,Bi-Borough Director of Integrated Care,1710
23/06/2021,1267747,Apex Care Homes Ltd,,Bi-Borough Director of Integrated Care,1710
28/04/2021,1266508,Ashley Healthcare Ltd,,Bi-Borough Director of Integrated Care,1517.86
28/04/2021,1266508,Ashley Healthcare Ltd,,Bi-Borough Director of Integrated Care,1517.86
26/05/2021,1266508,Ashley Healthcare Ltd,,Bi-Borough Director of Integrated Care,1700
26/05/2021,1266508,Ashley Healthcare Ltd,,Bi-Borough Director of Integrated Care,1700
23/06/2021,1266508,Ashley Healthcare Ltd,,Bi-Borough Director of Integrated Care,1700
23/06/2021,1266508,Ashley Healthcare Ltd,,Bi-Borough Director of Integrated Care,1700
28/04/2021,1272521,Ashurst Lodge Healthcare Ltd,,Bi-Borough Director of Integrated Care,2225
28/04/2021,1272521,Ashurst Lodge Healthcare Ltd,,Bi-Borough Director of Integrated Care,2225
26/05/2021,1272521,Ashurst Lodge Healthcare Ltd,,Bi-Borough Director of Integrated Care,2492
26/05/2021,1272521,Ashurst Lodge Healthcare Ltd,,Bi-Borough Director of Integrated Care,2492
23/06/2021,1272521,Ashurst Lodge Healthcare Ltd,,Bi-Borough Director of Integrated Care,2492
23/06/2021,1272521,Ashurst Lodge Healthcare Ltd,,Bi-Borough Director of Integrated Care,2492
28/04/2021,1245072,Aster Healthcare Ltd,,Bi-Borough Director of Integrated Care,3035.71
28/04/2021,1245072,Aster Healthcare Ltd,,Bi-Borough Director of Integrated Care,2935.43
26/05/2021,1245072,Aster Healthcare Ltd,,Bi-Borough Director of Integrated Care,3400
26/05/2021,1245072,Aster Healthcare Ltd,B*PCC Management Fee Contribution,Bi-Borough Director of Integrated Care,2077.26
26/05/2021,1245072,Aster Healthcare Ltd,,Bi-Borough Director of Integrated Care,3315.54
23/06/2021,1245072,Aster Healthcare Ltd,,Bi-Borough Director of Integrated Care,3400
23/06/2021,1245072,Aster Healthcare Ltd,,Bi-Borough Director of Integrated Care,3302.4
28/04/2021,1245074,Astra Homes Ltd,,Bi-Borough Director of Integrated Care,1428.57
28/04/2021,1245074,Astra Homes Ltd,,Bi-Borough Director of Integrated Care,1428.57
28/04/2021,1245074,Astra Homes Ltd,,Bi-Borough Director of Integrated Care,1562.5
28/04/2021,1245074,Astra Homes Ltd,,Bi-Borough Director of Integrated Care,1562.5
26/05/2021,1245074,Astra Homes Ltd,,Bi-Borough Director of Integrated Care,1600
26/05/2021,1245074,Astra Homes Ltd,,Bi-Borough Director of Integrated Care,1600
26/05/2021,1245074,Astra Homes Ltd,,Bi-Borough Director of Integrated Care,1750
26/05/2021,1245074,Astra Homes Ltd,,Bi-Borough Director of Integrated Care,1750
23/06/2021,1245074,Astra Homes Ltd,,Bi-Borough Director of Integrated Care,1750
23/06/2021,1245074,Astra Homes Ltd,,Bi-Borough Director of Integrated Care,1750
23/06/2021,1245074,Astra Homes Ltd,,Bi-Borough Director of Integrated Care,1600
23/06/2021,1245074,Astra Homes Ltd,,Bi-Borough Director of Integrated Care,1600
28/04/2021,1276561,Autumn Lodge Hove Limited,,Bi-Borough Director of Integrated Care,2133.93
28/04/2021,1276561,Autumn Lodge Hove Limited,,Bi-Borough Director of Integrated Care,2133.93
26/05/2021,1276561,Autumn Lodge Hove Limited,,Bi-Borough Director of Integrated Care,2390
26/05/2021,1276561,Autumn Lodge Hove Limited,,Bi-Borough Director of Integrated Care,2390
23/06/2021,1276561,Autumn Lodge Hove Limited,,Bi-Borough Director of Integrated Care,2390
23/06/2021,1276561,Autumn Lodge Hove Limited,,Bi-Borough Director of Integrated Care,2390
28/04/2021,1268910,BROWNLOW ENTERPRISES Ltd,,Bi-Borough Director of Integrated Care,2678.57
28/04/2021,1268910,BROWNLOW ENTERPRISES Ltd,,Bi-Borough Director of Integrated Care,1607.14
28/04/2021,1268910,BROWNLOW ENTERPRISES Ltd,,Bi-Borough Director of Integrated Care,1607.14
26/05/2021,1268910,BROWNLOW ENTERPRISES Ltd,,Bi-Borough Director of Integrated Care,3000
26/05/2021,1268910,BROWNLOW ENTERPRISES Ltd,,Bi-Borough Director of Integrated Care,1800
26/05/2021,1268910,BROWNLOW ENTERPRISES Ltd,,Bi-Borough Director of Integrated Care,1800
23/06/2021,1268910,BROWNLOW ENTERPRISES Ltd,,Bi-Borough Director of Integrated Care,3000
23/06/2021,1268910,BROWNLOW ENTERPRISES Ltd,,Bi-Borough Director of Integrated Care,1800
23/06/2021,1268910,BROWNLOW ENTERPRISES Ltd,,Bi-Borough Director of Integrated Care,1800
28/04/2021,1245081,Barchester Healthcare Homes Ltd,,Bi-Borough Director of Integrated Care,2428.57
28/04/2021,1245081,Barchester Healthcare Homes Ltd,,Bi-Borough Director of Integrated Care,2428.57
26/05/2021,1245081,Barchester Healthcare Homes Ltd,,Bi-Borough Director of Integrated Care,2720
26/05/2021,1245081,Barchester Healthcare Homes Ltd,,Bi-Borough Director of Integrated Care,2720
23/06/2021,1245081,Barchester Healthcare Homes Ltd,,Bi-Borough Director of Integrated Care,2720
23/06/2021,1245081,Barchester Healthcare Homes Ltd,,Bi-Borough Director of Integrated Care,2720
28/04/2021,1245083,Bayswift Ltd T/A Chegworth,,Bi-Borough Director of Integrated Care,1609.86
28/04/2021,1245083,Bayswift Ltd T/A Chegworth,,Bi-Borough Director of Integrated Care,1517.86
26/05/2021,1245083,Bayswift Ltd T/A Chegworth,B*PCC Management Fee Contribution,Bi-Borough Director of Integrated Care,1755.66
26/05/2021,1245083,Bayswift Ltd T/A Chegworth,,Bi-Borough Director of Integrated Care,971.43
26/05/2021,1245083,Bayswift Ltd T/A Chegworth,,Bi-Borough Director of Integrated Care,1051.86
28/04/2021,1268306,Beresford House,,Bi-Borough Director of Integrated Care,1517.86
28/04/2021,1268306,Beresford House,,Bi-Borough Director of Integrated Care,1517.86
26/05/2021,1268306,Beresford House,,Bi-Borough Director of Integrated Care,1700
26/05/2021,1268306,Beresford House,,Bi-Borough Director of Integrated Care,1700
23/06/2021,1268306,Beresford House,,Bi-Borough Director of Integrated Care,1700
23/06/2021,1268306,Beresford House,,Bi-Borough Director of Integrated Care,1700
28/04/2021,1243453,Bupa Care Homes(ANS ) Ltd - T/a,,Bi-Borough Director of Integrated Care,12857.14
28/04/2021,1243453,Bupa Care Homes(ANS ) Ltd - T/a,,Bi-Borough Director of Integrated Care,1274
28/04/2021,1243453,Bupa Care Homes(ANS ) Ltd - T/a,,Bi-Borough Director of Integrated Care,2357.79
26/05/2021,1243453,Bupa Care Homes(ANS ) Ltd - T/a,,Bi-Borough Director of Integrated Care,2744
26/05/2021,1243453,Bupa Care Homes(ANS ) Ltd - T/a,,Bi-Borough Director of Integrated Care,2640.72
23/06/2021,1243453,Bupa Care Homes(ANS ) Ltd - T/a,,Bi-Borough Director of Integrated Care,2640.72
28/04/2021,1243455,Bupa Care Homes(BNH) Ltd - T/a,,Bi-Borough Director of Integrated Care,3945.68
26/05/2021,1243455,Bupa Care Homes(BNH) Ltd - T/a,,Bi-Borough Director of Integrated Care,4419.16
23/06/2021,1243455,Bupa Care Homes(BNH) Ltd - T/a,,Bi-Borough Director of Integrated Care,4419.16
28/04/2021,1259100,Care Assist Limited,,Bi-Borough Director of Integrated Care,1876.79
28/04/2021,1259100,Care Assist Limited,,Bi-Borough Director of Integrated Care,1876.79
26/05/2021,1259100,Care Assist Limited,,Bi-Borough Director of Integrated Care,2102
26/05/2021,1259100,Care Assist Limited,,Bi-Borough Director of Integrated Care,2102
23/06/2021,1259100,Care Assist Limited,,Bi-Borough Director of Integrated Care,2102
23/06/2021,1259100,Care Assist Limited,,Bi-Borough Director of Integrated Care,2102
28/04/2021,1268990,Care UK Partnerships Ltd T/a,,Bi-Borough Director of Integrated Care,1196.43
28/04/2021,1268990,Care UK Partnerships Ltd T/a,,Bi-Borough Director of Integrated Care,1196.43
28/04/2021,1268990,Care UK Partnerships Ltd T/a,,Bi-Borough Director of Integrated Care,2446.43
26/05/2021,1268990,Care UK Partnerships Ltd T/a,,Bi-Borough Director of Integrated Care,1340
26/05/2021,1268990,Care UK Partnerships Ltd T/a,,Bi-Borough Director of Integrated Care,1340
26/05/2021,1268990,Care UK Partnerships Ltd T/a,,Bi-Borough Director of Integrated Care,2740
23/06/2021,1268990,Care UK Partnerships Ltd T/a,,Bi-Borough Director of Integrated Care,2740
23/06/2021,1268990,Care UK Partnerships Ltd T/a,,Bi-Borough Director of Integrated Care,1340
23/06/2021,1268990,Care UK Partnerships Ltd T/a,,Bi-Borough Director of Integrated Care,1340
28/04/2021,1245095,Centrust Care Homes Ltd,,Bi-Borough Director of Integrated Care,4944.46
26/05/2021,1245095,Centrust Care Homes Ltd,,Bi-Borough Director of Integrated Care,5537.8
23/06/2021,1245095,Centrust Care Homes Ltd,,Bi-Borough Director of Integrated Care,5537.8
28/04/2021,1243457,Cmg Homes Ltd - The Care House,,Bi-Borough Director of Integrated Care,5483.5
28/04/2021,1243457,Cmg Homes Ltd - The Care House,,Bi-Borough Director of Integrated Care,5483.5
26/05/2021,1243457,Cmg Homes Ltd - The Care House,,Bi-Borough Director of Integrated Care,6141.52
26/05/2021,1243457,Cmg Homes Ltd - The Care House,,Bi-Borough Director of Integrated Care,6141.52
23/06/2021,1243457,Cmg Homes Ltd - The Care House,,Bi-Borough Director of Integrated Care,6141.52
23/06/2021,1243457,Cmg Homes Ltd - The Care House,,Bi-Borough Director of Integrated Care,6141.52
28/04/2021,1246602,Community Housing Therapy,,Bi-Borough Director of Integrated Care,2678.57
28/04/2021,1246602,Community Housing Therapy,,Bi-Borough Director of Integrated Care,2678.57
26/05/2021,1246602,Community Housing Therapy,,Bi-Borough Director of Integrated Care,3000
26/05/2021,1246602,Community Housing Therapy,,Bi-Borough Director of Integrated Care,3000
23/06/2021,1246602,Community Housing Therapy,,Bi-Borough Director of Integrated Care,3000
23/06/2021,1246602,Community Housing Therapy,,Bi-Borough Director of Integrated Care,3000
28/04/2021,1243461,Connifers Care Ltd T/a Rowan,,Bi-Borough Director of Integrated Care,4446.43
28/04/2021,1243461,Connifers Care Ltd T/a Rowan,,Bi-Borough Director of Integrated Care,1089.29
28/04/2021,1243461,Connifers Care Ltd T/a Rowan,,Bi-Borough Director of Integrated Care,1558.36
28/04/2021,1243461,Connifers Care Ltd T/a Rowan,,Bi-Borough Director of Integrated Care,1558.36
28/04/2021,1243461,Connifers Care Ltd T/a Rowan,,Bi-Borough Director of Integrated Care,2119.64
28/04/2021,1243461,Connifers Care Ltd T/a Rowan,,Bi-Borough Director of Integrated Care,2119.64
28/04/2021,1243461,Connifers Care Ltd T/a Rowan,,Bi-Borough Director of Integrated Care,2740.18
28/04/2021,1243461,Connifers Care Ltd T/a Rowan,,Bi-Borough Director of Integrated Care,2733.04
26/05/2021,1243461,Connifers Care Ltd T/a Rowan,,Bi-Borough Director of Integrated Care,4980
26/05/2021,1243461,Connifers Care Ltd T/a Rowan,,Bi-Borough Director of Integrated Care,1220
26/05/2021,1243461,Connifers Care Ltd T/a Rowan,,Bi-Borough Director of Integrated Care,1745.36
26/05/2021,1243461,Connifers Care Ltd T/a Rowan,,Bi-Borough Director of Integrated Care,1745.36
26/05/2021,1243461,Connifers Care Ltd T/a Rowan,,Bi-Borough Director of Integrated Care,2374
26/05/2021,1243461,Connifers Care Ltd T/a Rowan,,Bi-Borough Director of Integrated Care,2374
26/05/2021,1243461,Connifers Care Ltd T/a Rowan,,Bi-Borough Director of Integrated Care,3061
26/05/2021,1243461,Connifers Care Ltd T/a Rowan,,Bi-Borough Director of Integrated Care,3069
23/06/2021,1243461,Connifers Care Ltd T/a Rowan,,Bi-Borough Director of Integrated Care,1220
23/06/2021,1243461,Connifers Care Ltd T/a Rowan,,Bi-Borough Director of Integrated Care,4980
23/06/2021,1243461,Connifers Care Ltd T/a Rowan,,Bi-Borough Director of Integrated Care,2374
23/06/2021,1243461,Connifers Care Ltd T/a Rowan,,Bi-Borough Director of Integrated Care,2374
23/06/2021,1243461,Connifers Care Ltd T/a Rowan,,Bi-Borough Director of Integrated Care,1745.36
23/06/2021,1243461,Connifers Care Ltd T/a Rowan,,Bi-Borough Director of Integrated Care,1745.36
23/06/2021,1243461,Connifers Care Ltd T/a Rowan,,Bi-Borough Director of Integrated Care,3061
23/06/2021,1243461,Connifers Care Ltd T/a Rowan,,Bi-Borough Director of Integrated Care,3069
28/04/2021,1258903,Core Prospects,,Bi-Borough Director of Integrated Care,1078.57
28/04/2021,1258903,Core Prospects,,Bi-Borough Director of Integrated Care,1078.57
26/05/2021,1258903,Core Prospects,,Bi-Borough Director of Integrated Care,1208
26/05/2021,1258903,Core Prospects,,Bi-Borough Director of Integrated Care,1208
23/06/2021,1258903,Core Prospects,,Bi-Borough Director of Integrated Care,1208
23/06/2021,1258903,Core Prospects,,Bi-Borough Director of Integrated Care,1208
28/04/2021,1268954,Crossways Community,,Bi-Borough Director of Integrated Care,2889.29
26/05/2021,1268954,Crossways Community,,Bi-Borough Director of Integrated Care,3236
23/06/2021,1268954,Crossways Community,,Bi-Borough Director of Integrated Care,3236
